{"text_format":"1","workbook":"xlsx","n_sheets":5,"sheets":["INFORME_GENERAL","INGRESOS_OTRAS_CARTERAS","INSTRUCTIVO","Hoja8","datos"],"not_rendered":{"charts":1,"images":1,"macros":1,"external_links":0,"defined_names":7,"comments":0,"pivot_tables":5},"unopened":[],"bounds":{"document_bytes":16777216,"sheet_cells":100000,"rows_first":2000,"rows_last":500,"rows_between":2000,"halvings":0,"cell_chars":16384,"cell_head_chars":4096},"cells_cut":0,"cells_raw":0,"read":"whole","date_system":"1900"}

{"sheet":"INFORME_GENERAL","index":0,"n_rows":105,"n_cols":16383,"rows_kept":15,"cut":true,"hidden":false,"merged":[[105,1,105,5],[103,0,103,28],[104,0,104,28],[0,20,1,23],[0,24,1,27],[2,20,3,23],[2,24,3,27],[4,20,5,27],[0,7,1,19],[2,7,3,19],[4,7,5,19],[0,0,5,6],[10,15,10,16],[10,17,10,18],[10,19,10,20],[9,12,9,23],[18,1,18,2],[86,13,86,14],[47,1,47,4],[66,1,66,4],[9,6,9,9],[29,13,29,14],[29,11,29,12],[29,9,29,10],[29,7,29,8],[28,1,28,4],[10,13,10,14],[85,1,85,4],[86,7,86,8],[86,9,86,10],[86,11,86,12],[67,7,67,8],[67,9,67,10],[67,11,67,12],[67,13,67,14],[48,15,48,16],[48,7,48,8],[48,9,48,10],[48,11,48,12],[48,13,48,14],[17,26,17,27],[48,19,48,20],[48,21,48,22],[67,15,67,16],[67,17,67,18],[48,17,48,18]],"bounds":{"rows_first":7,"rows_last":1,"rows_between":7,"halvings":8}}
[{"$error":"#VALUE!"},null,null,null,null,null,null,"PROCEDIMIENTO RECAUDO INGRESO OTRAS CARTERAS DIFERENTES A MINTIC Y ADN",null,null,null,null,null,null,null,null,null,null,null,null,"F3.P45.GF ",null,null,null,"2024-12-10"]
[]
[null,null,null,null,null,null,null,"FORMATO MOVIMIENTO INGRESOS BANCOS OTRAS CARTERA",null,null,null,null,null,null,null,null,null,null,null,null,"VERSION 1",null,null,null,"PAGINA 1 DE 1"]
[]
[null,null,null,null,null,null,null,"DIFERENTES A MINTIC Y ADN ",null,null,null,null,null,null,null,null,null,null,null,null,"CLASIFICACION DE LA INFORMACION PUBLICA"]
[]
[]
[null,null,null,null,null,null,"ABRIL",0,0,0,null,null,"ABRIL",{"$f":"Hoja8!BK26","v":0},{"$f":"Hoja8!BL26","v":0},{"$f":"Hoja8!BM26","v":0},{"$f":"Hoja8!BN26","v":0},{"$f":"Hoja8!BO26","v":0},{"$f":"Hoja8!BP26","v":0},{"$f":"Hoja8!BQ26","v":0},{"$f":"Hoja8!BR26","v":0},0,0,0,null,"CUOTA ALIMENTARIA",{"$f":"C101","v":0},{"$f":"D101","v":0},null,null,null,null,null,null,null,null,null,null,null,null,null,null,null,null,null,null,null,null,null,null,null,null,null,null,null,null,null,null,null,null,null,null,null,null,null,null,null,null,null,null,null,null,null,null,null,null,null,null,null,null,null,null,null,null,null,null,null,null,null,null,null,null,null,null,null,null,null,null,null,null,null,null,null,null,null,null,null,null,null,null,null,null,null,null,null,null,null,null,null,null,null,null,null,null,null,null,null,null,null,null,null,null,null,null,null,null,null,null,null,null,null,null,null,null,null,null,null,null,null,null,null,null,null,null,null,null,null,null,null,null,null,null,null,null,null,null,null,null,null,null,null,null,null,null,null,null,null,null,null,null,null,null,null,null,null,null,null,null,null,null,null,null,null,null,null,null,null,null,null,null,null,null,null,null,null,null,null,null,null,null,null,null,null,null,null,null,null,null,null,null,null,null,null,null,null,null,null,null,null,null,null,null,null,null,null,null,null,null,null,null,null,null,null,null,null,null,null,null,null,null,null,null,null,null,null,null,null,null,null,null,null,null,null,null,null,null,null,null,null,null,null,null,null,null,null,null,null,null,null,null,null,null,null,null,null,null,null,null,null,null,null,null,null,null,null,null,null,null,null,null,null,null,null,null,null,null,null,null,null,null,null,null,null,null,null,null,null,null,null,null,null,null,null,null,null,null,null,null,null,null,null,null,null,null,null,null,null,null,null,null,null,null,null,null,null,null,null,null,null,null,null,null,null,null,null,null,null,null,null,null,null,null,null,null,null,null,null,null,null,null,null,null,null,null,null,null,null,null,null,null,null,null,null,null,null,null,null,null,null,null,null,null,null,null,null,null,null,null,null,null,null,null,null,null,null,null,null,null,null,null,null,null,null,null,null,null,null,null,null,null,null,null,null,null,null,null,null,null,null,null,null,null,null,null,null,null,null,null,null,null,null,null,null,null,null,null,null,null,null,null,null,null,null,null,null,null,null,null,null,null,null,null,null,null,null,null,null,null,null,null,null,null,null,null,null,null,null,null,null,null,null,null,null,null,null,null,null,null,null,null,null,null,null,null,null,null,null,null,null,null,null,null,null,null,null,null,null,null,null,null,null,null,null,null,null,null,null,null,null,null,null,null,null,null,null,null,null,null,null,null,null,null,null,null,null,null,null,null,null,null,null,null,null,null,null,null,null,null,null,null,null,null,null,null,null,null,null,null,null,null,null,null,null,null,null,null,null,null,null,null,null,null,null,null,null,null,null,null,null,null,null,null,null,null,null,null,null,null,null,null,null,null,null,null,null,null,null,null,null,null,null,null,null,null,null,null,null,null,null,null,null,null,null,null,null,null,null,null,null,null,null,null,null,null,null,null,null,null,null,null,null,null,null,null,null,null,null,null,null,null,null,null,null,null,null,null,null,null,null,null,null,null,null,null,null,null,null,null,null,null,null,null,null,null,null,null,null,null,null,null,null,null,null,null,null,null,null,null,null,null,null,null,null,null,null,null,null,null,null,null,null,null,null,null,null,null,null,null,null,null,null,null,null,null,null,null,null,null,null,null,null,null,null,null,null,null,null,null,null,null,null,null,null,null,null,null,null,null,null,null,null,null,null,null,null,null,null,null,null,null,null,null,null,null,null,null,null,null,null,null,null,null,null,null,null,null,null,null,null,null,null,null,null,null,null,null,null,null,null,null,null,null,null,null,null,null,null,null,null,null,null,null,null,null,null,null,null,null,null,null,null,null,null,null,null,null,null,null,null,null,null,null,null,null,null,null,null,null,null,null,null,null,null,null,null,null,null,null,null,null,null,null,null,null,null,null,null,null,null,null,null,null,null,null,null,null,null,null,null,null,null,null,null,null,null,null,null,null,null,null,null,null,null,null,null,null,null,null,null,null,null,null,null,null,null,null,null,null,null,null,null,null,null,null,null,null,null,null,null,null,null,null,null,null,null,null,null,null,null,null,null,null,null,null,null,null,null,null,null,null,null,null,null,null,null,null,null,null,null,null,null,null,null,null,null,null,null,null,null,null,null,null,null,null,null,null,null,null,null,null,null,null,null,null,null,null,null,null,null,null,null,null,null,null,null,null,null,null,null,null,null,null,null,null,null,null,null,null,null,null,null,null,null,null,null,null,null,null,null,null,null,null,null,null,null,null,null,null,null,null,null,null,null,null,null,null,null,null,null,null,null,null,null,null,null,null,null,null,null,null,null,null,null,null,null,null,null,null,null,null,null,null,null,null,null,null,null,null,null,null,null,null,null,null,null,null,null,null,null,null,null,null,null,null,null,null,null,null,null,null,null,null,null,null,null,null,null,null,null,null,null,null,null,null,null,null,null,null,null,null,null,null,null,null,null,null,null,null,null,null,null,null,null,null,null,null,null,null,null,null,null,null,null,null,null,null,null,null,null,null,null,null,null,null,null,null,null,null,null,null,null,null,null,null,null,null,null,null,null,null,null,null,null,null,null,null,null,null,null,null,null,null,null,null,null,null,null,null,null,null,null,null,null,null,null,null,null,null,null,null,null,null,null,null,null,null,null,null,null,null,null,null,null,null,null,null,null,null,null,null,null,null,null,null,null,null,null,null,null,null,null,null,null,null,null,null,null,null,null,null,null,null,null,null,null,null,null,null,null,null,null,null,null,null,null,null,null,null,null,null,null,null,null,null,null,null,null,null,null,null,null,null,null,null,null,null,null,null,null,null,null,null,null,null,null,null,null,null,null,null,null,null,null,null,null,null,null,null,null,null,null,null,null,null,null,null,null,null,null,null,null,null,null,null,null,null,null,null,null,null,null,null,null,null,null,null,null,null,null,null,null,null,null,null,null,null,null,null,null,null,null,null,null,null,null,null,null,null,null,null,null,null,null,null,null,null,null,null,null,null,null,null,null,null,null,null,null,null,null,null,null,null,null,null,null,null,null,null,null,null,null,null,null,null,null,null,null,null,null,null,null,null,null,null,null,null,null,null,null,null,null,null,null,null,null,null,null,null,null,null,null,null,null,null,null,null,null,null,null,null,null,null,null,null,null,null,null,null,null,null,null,null,null,null,null,null,null,null,null,null,null,null,null,null,null,null,null,null,null,null,null,null,null,null,null,null,null,null,null,null,null,null,null,null,null,null,null,null,null,null,null,null,null,null,null,null,null,null,null,null,null,null,null,null,null,null,null,null,null,null,null,null,null,null,null,null,null,null,null,null,null,null,null,null,null,null,null,null,null,null,null,null,null,null,null,null,null,null,null,null,null,null,null,null,null,null,null,null,null,null,null,null,null,null,null,null,null,null,null,null,null,null,null,null,null,null,null,null,null,null,null,null,null,null,null,null,null,null,null,null,null,null,null,null,null,null,null,null,null,null,null,null,null,null,null,null,null,null,null,null,null,null,null,null,null,null,null,null,null,null,null,null,null,null,null,null,null,null,null,null,null,null,null,null,null,null,null,null,null,null,null,null,null,null,null,null,null,null,null,null,null,null,null,null,null,null,null,null,null,null,null,null,null,null,null,null,null,null,null,null,null,null,null,null,null,null,null,null,null,null,null,null,null,null,null,null,null,null,null,null,null,null,null,null,null,null,null,null,null,null,null,null,null,null,null,null,null,null,null,null,null,null,null,null,null,null,null,null,null,null,null,null,null,null,null,null,null,null,null,null,null,null,null,null,null,null,null,null,null,null,null,null,null,null,null,null,null,null,null,null,null,null,null,null,null,null,null,null,null,null,null,null,null,null,null,null,null,null,null,null,null,null,null,null,null,null,null,null,null,null,null,null,null,null,null,null,null,null,null,null,null,null,null,null,null,null,null,null,null,null,null,null,null,null,null,null,null,null,null,null,null,null,null,null,null,null,null,null,null,null,null,null,null,null,null,null,null,null,null,null,null,null,null,null,null,null,null,null,null,null,null,null,null,null,null,null,null,null,null,null,null,null,null,null,null,null,null,null,null,null,null,null,null,null,null,null,null,null,null,null,null,null,null,null,null,null,null,null,null,null,null,null,null,null,null,null,null,null,null,null,null,null,null,null,null,null,null,null,null,null,null,null,null,null,null,null,null,null,null,null,null,null,null,null,null,null,null,null,null,null,null,null,null,null,null,null,null,null,null,null,null,null,null,null,null,null,null,null,null,null,null,null,null,null,null,null,null,null,null,null,null,null,null,null,null,null,null,null,null,null,null,null,null,null,null,null,null,null,null,null,null,null,null,null,null,null,null,null,null,null,null,null,null,null,null,null,null,null,null,null,null,null,null,null,null,null,null,null,null,null,null,null,null,null,null,null,null,null,null,null,null,null,null,null,null,null,null,null,null,null,null,null,null,null,null,null,null,null,null,null,null,null,null,null,null,null,null,null,null,null,null,null,null,null,null,null,null,null,null,null,null,null,null,null,null,null,null,null,null,null,null,null,null,null,null,null,null,null,null,null,null,null,null,null,null,null,null,null,null,null,null,null,null,null,null,null,null,null,null,null,null,null,null,null,null,null,null,null,null,null,null,null,null,null,null,null,null,null,null,null,null,null,null,null,null,null,null,null,null,null,null,null,null,null,null,null,null,null,null,null,null,null,null,null,null,null,null,null,null,null,null,null,null,null,null,null,null,null,null,null,null,null,null,null,null,null,null,null,null,null,null,null,null,null,null,null,null,null,null,null,null,null,null,null,null,null,null,null,null,null,null,null,null,null,null,null,null,null,null,null,null,null,null,null,null,null,null,null,null,null,null,null,null,null,null,null,null,null,null,null,null,null,null,null,null,null,null,null,null,null,null,null,null,null,null,null,null,null,null,null,null,null,null,null,null,null,null,null,null,null,null,null,null,null,null,null,null,null,null,null,null,null,null,null,null,null,null,null,null,null,null,null,null,null,null,null,null,null,null,null,null,null,null,null,null,null,null,null,null,null,null,null,null,null,null,null,null,null,null,null,null,null,null,null,null,null,null,null,null,null,null,null,null,null,null,null,null,null,null,null,null,null,null,null,null,null,null,null,null,null,null,null,null,null,null,null,null,null,null,null,null,null,null,null,null,null,null,null,null,null,null,null,null,null,null,null,null,null,null,null,null,null,null,null,null,null,null,null,null,null,null,null,null,null,null,null,null,null,null,null,null,null,null,null,null,null,null,null,null,null,null,null,null,null,null,null,null,null,null,null,null,null,null,null,null,null,null,null,null,null,null,null,null,null,null,null,null,null,null,null,null,null,null,null,null,null,null,null,null,null,null,null,null,null,null,null,null,null,null,null,null,null,null,null,null,null,null,null,null,null,null,null,null,null,null,null,null,null,null,null,null,null,null,null,null,null,null,null,null,null,null,null,null,null,null,null,null,null,null,null,null,null,null,null,null,null,null,null,null,null,null,null,null,null,null,null,null,null,null,null,null,null,null,null,null,null,null,null,null,null,null,null,null,null,null,null,null,null,null,null,null,null,null,null,null,null,null,null,null,null,null,null,null,null,null,null,null,null,null,null,null,null,null,null,null,null,null,null,null,null,null,null,null,null,null,null,null,null,null,null,null,null,null,null,null,null,null,null,null,null,null,null,null,null,null,null,null,null,null,null,null,null,null,null,null,null,null,null,null,null,null,null,null,null,null,null,null,null,null,null,null,null,null,null,null,null,null,null,null,null,null,null,null,null,null,null,null,null,null,null,null,null,null,null,null,null,null,null,null,null,null,null,null,null,null,null,null,null,null,null,null,null,null,null,null,null,null,null,null,null,null,null,null,null,null,null,null,null,null,null,null,null,null,null,null,null,null,null,null,null,null,null,null,null,null,null,null,null,null,null,null,null,null,null,null,null,null,null,null,null,null,null,null,null,null,null,null,null,null,null,null,null,null,null,null,null,null,null,null,null,null,null,null,null,null,null,null,null,null,null,null,null,null,null,null,null,null,null,null,null,null,null,null,null,null,null,null,null,null,null,null,null,null,null,null,null,null,null,null,null,null,null,null,null,null,null,null,null,null,null,null,null,null,null,null,null,null,null,null,null,null,null,null,null,null,null,null,null,null,null,null,null,null,null,null,null,null,null,null,null,null,null,null,null,null,null,null,null,null,null,null,null,null,null,null,null,null,null,null,null,null,null,null,null,null,null,null,null,null,null,null,null,null,null,null,null,null,null,null,null,null,null,null,null,null,null,null,null,null,null,null,null,null,null,null,null,null,null,null,null,null,null,null,null,null,null,null,null,null,null,null,null,null,null,null,null,null,null,null,null,null,null,null,null,null,null,null,null,null,null,null,null,null,null,null,null,null,null,null,null,null,null,null,null,null,null,null,null,null,null,null,null,null,null,null,null,null,null,null,null,null,null,null,null,null,null,null,null,null,null,null,null,null,null,null,null,null,null,null,null,null,null,null,null,null,null,null,null,null,null,null,null,null,null,null,null,null,null,null,null,null,null,null,null,null,null,null,null,null,null,null,null,null,null,null,null,null,null,null,null,null,null,null,null,null,null,null,null,null,null,null,null,null,null,null,null,null,null,null,null,null,null,null,null,null,null,null,null,null,null,null,null,null,null,null,null,null,null,null,null,null,null,null,null,null,null,null,null,null,null,null,null,null,null,null,null,null,null,null,null,null,null,null,null,null,null,null,null,null,null,null,null,null,null,null,null,null,null,null,null,null,null,null,null,null,null,null,null,null,null,null,null,null,null,null,null,null,null,null,null,null,null,null,null,null,null,null,null,null,null,null,null,null,null,null,null,null,null,null,null,null,null,null,null,null,null,null,null,null,null,null,null,null,null,null,null,null,null,null,null,null,null,null,null,null,null,null,null,null,null,null,null,null,null,null,null,null,null,null,null,null,null,null,null,null,null,null,null,null,null,null,null,null,null,null,null,null,null,null,null,null,null,null,null,null,null,null,null,null,null,null,null,null,null,null,null,null,null,null,null,null,null,null,null,null,null,null,null,null,null,null,null,null,null,null,null,null,null,null,null,null,null,null,null,null,null,null,null,null,null,null,null,null,null,null,null,null,null,null,null,null,null,null,null,null,null,null,null,null,null,null,null,null,null,null,null,null,null,null,null,null,null,null,null,null,null,null,null,null,null,null,null,null,null,null,null,null,null,null,null,null,null,null,null,null,null,null,null,null,null,null,null,null,null,null,null,null,null,null,null,null,null,null,null,null,null,null,null,null,null,null,null,null,null,null,null,null,null,null,null,null,null,null,null,null,null,null,null,null,null,null,null,null,null,null,null,null,null,null,null,null,null,null,null,null,null,null,null,null,null,null,null,null,null,null,null,null,null,null,null,null,null,null,null,null,null,null,null,null,null,null,null,null,null,null,null,null,null,null,null,null,null,null,null,null,null,null,null,null,null,null,null,null,null,null,null,null,null,null,null,null,null,null,null,null,null,null,null,null,null,null,null,null,null,null,null,null,null,null,null,null,null,null,null,null,null,null,null,null,null,null,null,null,null,null,null,null,null,null,null,null,null,null,null,null,null,null,null,null,null,null,null,null,null,null,null,null,null,null,null,null,null,null,null,null,null,null,null,null,null,null,null,null,null,null,null,null,null,null,null,null,null,null,null,null,null,null,null,null,null,null,null,null,null,null,null,null,null,null,null,null,null,null,null,null,null,null,null,null,null,null,null,null,null,null,null,null,null,null,null,null,null,null,null,null,null,null,null,null,null,null,null,null,null,null,null,null,null,null,null,null,null,null,null,null,null,null,null,null,null,null,null,null,null,null,null,null,null,null,null,null,null,null,null,null,null,null,null,null,null,null,null,null,null,null,null,null,null,null,null,null,null,null,null,null,null,null,null,null,null,null,null,null,null,null,null,null,null,null,null,null,null,null,null,null,null,null,null,null,null,null,null,null,null,null,null,null,null,null,null,null,null,null,null,null,null,null,null,null,null,null,null,null,null,null,null,null,null,null,null,null,null,null,null,null,null,null,null,null,null,null,null,null,null,null,null,null,null,null,null,null,null,null,null,null,null,null,null,null,null,null,null,null,null,null,null,null,null,null,null,null,null,null,null,null,null,null,null,null,null,null,null,null,null,null,null,null,null,null,null,null,null,null,null,null,null,null,null,null,null,null,null,null,null,null,null,null,null,null,null,null,null,null,null,null,null,null,null,null,null,null,null,null,null,null,null,null,null,null,null,null,null,null,null,null,null,null,null,null,null,null,null,null,null,null,null,null,null,null,null,null,null,null,null,null,null,null,null,null,null,null,null,null,null,null,null,null,null,null,null,null,null,null,null,null,null,null,null,null,null,null,null,null,null,null,null,null,null,null,null,null,null,null,null,null,null,null,null,null,null,null,null,null,null,null,null,null,null,null,null,null,null,null,null,null,null,null,null,null,null,null,null,null,null,null,null,null,null,null,null,null,null,null,null,null,null,null,null,null,null,null,null,null,null,null,null,null,null,null,null,null,null,null,null,null,null,null,null,null,null,null,null,null,null,null,null,null,null,null,null,null,null,null,null,null,null,null,null,null,null,null,null,null,null,null,null,null,null,null,null,null,null,null,null,null,null,null,null,null,null,null,null,null,null,null,null,null,null,null,null,null,null,null,null,null,null,null,null,null,null,null,null,null,null,null,null,null,null,null,null,null,null,null,null,null,null,null,null,null,null,null,null,null,null,null,null,null,null,null,null,null,null,null,null,null,null,null,null,null,null,null,null,null,null,null,null,null,null,null,null,null,null,null,null,null,null,null,null,null,null,null,null,null,null,null,null,null,null,null,null,null,null,null,null,null,null,null,null,null,null,null,null,null,null,null,null,null,null,null,null,null,null,null,null,null,null,null,null,null,null,null,null,null,null,null,null,null,null,null,null,null,null,null,null,null,null,null,null,null,null,null,null,null,null,null,null,null,null,null,null,null,null,null,null,null,null,null,null,null,null,null,null,null,null,null,null,null,null,null,null,null,null,null,null,null,null,null,null,null,null,null,null,null,null,null,null,null,null,null,null,null,null,null,null,null,null,null,null,null,null,null,null,null,null,null,null,null,null,null,null,null,null,null,null,null,null,null,null,null,null,null,null,null,null,null,null,null,null,null,null,null,null,null,null,null,null,null,null,null,null,null,null,null,null,null,null,null,null,null,null,null,null,null,null,null,null,null,null,null,null,null,null,null,null,null,null,null,null,null,null,null,null,null,null,null,null,null,null,null,null,null,null,null,null,null,null,null,null,null,null,null,null,null,null,null,null,null,null,null,null,null,null,null,null,null,null,null,null,null,null,null,null,null,null,null,null,null,null,null,null,null,null,null,null,null,null,null,null,null,null,null,null,null,null,null,null,null,null,null,null,null,null,null,null,null,null,null,null,null,null,null,null,null,null,null,null,null,null,null,null,null,null,null,null,null,null,null,null,null,null,null,null,null,null,null,null,null,null,null,null,null,null,null,null,null,null,null,null,null,null,null,null,null,null,null,null,null,null,null,null,null,null,null,null,null,null,null,null,null,null,null,null,null,null,null,null,null,null,null,null,null,null,null,null,null,null,null,null,null,null,null,null,null,null,null,null,null,null,null,null,null,null,null,null,null,null,null,null,null,null,null,null,null,null,null,null,null,null,null,null,null,null,null,null,null,null,null,null,null,null,null,null,null,null,null,null,null,null,null,null,null,null,null,null,null,null,null,null,null,null,null,null,null,null,null,null,null,null,null,null,null,null,null,null,null,null,null,null,null,null,null,null,null,null,null,null,null,null,null,null,null,null,null,null,null,null,null,null,null,null,null,null,null,null,null,null,null,null,null,null,null,null,null,null,null,null,null,null,null,null,null,null,null,null,null,null,null,null,null,null,null,null,null,null,null,null,null,null,null,null,null,null,null,null,null,null,null,null,null,null,null,null,null,null,null,null,null,null,null,null,null,null,null,null,null,null,null,null,null,null,null,null,null,null,null,null,null,null,null,null,null,null,null,null,null,null,null,null,null,null,null,null,null,null,null,null,null,null,null,null,null,null,null,null,null,null,null,null,null,null,null,null,null,null,null,null,null,null,null,null,null,null,null,null,null,null,null,null,null,null,null,null,null,null,null,null,null,null,null,null,null,null,null,null,null,null,null,null,null,null,null,null,null,null,null,null,null,null,null,null,null,null,null,null,null,null,null,null,null,null,null,null,null,null,null,null,null,null,null,null,null,null,null,null,null,null,null,null,null,null,null,null,null,null,null,null,null,null,null,null,null,null,null,null,null,null,null,null,null,null,null,null,null,null,null,null,null,null,null,null,null,null,null,null,null,null,null,null,null,null,null,null,null,null,null,null,null,null,null,null,null,null,null,null,null,null,null,null,null,null,null,null,null,null,null,null,null,null,null,null,null,null,null,null,null,null,null,null,null,null,null,null,null,null,null,null,null,null,null,null,null,null,null,null,null,null,null,null,null,null,null,null,null,null,null,null,null,null,null,null,null,null,null,null,null,null,null,null,null,null,null,null,null,null,null,null,null,null,null,null,null,null,null,null,null,null,null,null,null,null,null,null,null,null,null,null,null,null,null,null,null,null,null,null,null,null,null,null,null,null,null,null,null,null,null,null,null,null,null,null,null,null,null,null,null,null,null,null,null,null,null,null,null,null,null,null,null,null,null,null,null,null,null,null,null,null,null,null,null,null,null,null,null,null,null,null,null,null,null,null,null,null,null,null,null,null,null,null,null,null,null,null,null,null,null,null,null,null,null,null,null,null,null,null,null,null,null,null,null,null,null,null,null,null,null,null,null,null,null,null,null,null,null,null,null,null,null,null,null,null,null,null,null,null,null,null,null,null,null,null,null,null,null,null,null,null,null,null,null,null,null,null,null,null,null,null,null,null,null,null,null,null,null,null,null,null,null,null,null,null,null,null,null,null,null,null,null,null,null,null,null,null,null,null,null,null,null,null,null,null,null,null,null,null,null,null,null,null,null,null,null,null,null,null,null,null,null,null,null,null,null,null,null,null,null,null,null,null,null,null,null,null,null,null,null,null,null,null,null,null,null,null,null,null,null,null,null,null,null,null,null,null,null,null,null,null,null,null,null,null,null,null,null,null,null,null,null,null,null,null,null,null,null,null,null,null,null,null,null,null,null,null,null,null,null,null,null,null,null,null,null,null,null,null,null,null,null,null,null,null,null,null,null,null,null,null,null,null,null,null,null,null,null,null,null,null,null,null,null,null,null,null,null,null,null,null,null,null,null,null,null,null,null,null,null,null,null,null,null,null,null,null,null,null,null,null,null,null,null,null,null,null,null,null,null,null,null,null,null,null,null,null,null,null,null,null,null,null,null,null,null,null,null,null,null,null,null,null,null,null,null,null,null,null,null,null,null,null,null,null,null,null,null,null,null,null,null,null,null,null,null,null,null,null,null,null,null,null,null,null,null,null,null,null,null,null,null,null,null,null,null,null,null,null,null,null,null,null,null,null,null,null,null,null,null,null,null,null,null,null,null,null,null,null,null,null,null,null,null,null,null,null,null,null,null,null,null,null,null,null,null,null,null,null,null,null,null,null,null,null,null,null,null,null,null,null,null,null,null,null,null,null,null,null,null,null,null,null,null,null,null,null,null,null,null,null,null,null,null,null,null,null,null,null,null,null,null,null,null,null,null,null,null,null,null,null,null,null,null,null,null,null,null,null,null,null,null,null,null,null,null,null,null,null,null,null,null,null,null,null,null,null,null,null,null,null,null,null,null,null,null,null,null,null,null,null,null,null,null,null,null,null,null,null,null,null,null,null,null,null,null,null,null,null,null,null,null,null,null,null,null,null,null,null,null,null,null,null,null,null,null,null,null,null,null,null,null,null,null,null,null,null,null,null,null,null,null,null,null,null,null,null,null,null,null,null,null,null,null,null,null,null,null,null,null,null,null,null,null,null,null,null,null,null,null,null,null,null,null,null,null,null,null,null,null,null,null,null,null,null,null,null,null,null,null,null,null,null,null,null,null,null,null,null,null,null,null,null,null,null,null,null,null,null,null,null,null,null,null,null,null,null,null,null,null,null,null,null,null,null,null,null,null,null,null,null,null,null,null,null,null,null,null,null,null,null,null,null,null,null,null,null,null,null,null,null,null,null,null,null,null,null,null,null,null,null,null,null,null,null,null,null,null,null,null,null,null,null,null,null,null,null,null,null,null,null,null,null,null,null,null,null,null,null,null,null,null,null,null,null,null,null,null,null,null,null,null,null,null,null,null,null,null,null,null,null,null,null,null,null,null,null,null,null,null,null,null,null,null,null,null,null,null,null,null,null,null,null,null,null,null,null,null,null,null,null,null,null,null,null,null,null,null,null,null,null,null,null,null,null,null,null,null,null,null,null,null,null,null,null,null,null,null,null,null,null,null,null,null,null,null,null,null,null,null,null,null,null,null,null,null,null,null,null,null,null,null,null,null,null,null,null,null,null,null,null,null,null,null,null,null,null,null,null,null,null,null,null,null,null,null,null,null,null,null,null,null,null,null,null,null,null,null,null,null,null,null,null,null,null,null,null,null,null,null,null,null,null,null,null,null,null,null,null,null,null,null,null,null,null,null,null,null,null,null,null,null,null,null,null,null,null,null,null,null,null,null,null,null,null,null,null,null,null,null,null,null,null,null,null,null,null,null,null,null,null,null,null,null,null,null,null,null,null,null,null,null,null,null,null,null,null,null,null,null,null,null,null,null,null,null,null,null,null,null,null,null,null,null,null,null,null,null,null,null,null,null,null,null,null,null,null,null,null,null,null,null,null,null,null,null,null,null,null,null,null,null,null,null,null,null,null,null,null,null,null,null,null,null,null,null,null,null,null,null,null,null,null,null,null,null,null,null,null,null,null,null,null,null,null,null,null,null,null,null,null,null,null,null,null,null,null,null,null,null,null,null,null,null,null,null,null,null,null,null,null,null,null,null,null,null,null,null,null,null,null,null,null,null,null,null,null,null,null,null,null,null,null,null,null,null,null,null,null,null,null,null,null,null,null,null,null,null,null,null,null,null,null,null,null,null,null,null,null,null,null,null,null,null,null,null,null,null,null,null,null,null,null,null,null,null,null,null,null,null,null,null,null,null,null,null,null,null,null,null,null,null,null,null,null,null,null,null,null,null,null,null,null,null,null,null,null,null,null,null,null,null,null,null,null,null,null,null,null,null,null,null,null,null,null,null,null,null,null,null,null,null,null,null,null,null,null,null,null,null,null,null,null,null,null,null,null,null,null,null,null,null,null,null,null,null,null,null,null,null,null,null,null,null,null,null,null,null,null,null,null,null,null,null,null,null,null,null,null,null,null,null,null,null,null,null,null,null,null,null,null,null,null,null,null,null,null,null,null,null,null,null,null,null,null,null,null,null,null,null,null,null,null,null,null,null,null,null,null,null,null,null,null,null,null,null,null,null,null,null,null,null,null,null,null,null,null,null,null,null,null,null,null,null,null,null,null,null,null,null,null,null,null,null,null,null,null,null,null,null,null,null,null,null,null,null,null,null,null,null,null,null,null,null,null,null,null,null,null,null,null,null,null,null,null,null,null,null,null,null,null,null,null,null,null,null,null,null,null,null,null,null,null,null,null,null,null,null,null,null,null,null,null,null,null,null,null,null,null,null,null,null,null,null,null,null,null,null,null,null,null,null,null,null,null,null,null,null,null,null,null,null,null,null,null,null,null,null,null,null,null,null,null,null,null,null,null,null,null,null,null,null,null,null,null,null,null,null,null,null,null,null,null,null,null,null,null,null,null,null,null,null,null,null,null,null,null,null,null,null,null,null,null,null,null,null,null,null,null,null,null,null,null,null,null,null,null,null,null,null,null,null,null,null,null,null,null,null,null,null,null,null,null,null,null,null,null,null,null,null,null,null,null,null,null,null,null,null,null,null,null,null,null,null,null,null,null,null,null,null,null,null,null,null,null,null,null,null,null,null,null,null,null,null,null,null,null,null,null,null,null,null,null,null,null,null,null,null,null,null,null,null,null,null,null,null,null,null,null,null,null,null,null,null,null,null,null,null,null,null,null,null,null,null,null,null,null,null,null,null,null,null,null,null,null,null,null,null,null,null,null,null,null,null,null,null,null,null,null,null,null,null,null,null,null,null,null,null,null,null,null,null,null,null,null,null,null,null,null,null,null,null,null,null,null,null,null,null,null,null,null,null,null,null,null,null,null,null,null,null,null,null,null,null,null,null,null,null,null,null,null,null,null,null,null,null,null,null,null,null,null,null,null,null,null,null,null,null,null,null,null,null,null,null,null,null,null,null,null,null,null,null,null,null,null,null,null,null,null,null,null,null,null,null,null,null,null,null,null,null,null,null,null,null,null,null,null,null,null,null,null,null,null,null,null,null,null,null,null,null,null,null,null,null,null,null,null,null,null,null,null,null,null,null,null,null,null,null,null,null,null,null,null,null,null,null,null,null,null,null,null,null,null,null,null,null,null,null,null,null,null,null,null,null,null,null,null,null,null,null,null,null,null,null,null,null,null,null,null,null,null,null,null,null,null,null,null,null,null,null,null,null,null,null,null,null,null,null,null,null,null,null,null,null,null,null,null,null,null,null,null,null,null,null,null,null,null,null,null,null,null,null,null,null,null,null,null,null,null,null,null,null,null,null,null,null,null,null,null,null,null,null,null,null,null,null,null,null,null,null,null,null,null,null,null,null,null,null,null,null,null,null,null,null,null,null,null,null,null,null,null,null,null,null,null,null,null,null,null,null,null,null,null,null,null,null,null,null,null,null,null,null,null,null,null,null,null,null,null,null,null,null,null,null,null,null,null,null,null,null,null,null,null,null,null,null,null,null,null,null,null,null,null,null,null,null,null,null,null,null,null,null,null,null,null,null,null,null,null,null,null,null,null,null,null,null,null,null,null,null,null,null,null,null,null,null,null,null,null,null,null,null,null,null,null,null,null,null,null,null,null,null,null,null,null,null,null,null,null,null,null,null,null,null,null,null,null,null,null,null,null,null,null,null,null,null,null,null,null,null,null,null,null,null,null,null,null,null,null,null,null,null,null,null,null,null,null,null,null,null,null,null,null,null,null,null,null,null,null,null,null,null,null,null,null,null,null,null,null,null,null,null,null,null,null,null,null,null,null,null,null,null,null,null,null,null,null,null,null,null,null,null,null,null,null,null,null,null,null,null,null,null,null,null,null,null,null,null,null,null,null,null,null,null,null,null,null,null,null,null,null,null,null,null,null,null,null,null,null,null,null,null,null,null,null,null,null,null,null,null,null,null,null,null,null,null,null,null,null,null,null,null,null,null,null,null,null,null,null,null,null,null,null,null,null,null,null,null,null,null,null,null,null,null,null,null,null,null,null,null,null,null,null,null,null,null,null,null,null,null,null,null,null,null,null,null,null,null,null,null,null,null,null,null,null,null,null,null,null,null,null,null,null,null,null,null,null,null,null,null,null,null,null,null,null,null,null,null,null,null,null,null,null,null,null,null,null,null,null,null,null,null,null,null,null,null,null,null,null,null,null,null,null,null,null,null,null,null,null,null,null,null,null,null,null,null,null,null,null,null,null,null,null,null,null,null,null,null,null,null,null,null,null,null,null,null,null,null,null,null,null,null,null,null,null,null,null,null,null,null,null,null,null,null,null,null,null,null,null,null,null,null,null,null,null,null,null,null,null,null,null,null,null,null,null,null,null,null,null,null,null,null,null,null,null,null,null,null,null,null,null,null,null,null,null,null,null,null,null,null,null,null,null,null,null,null,null,null,null,null,null,null,null,null,null,null,null,null,null,null,null,null,null,null,null,null,null,null,null,null,null,null,null,null,null,null,null,null,null,null,null,null,null,null,null,null,null,null,null,null,null,null,null,null,null,null,null,null,null,null,null,null,null,null,null,null,null,null,null,null,null,null,null,null,null,null,null,null,null,null,null,null,null,null,null,null,null,null,null,null,null,null,null,null,null,null,null,null,null,null,null,null,null,null,null,null,null,null,null,null,null,null,null,null,null,null,null,null,null,null,null,null,null,null,null,null,null,null,null,null,null,null,null,null,null,null,null,null,null,null,null,null,null,null,null,null,null,null,null,null,null,null,null,null,null,null,null,null,null,null,null,null,null,null,null,null,null,null,null,null,null,null,null,null,null,null,null,null,null,null,null,null,null,null,null,null,null,null,null,null,null,null,null,null,null,null,null,null,null,null,null,null,null,null,null,null,null,null,null,null,null,null,null,null,null,null,null,null,null,null,null,null,null,null,null,null,null,null,null,null,null,null,null,null,null,null,null,null,null,null,null,null,null,null,null,null,null,null,null,null,null,null,null,null,null,null,null,null,null,null,null,null,null,null,null,null,null,null,null,null,null,null,null,null,null,null,null,null,null,null,null,null,null,null,null,null,null,null,null,null,null,null,null,null,null,null,null,null,null,null,null,null,null,null,null,null,null,null,null,null,null,null,null,null,null,null,null,null,null,null,null,null,null,null,null,null,null,null,null,null,null,null,null,null,null,null,null,null,null,null,null,null,null,null,null,null,null,null,null,null,null,null,null,null,null,null,null,null,null,null,null,null,null,null,null,null,null,null,null,null,null,null,null,null,null,null,null,null,null,null,null,null,null,null,null,null,null,null,null,null,null,null,null,null,null,null,null,null,null,null,null,null,null,null,null,null,null,null,null,null,null,null,null,null,null,null,null,null,null,null,null,null,null,null,null,null,null,null,null,null,null,null,null,null,null,null,null,null,null,null,null,null,null,null,null,null,null,null,null,null,null,null,null,null,null,null,null,null,null,null,null,null,null,null,null,null,null,null,null,null,null,null,null,null,null,null,null,null,null,null,null,null,null,null,null,null,null,null,null,null,null,null,null,null,null,null,null,null,null,null,null,null,null,null,null,null,null,null,null,null,null,null,null,null,null,null,null,null,null,null,null,null,null,null,null,null,null,null,null,null,null,null,null,null,null,null,null,null,null,null,null,null,null,null,null,null,null,null,null,null,null,null,null,null,null,null,null,null,null,null,null,null,null,null,null,null,null,null,null,null,null,null,null,null,null,null,null,null,null,null,null,null,null,null,null,null,null,null,null,null,null,null,null,null,null,null,null,null,null,null,null,null,null,null,null,null,null,null,null,null,null,null,null,null,null,null,null,null,null,null,null,null,null,null,null,null,null,null,null,null,null,null,null,null,null,null,null,null,null,null,null,null,null,null,null,null,null,null,null,null,null,null,null,null,null,null,null,null,null,null,null,null,null,null,null,null,null,null,null,null,null,null,null,null,null,null,null,null,null,null,null,null,null,null,null,null,null,null,null,null,null,null,null,null,null,null,null,null,null,null,null,null,null,null,null,null,null,null,null,null,null,null,null,null,null,null,null,null,null,null,null,null,null,null,null,null,null,null,null,null,null,null,null,null,null,null,null,null,null,null,null,null,null,null,null,null,null,null,null,null,null,null,null,null,null,null,null,null,null,null,null,null,null,null,null,null,null,null,null,null,null,null,null,null,null,null,null,null,null,null,null,null,null,null,null,null,null,null,null,null,null,null,null,null,null,null,null,null,null,null,null,null,null,null,null,null,null,null,null,null,null,null,null,null,null,null,null,null,null,null,null,null,null,null,null,null,null,null,null,null,null,null,null,null,null,null,null,null,null,null,null,null,null,null,null,null,null,null,null,null,null,null,null,null,null,null,null,null,null,null,null,null,null,null,null,null,null,null,null,null,null,null,null,null,null,null,null,null,null,null,null,null,null,null,null,null,null,null,null,null,null,null,null,null,null,null,null,null,null,null,null,null,null,null,null,null,null,null,null,null,null,null,null,null,null,null,null,null,null,null,null,null,null,null,null,null,null,null,null,null,null,null,null,null,null,null,null,null,null,null,null,null,null,null,null,null,null,null,null,null,null,null,null,null,null,null,null,null,null,null,null,null,null,null,null,null,null,null,null,null,null,null,null,null,null,null,null,null,null,null,null,null,null,null,null,null,null,null,null,null,null,null,null,null,null,null,null,null,null,null,null,null,null,null,null,null,null,null,null,null,null,null,null,null,null,null,null,null,null,null,null,null,null,null,null,null,null,null,null,null,null,null,null,null,null,null,null,null,null,null,null,null,null,null,null,null,null,null,null,null,null,null,null,null,null,null,null,null,null,null,null,null,null,null,null,null,null,null,null,null,null,null,null,null,null,null,null,null,null,null,null,null,null,null,null,null,null,null,null,null,null,null,null,null,null,null,null,null,null,null,null,null,null,null,null,null,null,null,null,null,null,null,null,null,null,null,null,null,null,null,null,null,null,null,null,null,null,null,null,null,null,null,null,null,null,null,null,null,null,null,null,null,null,null,null,null,null,null,null,null,null,null,null,null,null,null,null,null,null,null,null,null,null,null,null,null,null,null,null,null,null,null,null,null,null,null,null,null,null,null,null,null,null,null,null,null,null,null,null,null,null,null,null,null,null,null,null,null,null,null,null,null,null,null,null,null,null,null,null,null,null,null,null,null,null,null,null,null,null,null,null,null,null,null,null,null,null,null,null,null,null,null,null,null,null,null,null,null,null,null,null,null,null,null,null,null,null,null,null,null,null,null,null,null,null,null,null,null,null,null,null,null,null,null,null,null,null,null,null,null,null,null,null,null,null,null,null,null,null,null,null,null,null,null,null,null,null,null,null,null,null,null,null,null,null,null,null,null,null,null,null,null,null,null,null,null,null,null,null,null,null,null,null,null,null,null,null,null,null,null,null,null,null,null,null,null,null,null,null,null,null,null,null,null,null,null,null,null,null,null,null,null,null,null,null,null,null,null,null,null,null,null,null,null,null,null,null,null,null,null,null,null,null,null,null,null,null,null,null,null,null,null,null,null,null,null,null,null,null,null,null,null,null,null,null,null,null,null,null,null,null,null,null,null,null,null,null,null,null,null,null,null,null,null,null,null,null,null,null,null,null,null,null,null,null,null,null,null,null,null,null,null,null,null,null,null,null,null,null,null,null,null,null,null,null,null,null,null,null,null,null,null,null,null,null,null,null,null,null,null,null,null,null,null,null,null,null,null,null,null,null,null,null,null,null,null,null,null,null,null,null,null,null,null,null,null,null,null,null,null,null,null,null,null,null,null,null,null,null,null,null,null,null,null,null,null,null,null,null,null,null,null,null,null,null,null,null,null,null,null,null,null,null,null,null,null,null,null,null,null,null,null,null,null,null,null,null,null,null,null,null,null,null,null,null,null,null,null,null,null,null,null,null,null,null,null,null,null,null,null,null,null,null,null,null,null,null,null,null,null,null,null,null,null,null,null,null,null,null,null,null,null,null,null,null,null,null,null,null,null,null,null,null,null,null,null,null,null,null,null,null,null,null,null,null,null,null,null,null,null,null,null,null,null,null,null,null,null,null,null,null,null,null,null,null,null,null,null,null,null,null,null,null,null,null,null,null,null,null,null,null,null,null,null,null,null,null,null,null,null,null,null,null,null,null,null,null,null,null,null,null,null,null,null,null,null,null,null,null,null,null,null,null,null,null,null,null,null,null,null,null,null,null,null,null,null,null,null,null,null,null,null,null,null,null,null,null,null,null,null,null,null,null,null,null,null,null,null,null,null,null,null,null,null,null,null,null,null,null,null,null,null,null,null,null,null,null,null,null,null,null,null,null,null,null,null,null,null,null,null,null,null,null,null,null,null,null,null,null,null,null,null,null,null,null,null,null,null,null,null,null,null,null,null,null,null,null,null,null,null,null,null,null,null,null,null,null,null,null,null,null,null,null,null,null,null,null,null,null,null,null,null,null,null,null,null,null,null,null,null,null,null,null,null,null,null,null,null,null,null,null,null,null,null,null,null,null,null,null,null,null,null,null,null,null,null,null,null,null,null,null,null,null,null,null,null,null,null,null,null,null,null,null,null,null,null,null,null,null,null,null,null,null,null,null,null,null,null,null,null,null,null,null,null,null,null,null,null,null,null,null,null,null,null,null,null,null,null,null,null,null,null,null,null,null,null,null,null,null,null,null,null,null,null,null,null,null,null,null,null,null,null,null,null,null,null,null,null,null,null,null,null,null,null,null,null,null,null,null,null,null,null,null,null,null,null,null,null,null,null,null,null,null,null,null,null,null,null,null,null,null,null,null,null,null,null,null,null,null,null,null,null,null,null,null,null,null,null,null,null,null,null,null,null,null,null,null,null,null,null,null,null,null,null,null,null,null,null,null,null,null,null,null,null,null,null,null,null,null,null,null,null,null,null,null,null,null,null,null,null,null,null,null,null,null,null,null,null,null,null,null,null,null,null,null,null,null,null,null,null,null,null,null,null,null,null,null,null,null,null,null,null,null,null,null,null,null,null,null,null,null,null,null,null,null,null,null,null,null,null,null,null,null,null,null,null,null,null,null,null,null,null,null,null,null,null,null,null,null,null,null,null,null,null,null,null,null,null,null,null,null,null,null,null,null,null,null,null,null,null,null,null,null,null,null,null,null,null,null,null,null,null,null,null,null,null,null,null,null,null,null,null,null,null,null,null,null,null,null,null,null,null,null,null,null,null,null,null,null,null,null,null,null,null,null,null,null,null,null,null,null,null,null,null,null,null,null,null,null,null,null,null,null,null,null,null,null,null,null,null,null,null,null,null,null,null,null,null,null,null,null,null,null,null,null,null,null,null,null,null,null,null,null,null,null,null,null,null,null,null,null,null,null,null,null,null,null,null,null,null,null,null,null,null,null,null,null,null,null,null,null,null,null,null,null,null,null,null,null,null,null,null,null,null,null,null,null,null,null,null,null,null,null,null,null,null,null,null,null,null,null,null,null,null,null,null,null,null,null,null,null,null,null,null,null,null,null,null,null,null,null,null,null,null,null,null,null,null,null,null,null,null,null,null,null,null,null,null,null,null,null,null,null,null,null,null,null,null,null,null,null,null,null,null,null,null,null,null,null,null,null,null,null,null,null,null,null,null,null,null,null,null,null,null,null,null,null,null,null,null,null,null,null,null,null,null,null,null,null,null,null,null,null,null,null,null,null,null,null,null,null,null,null,null,null,null,null,null,null,null,null,null,null,null,null,null,null,null,null,null,null,null,null,null,null,null,null,null,null,null,null,null,null,null,null,null,null,null,null,null,null,null,null,null,null,null,null,null,null,null,null,null,null,null,null,null,null,null,null,null,null,null,null,null,null,null,null,null,null,null,null,null,null,null,null,null,null,null,null,null,null,null,null,null,null,null,null,null,null,null,null,null,null,null,null,null,null,null,null,null,null,null,null,null,null,null,null,null,null,null,null,null,null,null,null,null,null,null,null,null,null,null,null,null,null,null,null,null,null,null,null,null,null,null,null,null,null,null,null,null,null,null,null,null,null,null,null,null,null,null,null,null,null,null,null,null,null,null,null,null,null,null,null,null,null,null,null,null,null,null,null,null,null,null,null,null,null,null,null,null,null,null,null,null,null,null,null,null,null,null,null,null,null,null,null,null,null,null,null,null,null,null,null,null,null,null,null,null,null,null,null,null,null,null,null,null,null,null,null,null,null,null,null,null,null,null,null,null,null,null,null,null,null,null,null,null,null,null,null,null,null,null,null,null,null,null,null,null,null,null,null,null,null,null,null,null,null,null,null,null,null,null,null,null,null,null,null,null,null,null,null,null,null,null,null,null,null,null,null,null,null,null,null,null,null,null,null,null,null,null,null,null,null,null,null,null,null,null,null,null,null,null,null,null,null,null,null,null,null,null,null,null,null,null,null,null,null,null,null,null,null,null,null,null,null,null,null,null,null,null,null,null,null,null,null,null,null,null,null,null,null,null,null,null,null,null,null,null,null,null,null,null,null,null,null,null,null,null,null,null,null,null,null,null,null,null,null,null,null,null,null,null,null,null,null,null,null,null,null,null,null,null,null,null,null,null,null,null,null,null,null,null,null,null,null,null,null,null,null,null,null,null,null,null,null,null,null,null,null,null,null,null,null,null,null,null,null,null,null,null,null,null,null,null,null,null,null,null,null,null,null,null,null,null,null,null,null,null,null,null,null,null,null,null,null,null,null,null,null,null,null,null,null,null,null,null,null,null,null,null,null,null,null,null,null,null,null,null,null,null,null,null,null,null,null,null,null,null,null,null,null,null,null,null,null,null,null,null,null,null,null,null,null,null,null,null,null,null,null,null,null,null,null,null,null,null,null,null,null,null,null,null,null,null,null,null,null,null,null,null,null,null,null,null,null,null,null,null,null,null,null,null,null,null,null,null,null,null,null,null,null,null,null,null,null,null,null,null,null,null,null,null,null,null,null,null,null,null,null,null,null,null,null,null,null,null,null,null,null,null,null,null,null,null,null,null,null,null,null,null,null,null,null,null,null,null,null,null,null,null,null,null,null,null,null,null,null,null,null,null,null,null,null,null,null,null,null,null,null,null,null,null,null,null,null,null,null,null,null,null,null,null,null,null,null,null,null,null,null,null,null,null,null,null,null,null,null,null,null,null,null,null,null,null,null,null,null,null,null,null,null,null,null,null,null,null,null,null,null,null,null,null,null,null,null,null,null,null,null,null,null,null,null,null,null,null,null,null,null,null,null,null,null,null,null,null,null,null,null,null,null,null,null,null,null,null,null,null,null,null,null,null,null,null,null,null,null,null,null,null,null,null,null,null,null,null,null,null,null,null,null,null,null,null,null,null,null,null,null,null,null,null,null,null,null,null,null,null,null,null,null,null,null,null,null,null,null,null,null,null,null,null,null,null,null,null,null,null,null,null,null,null,null,null,null,null,null,null,null,null,null,null,null,null,null,null,null,null,null,null,null,null,null,null,null,null,null,null,null,null,null,null,null,null,null,null,null,null,null,null,null,null,null,null,null,null,null,null,null,null,null,null,null,null,null,null,null,null,null,null,null,null,null,null,null,null,null,null,null,null,null,null,null,null,null,null,null,null,null,null,null,null,null,null,null,null,null,null,null,null,null,null,null,null,null,null,null,null,null,null,null,null,null,null,null,null,null,null,null,null,null,null,null,null,null,null,null,null,null,null,null,null,null,null,null,null,null,null,null,null,null,null,null,null,null,null,null,null,null,null,null,null,null,null,null,null,null,null,null,null,null,null,null,null,null,null,null,null,null,null,null,null,null,null,null,null,null,null,null,null,null,null,null,null,null,null,null,null,null,null,null,null,null,null,null,null,null,null,null,null,null,null,null,null,null,null,null,null,null,null,null,null,null,null,null,null,null,null,null,null,null,null,null,null,null,null,null,null,null,null,null,null,null,null,null,null,null,null,null,null,null,null,null,null,null,null,null,null,null,null,null,null,null,null,null,null,null,null,null,null,null,null,null,null,null,null,null,null,null,null,null,null,null,null,null,null,null,null,null,null,null,null,null,null,null,null,null,null,null,null,null,null,null,null,null,null,null,null,null,null,null,null,null,null,null,null,null,null,null,null,null,null,null,null,null,null,null,null,null,null,null,null,null,null,null,null,null,null,null,null,null,null,null,null,null,null,null,null,null,null,null,null,null,null,null,null,null,null,null,null,null,null,null,null,null,null,null,null,null,null,null,null,null,null,null,null,null,null,null,null,null,null,null,null,null,null,null,null,null,null,null,null,null,null,null,null,null,null,null,null,null,null,null,null,null,null,null,null,null,null,null,null,null,null,null,null,null,null,null,null,null,null,null,null,null,null,null,null,null,null,null,null,null,null,null,null,null,null,null,null,null,null,null,null,null,null,null,null,null,null,null,null,null,null,null,null,null,null,null,null,null,null,null,null,null,null,null,null,null,null,null,null,null,null,null,null,null,null,null,null,null,null,null,null,null,null,null,null,null,null,null,null,null,null,null,null,null,null,null,null,null,null,null,null,null,null,null,null,null,null,null,null,null,null,null,null,null,null,null,null,null,null,null,null,null,null,null,null,null,null,null,null,null,null,null,null,null,null,null,null,null,null,null,null,null,null,null,null,null,null,null,null,null,null,null,null,null,null,null,null,null,null,null,null,null,null,null,null,null,null,null,null,null,null,null,null,null,null,null,null,null,null,null,null,null,null,null,null,null,null,null,null,null,null,null,null,null,null,null,null,null,null,null,null,null,null,null,null,null,null,null,null,null,null,null,null,null,null,null,null,null,null,null,null,null,null,null,null,null,null,null,null,null,null,null,null,null,null,null,null,null,null,null,null,null,null,null,null,null,null,null,null,null,null,null,null,null,null,null,null,null,null,null,null,null,null,null,null,null,null,null,null,null,null,null,null,null,null,null,null,null,null,null,null,null,null,null,null,null,null,null,null,null,null,null,null,null,null,null,null,null,null,null,null,null,null,null,null,null,null,null,null,null,null,null,null,null,null,null,null,null,null,null,null,null,null,null,null,null,null,null,null,null,null,null,null,null,null,null,null,null,null,null,null,null,null,null,null,null,null,null,null,null,null,null,null,null,null,null,null,null,null,null,null,null,null,null,null,null,null,null,null,null,null,null,null,null,null,null,null,null,null,null,null,null,null,null,null,null,null,null,null,null,null,null,null,null,null,null,null,null,null,null,null,null,null,null,null,null,null,null,null,null,null,null,null,null,null,null,null,null,null,null,null,null,null,null,null,null,null,null,null,null,null,null,null,null,null,null,null,null,null,null,null,null,null,null,null,null,null,null,null,null,null,null,null,null,null,null,null,null,null,null,null,null,null,null,null,null,null,null,null,null,null,null,null,null,null,null,null,null,null,null,null,null,null,null,null,null,null,null,null,null,null,null,null,null,null,null,null,null,null,null,null,null,null,null,null,null,null,null,null,null,null,null,null,null,null,null,null,null,null,null,null,null,null,null,null,null,null,null,null,null,null,null,null,null,null,null,null,null,null,null,null,null,null,null,null,null,null,null,null,null,null,null,null,null,null,null,null,null,null,null,null,null,null,null,null,null,null,null,null,null,null,null,null,null,null,null,null,null,null,null,null,null,null,null,null,null,null,null,null,null,null,null,null,null,null,null,null,null,null,null,null,null,null,null,null,null,null,null,null,null,null,null,null,null,null,null,null,null,null,null,null,null,null,null,null,null,null,null,null,null,null,null,null,null,null,null,null,null,null,null,null,null,null,null,null,null,null,null,null,null,null,null,null,null,null,null,null,null,null,null,null,null,null,null,null,null,null,null,null,null,null,null,null,null,null,null,null,null,null,null,null,null,null,null,null,null,null,null,null,null,null,null,null,null,null,null,null,null,null,null,null,null,null,null,null,null,null,null,null,null,null,null,null,null,null,null,null,null,null,null,null,null,null,null,null,null,null,null,null,null,null,null,null,null,null,null,null,null,null,null,null,null,null,null,null,null,null,null,null,null,null,null,null,null,null,null,null,null,null,null,null,null,null,null,null,null,null,null,null,null,null,null,null,null,null,null,null,null,null,null,null,null,null,null,null,null,null,null,null,null,null,null,null,null,null,null,null,null,null,null,null,null,null,null,null,null,null,null,null,null,null,null,null,null,null,null,null,null,null,null,null,null,null,null,null,null,null,null,null,null,null,null,null,null,null,null,null,null,null,null,null,null,null,null,null,null,null,null,null,null,null,null,null,null,null,null,null,null,null,null,null,null,null,null,null,null,null,null,null,null,null,null,null,null,null,null,null,null,null,null,null,null,null,null,null,null,null,null,null,null,null,null,null,null,null,null,null,null,null,null,null,null,null,null,null,null,null,null,null,null,null,null,null,null,null,null,null,null,null,null,null,null,null,null,null,null,null,null,null,null,null,null,null,null,null,null,null,null,null,null,null,null,null,null,null,null,null,null,null,null,null,null,null,null,null,null,null,null,null,null,null,null,null,null,null,null,null,null,null,null,null,null,null,null,null,null,null,null,null,null,null,null,null,null,null,null,null,null,null,null,null,null,null,null,null,null,null,null,null,null,null,null,null,null,null,null,null,null,null,null,null,null,null,null,null,null,null,null,null,null,null,null,null,null,null,null,null,null,null,null,null,null,null,null,null,null,null,null,null,null,null,null,null,null,null,null,null,null,null,null,null,null,null,null,null,null,null,null,null,null,null,null,null,null,null,null,null,null,null,null,null,null,null,null,null,null,null,null,null,null,null,null,null,null,null,null,null,null,null,null,null,null,null,null,null,null,null,null,null,null,null,null,null,null,null,null,null,null,null,null,null,null,null,null,null,null,null,null,null,null,null,null,null,null,null,null,null,null,null,null,null,null,null,null,null,null,null,null,null,null,null,null,null,null,null,null,null,null,null,null,null,null,null,null,null,null,null,null,null,null,null,null,null,null,null,null,null,null,null,null,null,null,null,null,null,null,null,null,null,null,null,null,null,null,null,null,null,null,null,null,null,null,null,null,null,null,null,null,null,null,null,null,null,null,null,null,null,null,null,null,null,null,null,null,null,null,null,null,null,null,null,null,null,null,null,null,null,null,null,null,null,null,null,null,null,null,null,null,null,null,null,null,null,null,null,null,null,null,null,null,null,null,null,null,null,null,null,null,null,null,null,null,null,null,null,null,null,null,null,null,null,null,null,null,null,null,null,null,null,null,null,null,null,null,null,null,null,null,null,null,null,null,null,null,null,null,null,null,null,null,null,null,null,null,null,null,null,null,null,null,null,null,null,null,null,null,null,null,null,null,null,null,null,null,null,null,null,null,null,null,null,null,null,null,null,null,null,null,null,null,null,null,null,null,null,null,null,null,null,null,null,null,null,null,null,null,null,null,null,null,null,null,null,null,null,null,null,null,null,null,null,null,null,null,null,null,null,null,null,null,null,null,null,null,null,null,null,null,null,null,null,null,null,null,null,null,null,null,null,null,null,null,null,null,null,null,null,null,null,null,null,null,null,null,null,null,null,null,null,null,null,null,null,null,null,null,null,null,null,null,null,null,null,null,null,null,null,null,null,null,null,null,null,null,null,null,null,null,null,null,null,null,null,null,null,null,null,null,null,null,null,null,null,null,null,null,null,null,null,null,null,null,null,null,null,null,null,null,null,null,null,null,null,null,null,null,null,null,null,null,null,null,null,null,null,null,null,null,null,null,null,null,null,null,null,null,null,null,null,null,null,null,null,null,null,null,null,null,null,null,null,null,null,null,null,null,null,null,null,null,null,null,null,null,null,null,null,null,null,null,null,null,null,null,null,null,null,null,null,null,null,null,null,null,null,null,null,null,null,null,null,null,null,null,null,null,null,null,null,null,null,null,null,null,null,null,null,null,null,null,null,null,null,null,null,null,null,null,null,null,null,null,null,null,null,null,null,null,null,null,null,null,null,null,null,null,null,null,null,null,null,null,null,null,null,null,null,null,null,null,null,null,null,null,null,null,null,null,null,null,null,null,null,null,null,null,null,null,null,null,null,null,null,null,null,null,null,null,null,null,null,null,null,null,null,null,null,null,null,null,null,null,null,null,null,null,null,null,null,null,null,null,null,null,null,null,null,null,null,null,null,null,null,null,null,null,null,null,null,null,null,null,null,null,null,null,null,null,null,null,null,null,null,null,null,null,null,null,null,null,null,null,null,null,null,null,null,null,null,null,null,null,null,null,null,null,null,null,null,null,null,null,null,null,null,null,null,null,null,null,null,null,null,null,null,null,null,null,null,null,null,null,null,null,null,null,null,null,null,null,null,null,null,null,null,null,null,null,null,null,null,null,null,null,null,null,null,null,null,null,null,null,null,null,null,null,null,null,null,null,null,null,null,null,null,null,null,null,null,null,null,null,null,null,null,null,null,null,null,null,null,null,null,null,null,null,null,null,null,null,null,null,null,null,null,null,null,null,null,null,null,null,null,null,null,null,null,null,null,null,null,null,null,null,null,null,null,null,null,null,null,null,null,null,null,null,null,null,null,null,null,null,null,null,null,null,null,null,null,null,null,null,null,null,null,null,null,null,null,null,null,null,null,null,null,null,null,null,null,null,null,null,null,null,null,null,null,null,null,null,null,null,null,null,null,null,null,null,null,null,null,null,null,null,null,null,null,null,null,null,null,null,null,null,null,null,null,null,null,null,null,null,null,null,null,null,null,null,null,null,null,null,null,null,null,null,null,null,null,null,null,null,null,null,null,null,null,null,null,null,null,null,null,null,null,null,null,null,null,null,null,null,null,null,null,null,null,null,null,null,null,null,null,null,null,null,null,null,null,null,null,null,null,null,null,null,null,null,null,null,null,null,null,null,null,null,null,null,null,null,null,null,null,null,null,null,null,null,null,null,null,null,null,null,null,null,null,null,null,null,null,null,null,null,null,null,null,null,null,null,null,null,null,null,null,null,null,null,null,null,null,null,null,null,null,null,null,null,null,null,null,null,null,null,null,null,null,null,null,null,null,null,null,null,null,null,null,null,null,null,null,null,null,null,null,null,null,null,null,null,null,null,null,null,null,null,null,null,null,null,null,null,null,null,null,null,null,null,null,null,null,null,null,null,null,null,null,null,null,null,null,null,null,null,null,null,null,null,null,null,null,null,null,null,null,null,null,null,null,null,null,null,null,null,null,null,null,null,null,null,null,null,null,null,null,null,null,null,null,null,null,null,null,null,null,null,null,null,null,null,null,null,null,null,null,null,null,null,null,null,null,null,null,null,null,null,null,null,null,null,null,null,null,null,null,null,null,null,null,null,null,null,null,null,null,null,null,null,null,null,null,null,null,null,null,null,null,null,null,null,null,null,null,null,null,null,null,null,null,null,null,null,null,null,null,null,null,null,null,null,null,null,null,null,null,null,null,null,null,null,null,null,null,null,null,null,null,null,null,null,null,null,null,null,null,null,null,null,null,null,null,null,null,null,null,null,null,null,null,null,null,null,null,null,null,null,null,null,null,null,null,null,null,null,null,null,null,null,null,null,null,null,null,null,null,null,null,null,null,null,null,null,null,null,null,null,null,null,null,null,null,null,null,null,null,null,null,null,null,null,null,null,null,null,null,null,null,null,null,null,null,null,null,null,null,null,null,null,null,null,null,null,null,null,null,null,null,null,null,null,null,null,null,null,null,null,null,null,null,null,null,null,null,null,null,null,null,null,null,null,null,null,null,null,null,null,null,null,null,null,null,null,null,null,null,null,null,null,null,null,null,null,null,null,null,null,null,null,null,null,null,null,null,null,null,null,null,null,null,null,null,null,null,null,null,null,null,null,null,null,null,null,null,null,null,null,null,null,null,null,null,null,null,null,null,null,null,null,null,null,null,null,null,null,null,null,null,null,null,null,null,null,null,null,null,null,null,null,null,null,null,null,null,null,null,null,null,null,null,null,null,null,null,null,null,null,null,null,null,null,null,null,null,null,null,null,null,null,null,null,null,null,null,null,null,null,null,null,null,null,null,null,null,null,null,null,null,null,null,null,null,null,null,null,null,null,null,null,null,null,null,null,null,null,null,null,null,null,null,null,null,null,null,null,null,null,null,null,null,null,null,null,null,null,null,null,null,null,null,null,null,null,null,null,null,null,null,null,null,null,null,null,null,null,null,null,null,null,null,null,null,null,null,null,null,null,null,null,null,null,null,null,null,null,null,null,null,null,null,null,null,null,null,null,null,null,null,null,null,null,null,null,null,null,null,null,null,null,null,null,null,null,null,null,null,null,null,null,null,null,null,null,null,null,null,null,null,null,null,null,null,null,null,null,null,null,null,null,null,null,null,null,null,null,null,null,null,null,null,null,null,null,null,null,null,null,null,null,null,null,null,null,null,null,null,null,null,null,null,null,null,null,null,null,null,null,null,null,null,null,null,null,null,null,null,null,null,null,null,null,null,null,null,null,null,null,null,null,null,null,null,null,null,null,null,null,null,null,null,null,null,null,null,null,null,null,null,null,null,null,null,null,null,null,null,null,null,null,null,null,null,null,null,null,null,null,null,null,null,null,null,null,null,null,null,null,null,null,null,null,null,null,null,null,null,null,null,null,null,null,null,null,null,null,null,null,null,null,null,null,null,null,null,null,null,null,null,null,null,null,null,null,null,null,null,null,null,null,null,null,null,null,null,null,null,null,null,null,null,null,null,null,null,null,null,null,null,null,null,null,null,null,null,null,null,null,null,null,null,null,null,null,null,null,null,null,null,null,null,null,null,null,null,null,null,null,null,null,null,null,null,null,null,null,null,null,null,null,null,null,null,null,null,null,null,null,null,null,null,null,null,null,null,null,null,null,null,null,null,null,null,null,null,null,null,null,null,null,null,null,null,null,null,null,null,null,null,null,null,null,null,null,null,null,null,null,null,null,null,null,null,null,null,null,null,null,null,null,null,null,null,null,null,null,null,null,null,null,null,null,null,null,null,null,null,null,null,null,null,null,null,null,null,null,null,null,null,null,null,null,null,null,null,null,null,null,null,null,null,null,null,null,null,null,null,null,null,null,null,null,null,null,null,null,null,null,null,null,null,null,null,null,null,null,null,null,null,null,null,null,null,null,null,null,null,null,null,null,null,null,null,null,null,null,null,null,null,null,null,null,null,null,null,null,null,null,null,null,null,null,null,null,null,null,null,null,null,null,null,null,null,null,null,null,null,null,null,null,null,null,null,null,null,null,null,null,null,null,null,null,null,null,null,null,null,null,null,null,null,null,null,null,null,null,null,null,null,null,null,null,null,null,null,null,null,null,null,null,null,null,null,null,null,null,null,null,null,null,null,null,null,null,null,null,null,null,null,null,null,null,null,null,null,null,null,null,null,null,null,null,null,null,null,null,null,null,null,null,null,null,null,null,null,null,null,null,null,null,null,null,null,null,null,null,null,null,null,null,null,null,null,null,null,null,null,null,null,null,null,null,null,null,null,null,null,null,null,null,null,null,null,null,null,null,null,null,null,null,null,null,null,null,null,null,null,null,null,null,null,null,null,null,null,null,null,null,null,null,null,null,null,null,null,null,null,null,null,null,null,null,null,null,null,null,null,null,null,null,null,null,null,null,null,null,null,null,null,null,null,null,null,null,null,null,null,null,null,null,null,null,null,null,null,null,null,null,null,null,null,null,null,null,null,null,null,null,null,null,null,null,null,null,null,null,null,null,null,null,null,null,null,null,null,null,null,null,null,null,null,null,null,null,null,null,null,null,null,null,null,null,null,null,null,null,null,null,null,null,null,null,null,null,null,null,null,null,null,null,null,null,null,null,null,null,null,null,null,null,null,null,null,null,null,null,null,null,null,null,null,null,null,null,null,null,null,null,null,null,null,null,null,null,null,null,null,null,null,null,null,null,null,null,null,null,null,null,null,null,null,null,null,null,null,null,null,null,null,null,null,null,null,null,null,null,null,null,null,null,null,null,null,null,null,null,null,null,null,null,null,null,null,null,null,null,null,null,null,null,null,null,null,null,null,null,null,null,null,null,null,null,null,null,null,null,null,null,null,null,null,null,null,null,null,null,null,null,null,null,null,null,null,null,null,null,null,null,null,null,null,null,null,null,null,null,null,null,null,null,null,null,null,null,null,null,null,null,null,null,null,null,null,null,null,null,null,null,null,null,null,null,null,null,null,null,null,null,null,null,null,null,null,null,null,null,null,null,null,null,null,null,null,null,null,null,null,null,null,null,null,null,null,null,null,null,null,null,null,null,null,null,null,null,null,null,null,null,null,null,null,null,null,null,null,null,null,null,null,null,null,null,null,null,null,null,null,null,null,null,null,null,null,null,null,null,null,null,null,null,null,null,null,null,null,null,null,null,null,null,null,null,null,null,null,null,null,null,null,null,null,null,null,null,null,null,null,null,null,null,null,null,null,null,null,null,null,null,null,null,null,null,null,null,null,null,null,null,null,null,null,null,null,null,null,null,null,null,null,null,null,null,null,null,null,null,null,null,null,null,null,null,null,null,null,null,null,null,null,null,null,null,null,null,null,null,null,null,null,null,null,null,null,null,null,null,null,null,null,null,null,null,null,null,null,null,null,null,null,null,null,null,null,null,null,null,null,null,null,null,null,null,null,null,null,null,null,null,null,null,null,null,null,null,null,null,null,null,null,null,null,null,null,null,null,null,null,null,null,null,null,null,null,null,null,null,null,null,null,null,null,null,null,null,null,null,null,null,null,null,null,null,null,null,null,null,null,null,null,null,null,null,null,null,null,null,null,null,null,null,null,null,null,null,null,null,null,null,null,null,null,null,null,null,null,null,null,null,null,null,null,null,null,null,null,null,null,null,null,null,null,null,null,null,null,null,null,null,null,null,null,null,null,null,null,null,null,null,null,null,null,null,null,null,null,null,null,null,null,null,null,null,null,null,null,null,null,null,null,null,null,null,null,null,null,null,null,null,null,null,null,null,null,null,null,null,null,null,null,null,null,null,null,null,null,null,null,null,null,null,null,null,null,null,null,null,null,null,null,null,null,null,null,null,null,null,null,null,null,null,null,null,null,null,null,null,null,null,null,null,null,null,null,null,null,null,null,null,null,null,null,null,null,null,null,null,null,null,null,null,null,null,null,null,null,null,null,null,null,null,null,null,null,null,null,null,null,null,null,null,null,null,null,null,null,null,null,null,null,null,null,null,null,null,null,null,null,null,null,null,null,null,null,null,null,null,null,null,null,null,null,null,null,null,null,null,null,null,null,null,null,null,null,null,null,null,null,null,null,null,null,null,null,null,null,null,null,null,null,null,null,null,null,null,null,null,null,null,null,null,null,null,null,null,null,null,null,null,null,null,null,null,null,null,null,null,null,null,null,null,null,null,null,null,null,null,null,null,null,null,null,null,null,null,null,null,null,null,null,null,null,null,null,null,null,null,null,null,null,null,null,null,null,null,null,null,null,null,null,null,null,null,null,null,null,null,null,null,null,null,null,null,null,null,null,null,null,null,null,null,null,null,null,null,null,null,null,null,null,null,null,null,null,null,null,null,null,null,null,null,null,null,null,null,null,null,null,null,null,null,null,null,null,null,null,null,null,null,null,null,null,null,null,null,null,null,null,null,null,null,null,null,null,null,null,null,null,null,null,null,null,null,null,null,null,null,null,null,null,null,null,null,null,null,null,null,null,null,null,null,null,null,null,null,null,null,null,null,null,null,null,null,null,null,null,null,null,null,null,null,null,null,null,null,null,null,null,null,null,null,null,null,null,null,null,null,null,null,null,null,null,null,null,null,null,null,null,null,null,null,null,null,null,null,null,null,null,null,null,null,null,null,null,null,null,null,null,null,null,null,null,null,null,null,null,null,null,null,null,null,null,null,null,null,null,null,null,null,null,null,null,null,null,null,null,null,null,null,null,null,null,null,null,null,null,null,null,null,null,null,null,null,null,null,null,null,null,null,null,null,null,null,null,null,null,null,null,null,null,null,null,null,null,null,null,null,null,null,null,null,null,null,null,null,null,null,null,null,null,null,null,null,null,null,null,null,null,null,null,null,null,null,null,null,null,null,null,null,null,null,null,null,null,null,null,null,null,null,null,null,null,null,null,null,null,null,null,null,null,null,null,null,null,null,null,null,null,null,null,null,null,null,null,null,null,null,null,null,null,null,null,null,null,null,null,null,null,null,null,null,null,null,null,null,null,null,null,null,null,null,null,null,null,null,null,null,null,null,null,null,null,null,null,null,null,null,null,null,null,null,null,null,null,null,null,null,null,null,null,null,null,null,null,null,null,null,null,null,null,null,null,null,null,null,null,null,null,null,null,null,null,null,null,null,null,null,null,null,null,null,null,null,null,null,null,null,null,null,null,null,null,null,null,null,null,null,null,null,null,null,null,null,null,null,null,null,null,null,null,null,null,null,null,null,null,null,null,null,null,null,null,null,null,null,null,null,null,null,null,null,null,null,null,null,null,null,null,null,null,null,null,null,null,null,null,null,null,null,null,null,null,null,null,null,null,null,null,null,null,null,null,null,null,null,null,null,null,null,null,null,null,null,null,null,null,null,null,null,null,null,null,null,null,null,null,null,null,null,null,null,null,null,null,null,null,null,null,null,null,null,null,null,null,null,null,null,null,null,null,null,null,null,null,null,null,null,null,null,null,null,null,null,null,null,null,null,null,null,null,null,null,null,null,null,null,null,null,null,null,null,null,null,null,null,null,null,null,null,null,null,null,null,null,null,null,null,null,null,null,null,null,null,null,null,null,null,null,null,null,null,null,null,null,null,null,null,null,null,null,null,null,null,null,null,null,null,null,null,null,null,null,null,null,null,null,null,null,null,null,null,null,null,null,null,null,null,null,null,null,null,null,null,null,null,null,null,null,null,null,null,null,null,null,null,null,null,null,null,null,null,null,null,null,null,null,null,null,null,null,null,null,null,null,null,null,null,null,null,null,null,null,null,null,null,null,null,null,null,null,null,null,null,null,null,null,null,null,null,null,null,null,null,null,null,null,null,null,null,null,null,null,null,null,null,null,null,null,null,null,null,null,null,null,null,null,null,null,null,null,null,null,null,null,null,null,null,null,null,null,null,null,null,null,null,null,null,null,null,null,null,null,null,null,null,null,null,null,null,null,null,null,null,null,null,null,null,null,null,null,null,null,null,null,null,null,null,null,null,null,null,null,null,null,null,null,null,null,null,null,null,null,null,null,null,null,null,null,null,null,null,null,null,null,null,null,null,null,null,null,null,null,null,null,null,null,null,null,null,null,null,null,null,null,null,null,null,null,null,null,null,null,null,null,null,null,null,null,null,null,null,null,null,null,null,null,null,null,null,null,null,null,null,null,null,null,null,null,null,null,null,null,null,null,null,null,null,null,null,null,null,null,null,null,null,null,null,null,null,null,null,null,null,null,null,null,null,null,null,null,null,null,null,null,null,null,null,null,null,null,null,null,null,null,null,null,null,null,null,null,null,null,null,null,null,null,null,null,null,null,null,null,null,null,null,null,null,null,null,null,null,null,null,null,null,null,null,null,null,null,null,null,null,null,null,null,null,null,null,null,null,null,null,null,null,null,null,null,null,null,null,null,null,null,null,null,null,null,null,null,null,null,null,null,null,null,null,null,null,null,null,null,null,null,null,null,null,null,null,null,null,null,null,null,null,null,null,null,null,null,null,null,null,null,null,null,null,null,null,null,null,null,null,null,null,null,null,null,null,null,null,null,null,null,null,null,null,null,null,null,null,null,null,null,null,null,null,null,null,null,null,null,null,null,null,null,null,null,null,null,null,null,null,null,null,null,null,null,null,null,null,null,null,null,null,null,null,null,null,null,null,null,null,null,null,null,null,null,null,null,null,null,null,null,null,null,null,null,null,null,null,null,null,null,null,null,null,null,null,null,null,null,null,null,null,null,null,null,null,null,null,null,null,null,null,null,null,null,null,null,null,null,null,null,null,null,null,null,null,null,null,null,null,null,null,null,null,null,null,null,null,null,null,null,null,null,null,null,null,null,null,null,null,null,null,null,null,null,null,null,null,null,null,null,null,null,null,null,null,null,null,null,null,null,null,null,null,null,null,null,null,null,null,null,null,null,null,null,null,null,null,null,null,null,null,null,null,null,null,null,null,null,null,null,null,null,null,null,null,null,null,null,null,null,null,null,null,null,null,null,null,null,null,null,null,null,null,null,null,null,null,null,null,null,null,null,null,null,null,null,null,null,null,null,null,null,null,null,null,null,null,null,null,null,null,null,null,null,null,null,null,null,null,null,null,null,null,null,null,null,null,null,null,null,null,null,null,null,null,null,null,null,null,null,null,null,null,null,null,null,null,null,null,null,null,null,null,null,null,null,null,null,null,null,null,null,null,null,null,null,null,null,null,null,null,null,null,null,null,null,null,null,null,null,null,null,null,null,null,null,null,null,null,null,null,null,null,null,null,null,null,null,null,null,null,null,null,null,null,null,null,null,null,null,null,null,null,null,null,null,null,null,null,null,null,null,null,null,null,null,null,null,null,null,null,null,null,null,null,null,null,null,null,null,null,null,null,null,null,null,null,null,null,null,null,null,null,null,null,null,null,null,null,null,null,null,null,null,null,null,null,null,null,null,null,null,null,null,null,null,null,null,null,null,null,null,null,null,null,null,null,null,null,null,null,null,null,null,null,null,null,null,null,null,null,null,null,null,null,null,null,null,null,null,null,null,null,null,null,null,null,null,null,null,null,null,null,null,null,null,null,null,null,null,null,null,null,null,null,null,null,null,null,null,null,null,null,null,null,null,null,null,null,null,null,null,null,null,null,null,null,null,null,null,null,null,null,null,null,null,null,null,null,null,null,null,null,null,null,null,null,null,null,null,null,null,null,null,null,null,null,null,null,null,null,null,null,null,null,null,null,null,null,null,null,null,null,null,null,null,null,null,null,null,null,null,null,null,null,null,null,null,null,null,null,null,null,null,null,null,null,null,null,null,null,null,null,null,null,null,null,null,null,null,null,null,null,null,null,null,null,null,null,null,null,null,null,null,null,null,null,null,null,null,null,null,null,null,null,null,null,null,null,null,null,null,null,null,null,null,null,null,null,null,null,null,null,null,null,null,null,null,null,null,null,null,null,null,null,null,null,null,null,null,null,null,null,null,null,null,null,null,null,null,null,null,null,null,null,null,null,null,null,null,null,null,null,null,null,null,null,null,null,null,null,null,null,null,null,null,null,null,null,null,null,null,null,null,null,null,null,null,null,null,null,null,null,null,null,null,null,null,null,null,null,null,null,null,null,null,null,null,null,null,null,null,null,null,null,null,null,null,null,null,null,null,null,null,null,null,null,null,null,null,null,null,null,null,null,null,null,null,null,null,null,null,null,null,null,null,null,null,null,null,null,null,null,null,null,null,null,null,null,null,null,null,null,null,null,null,null,null,null,null,null,null,null,null,null,null,null,null,null,null,null,null,null,null,null,null,null,null,null,null,null,null,null,null,null,null,null,null,null,null,null,null,null,null,null,null,null,null,null,null,null,null,null,null,null,null,null,null,null,null,null,null,null,null,null,null,null,null,null,null,null,null,null,null,null,null,null,null,null,null,null,null,null,null,null,null,null,null,null,null,null,null,null,null,null,null,null,null,null,null,null,null,null,null,null,null,null,null,null,null,null,null,null,null,null,null,null,null,null,null,null,null,null,null,null,null,null,null,null,null,null,null,null,null,null,null,null,null,null,null,null,null,null,null,null,null,null,null,null,null,null,null,null,null,null,null,null,null,null,null,null,null,null,null,null,null,null,null,null,null,null,null,null,null,null,null,null,null,null,null,null,null,null,null,null,null,null,null,null,null,null,null,null,null,null,null,null,null,null,null,null,null,null,"ARAUCA"]
[null,null,null,null,null,null,"NOVIEMBRE",0,0,0,null,null,"NOVIEMBRE",{"$f":"Hoja8!BK33","v":0},{"$f":"Hoja8!BL33","v":0},{"$f":"Hoja8!BM33","v":0},{"$f":"Hoja8!BN33","v":0},{"$f":"Hoja8!BO33","v":0},{"$f":"Hoja8!BP33","v":0},{"$f":"Hoja8!BQ33","v":0},{"$f":"Hoja8!BR33","v":0},0,0,0,null,null,null,null,null,null,null,null,null,null,null,null,null,null,null,null,null,null,null,null,null,null,null,null,null,null,null,null,null,null,null,null,null,null,null,null,null,null,null,null,null,null,null,null,null,null,null,null,null,null,null,null,null,null,null,null,null,null,null,null,null,null,null,null,null,null,null,null,null,null,null,null,null,null,null,null,null,null,null,null,null,null,null,null,null,null,null,null,null,null,null,null,null,null,null,null,null,null,null,null,null,null,null,null,null,null,null,null,null,null,null,null,null,null,null,null,null,null,null,null,null,null,null,null,null,null,null,null,null,null,null,null,null,null,null,null,null,null,null,null,null,null,null,null,null,null,null,null,null,null,null,null,null,null,null,null,null,null,null,null,null,null,null,null,null,null,null,null,null,null,null,null,null,null,null,null,null,null,null,null,null,null,null,null,null,null,null,null,null,null,null,null,null,null,null,null,null,null,null,null,null,null,null,null,null,null,null,null,null,null,null,null,null,null,null,null,null,null,null,null,null,null,null,null,null,null,null,null,null,null,null,null,null,null,null,null,null,null,null,null,null,null,null,null,null,null,null,null,null,null,null,null,null,null,null,null,null,null,null,null,null,null,null,null,null,null,null,null,null,null,null,null,null,null,null,null,null,null,null,null,null,null,null,null,null,null,null,null,null,null,null,null,null,null,null,null,null,null,null,null,null,null,null,null,null,null,null,null,null,null,null,null,null,null,null,null,null,null,null,null,null,null,null,null,null,null,null,null,null,null,null,null,null,null,null,null,null,null,null,null,null,null,null,null,null,null,null,null,null,null,null,null,null,null,null,null,null,null,null,null,null,null,null,null,null,null,null,null,null,null,null,null,null,null,null,null,null,null,null,null,null,null,null,null,null,null,null,null,null,null,null,null,null,null,null,null,null,null,null,null,null,null,null,null,null,null,null,null,null,null,null,null,null,null,null,null,null,null,null,null,null,null,null,null,null,null,null,null,null,null,null,null,null,null,null,null,null,null,null,null,null,null,null,null,null,null,null,null,null,null,null,null,null,null,null,null,null,null,null,null,null,null,null,null,null,null,null,null,null,null,null,null,null,null,null,null,null,null,null,null,null,null,null,null,null,null,null,null,null,null,null,null,null,null,null,null,null,null,null,null,null,null,null,null,null,null,null,null,null,null,null,null,null,null,null,null,null,null,null,null,null,null,null,null,null,null,null,null,null,null,null,null,null,null,null,null,null,null,null,null,null,null,null,null,null,null,null,null,null,null,null,null,null,null,null,null,null,null,null,null,null,null,null,null,null,null,null,null,null,null,null,null,null,null,null,null,null,null,null,null,null,null,null,null,null,null,null,null,null,null,null,null,null,null,null,null,null,null,null,null,null,null,null,null,null,null,null,null,null,null,null,null,null,null,null,null,null,null,null,null,null,null,null,null,null,null,null,null,null,null,null,null,null,null,null,null,null,null,null,null,null,null,null,null,null,null,null,null,null,null,null,null,null,null,null,null,null,null,null,null,null,null,null,null,null,null,null,null,null,null,null,null,null,null,null,null,null,null,null,null,null,null,null,null,null,null,null,null,null,null,null,null,null,null,null,null,null,null,null,null,null,null,null,null,null,null,null,null,null,null,null,null,null,null,null,null,null,null,null,null,null,null,null,null,null,null,null,null,null,null,null,null,null,null,null,null,null,null,null,null,null,null,null,null,null,null,null,null,null,null,null,null,null,null,null,null,null,null,null,null,null,null,null,null,null,null,null,null,null,null,null,null,null,null,null,null,null,null,null,null,null,null,null,null,null,null,null,null,null,null,null,null,null,null,null,null,null,null,null,null,null,null,null,null,null,null,null,null,null,null,null,null,null,null,null,null,null,null,null,null,null,null,null,null,null,null,null,null,null,null,null,null,null,null,null,null,null,null,null,null,null,null,null,null,null,null,null,null,null,null,null,null,null,null,null,null,null,null,null,null,null,null,null,null,null,null,null,null,null,null,null,null,null,null,null,null,null,null,null,null,null,null,null,null,null,null,null,null,null,null,null,null,null,null,null,null,null,null,null,null,null,null,null,null,null,null,null,null,null,null,null,null,null,null,null,null,null,null,null,null,null,null,null,null,null,null,null,null,null,null,null,null,null,null,null,null,null,null,null,null,null,null,null,null,null,null,null,null,null,null,null,null,null,null,null,null,null,null,null,null,null,null,null,null,null,null,null,null,null,null,null,null,null,null,null,null,null,null,null,null,null,null,null,null,null,null,null,null,null,null,null,null,null,null,null,null,null,null,null,null,null,null,null,null,null,null,null,null,null,null,null,null,null,null,null,null,null,null,null,null,null,null,null,null,null,null,null,null,null,null,null,null,null,null,null,null,null,null,null,null,null,null,null,null,null,null,null,null,null,null,null,null,null,null,null,null,null,null,null,null,null,null,null,null,null,null,null,null,null,null,null,null,null,null,null,null,null,null,null,null,null,null,null,null,null,null,null,null,null,null,null,null,null,null,null,null,null,null,null,null,null,null,null,null,null,null,null,null,null,null,null,null,null,null,null,null,null,null,null,null,null,null,null,null,null,null,null,null,null,null,null,null,null,null,null,null,null,null,null,null,null,null,null,null,null,null,null,null,null,null,null,null,null,null,null,null,null,null,null,null,null,null,null,null,null,null,null,null,null,null,null,null,null,null,null,null,null,null,null,null,null,null,null,null,null,null,null,null,null,null,null,null,null,null,null,null,null,null,null,null,null,null,null,null,null,null,null,null,null,null,null,null,null,null,null,null,null,null,null,null,null,null,null,null,null,null,null,null,null,null,null,null,null,null,null,null,null,null,null,null,null,null,null,null,null,null,null,null,null,null,null,null,null,null,null,null,null,null,null,null,null,null,null,null,null,null,null,null,null,null,null,null,null,null,null,null,null,null,null,null,null,null,null,null,null,null,null,null,null,null,null,null,null,null,null,null,null,null,null,null,null,null,null,null,null,null,null,null,null,null,null,null,null,null,null,null,null,null,null,null,null,null,null,null,null,null,null,null,null,null,null,null,null,null,null,null,null,null,null,null,null,null,null,null,null,null,null,null,null,null,null,null,null,null,null,null,null,null,null,null,null,null,null,null,null,null,null,null,null,null,null,null,null,null,null,null,null,null,null,null,null,null,null,null,null,null,null,null,null,null,null,null,null,null,null,null,null,null,null,null,null,null,null,null,null,null,null,null,null,null,null,null,null,null,null,null,null,null,null,null,null,null,null,null,null,null,null,null,null,null,null,null,null,null,null,null,null,null,null,null,null,null,null,null,null,null,null,null,null,null,null,null,null,null,null,null,null,null,null,null,null,null,null,null,null,null,null,null,null,null,null,null,null,null,null,null,null,null,null,null,null,null,null,null,null,null,null,null,null,null,null,null,null,null,null,null,null,null,null,null,null,null,null,null,null,null,null,null,null,null,null,null,null,null,null,null,null,null,null,null,null,null,null,null,null,null,null,null,null,null,null,null,null,null,null,null,null,null,null,null,null,null,null,null,null,null,null,null,null,null,null,null,null,null,null,null,null,null,null,null,null,null,null,null,null,null,null,null,null,null,null,null,null,null,null,null,null,null,null,null,null,null,null,null,null,null,null,null,null,null,null,null,null,null,null,null,null,null,null,null,null,null,null,null,null,null,null,null,null,null,null,null,null,null,null,null,null,null,null,null,null,null,null,null,null,null,null,null,null,null,null,null,null,null,null,null,null,null,null,null,null,null,null,null,null,null,null,null,null,null,null,null,null,null,null,null,null,null,null,null,null,null,null,null,null,null,null,null,null,null,null,null,null,null,null,null,null,null,null,null,null,null,null,null,null,null,null,null,null,null,null,null,null,null,null,null,null,null,null,null,null,null,null,null,null,null,null,null,null,null,null,null,null,null,null,null,null,null,null,null,null,null,null,null,null,null,null,null,null,null,null,null,null,null,null,null,null,null,null,null,null,null,null,null,null,null,null,null,null,null,null,null,null,null,null,null,null,null,null,null,null,null,null,null,null,null,null,null,null,null,null,null,null,null,null,null,null,null,null,null,null,null,null,null,null,null,null,null,null,null,null,null,null,null,null,null,null,null,null,null,null,null,null,null,null,null,null,null,null,null,null,null,null,null,null,null,null,null,null,null,null,null,null,null,null,null,null,null,null,null,null,null,null,null,null,null,null,null,null,null,null,null,null,null,null,null,null,null,null,null,null,null,null,null,null,null,null,null,null,null,null,null,null,null,null,null,null,null,null,null,null,null,null,null,null,null,null,null,null,null,null,null,null,null,null,null,null,null,null,null,null,null,null,null,null,null,null,null,null,null,null,null,null,null,null,null,null,null,null,null,null,null,null,null,null,null,null,null,null,null,null,null,null,null,null,null,null,null,null,null,null,null,null,null,null,null,null,null,null,null,null,null,null,null,null,null,null,null,null,null,null,null,null,null,null,null,null,null,null,null,null,null,null,null,null,null,null,null,null,null,null,null,null,null,null,null,null,null,null,null,null,null,null,null,null,null,null,null,null,null,null,null,null,null,null,null,null,null,null,null,null,null,null,null,null,null,null,null,null,null,null,null,null,null,null,null,null,null,null,null,null,null,null,null,null,null,null,null,null,null,null,null,null,null,null,null,null,null,null,null,null,null,null,null,null,null,null,null,null,null,null,null,null,null,null,null,null,null,null,null,null,null,null,null,null,null,null,null,null,null,null,null,null,null,null,null,null,null,null,null,null,null,null,null,null,null,null,null,null,null,null,null,null,null,null,null,null,null,null,null,null,null,null,null,null,null,null,null,null,null,null,null,null,null,null,null,null,null,null,null,null,null,null,null,null,null,null,null,null,null,null,null,null,null,null,null,null,null,null,null,null,null,null,null,null,null,null,null,null,null,null,null,null,null,null,null,null,null,null,null,null,null,null,null,null,null,null,null,null,null,null,null,null,null,null,null,null,null,null,null,null,null,null,null,null,null,null,null,null,null,null,null,null,null,null,null,null,null,null,null,null,null,null,null,null,null,null,null,null,null,null,null,null,null,null,null,null,null,null,null,null,null,null,null,null,null,null,null,null,null,null,null,null,null,null,null,null,null,null,null,null,null,null,null,null,null,null,null,null,null,null,null,null,null,null,null,null,null,null,null,null,null,null,null,null,null,null,null,null,null,null,null,null,null,null,null,null,null,null,null,null,null,null,null,null,null,null,null,null,null,null,null,null,null,null,null,null,null,null,null,null,null,null,null,null,null,null,null,null,null,null,null,null,null,null,null,null,null,null,null,null,null,null,null,null,null,null,null,null,null,null,null,null,null,null,null,null,null,null,null,null,null,null,null,null,null,null,null,null,null,null,null,null,null,null,null,null,null,null,null,null,null,null,null,null,null,null,null,null,null,null,null,null,null,null,null,null,null,null,null,null,null,null,null,null,null,null,null,null,null,null,null,null,null,null,null,null,null,null,null,null,null,null,null,null,null,null,null,null,null,null,null,null,null,null,null,null,null,null,null,null,null,null,null,null,null,null,null,null,null,null,null,null,null,null,null,null,null,null,null,null,null,null,null,null,null,null,null,null,null,null,null,null,null,null,null,null,null,null,null,null,null,null,null,null,null,null,null,null,null,null,null,null,null,null,null,null,null,null,null,null,null,null,null,null,null,null,null,null,null,null,null,null,null,null,null,null,null,null,null,null,null,null,null,null,null,null,null,null,null,null,null,null,null,null,null,null,null,null,null,null,null,null,null,null,null,null,null,null,null,null,null,null,null,null,null,null,null,null,null,null,null,null,null,null,null,null,null,null,null,null,null,null,null,null,null,null,null,null,null,null,null,null,null,null,null,null,null,null,null,null,null,null,null,null,null,null,null,null,null,null,null,null,null,null,null,null,null,null,null,null,null,null,null,null,null,null,null,null,null,null,null,null,null,null,null,null,null,null,null,null,null,null,null,null,null,null,null,null,null,null,null,null,null,null,null,null,null,null,null,null,null,null,null,null,null,null,null,null,null,null,null,null,null,null,null,null,null,null,null,null,null,null,null,null,null,null,null,null,null,null,null,null,null,null,null,null,null,null,null,null,null,null,null,null,null,null,null,null,null,null,null,null,null,null,null,null,null,null,null,null,null,null,null,null,null,null,null,null,null,null,null,null,null,null,null,null,null,null,null,null,null,null,null,null,null,null,null,null,null,null,null,null,null,null,null,null,null,null,null,null,null,null,null,null,null,null,null,null,null,null,null,null,null,null,null,null,null,null,null,null,null,null,null,null,null,null,null,null,null,null,null,null,null,null,null,null,null,null,null,null,null,null,null,null,null,null,null,null,null,null,null,null,null,null,null,null,null,null,null,null,null,null,null,null,null,null,null,null,null,null,null,null,null,null,null,null,null,null,null,null,null,null,null,null,null,null,null,null,null,null,null,null,null,null,null,null,null,null,null,null,null,null,null,null,null,null,null,null,null,null,null,null,null,null,null,null,null,null,null,null,null,null,null,null,null,null,null,null,null,null,null,null,null,null,null,null,null,null,null,null,null,null,null,null,null,null,null,null,null,null,null,null,null,null,null,null,null,null,null,null,null,null,null,null,null,null,null,null,null,null,null,null,null,null,null,null,null,null,null,null,null,null,null,null,null,null,null,null,null,null,null,null,null,null,null,null,null,null,null,null,null,null,null,null,null,null,null,null,null,null,null,null,null,null,null,null,null,null,null,null,null,null,null,null,null,null,null,null,null,null,null,null,null,null,null,null,null,null,null,null,null,null,null,null,null,null,null,null,null,null,null,null,null,null,null,null,null,null,null,null,null,null,null,null,null,null,null,null,null,null,null,null,null,null,null,null,null,null,null,null,null,null,null,null,null,null,null,null,null,null,null,null,null,null,null,null,null,null,null,null,null,null,null,null,null,null,null,null,null,null,null,null,null,null,null,null,null,null,null,null,null,null,null,null,null,null,null,null,null,null,null,null,null,null,null,null,null,null,null,null,null,null,null,null,null,null,null,null,null,null,null,null,null,null,null,null,null,null,null,null,null,null,null,null,null,null,null,null,null,null,null,null,null,null,null,null,null,null,null,null,null,null,null,null,null,null,null,null,null,null,null,null,null,null,null,null,null,null,null,null,null,null,null,null,null,null,null,null,null,null,null,null,null,null,null,null,null,null,null,null,null,null,null,null,null,null,null,null,null,null,null,null,null,null,null,null,null,null,null,null,null,null,null,null,null,null,null,null,null,null,null,null,null,null,null,null,null,null,null,null,null,null,null,null,null,null,null,null,null,null,null,null,null,null,null,null,null,null,null,null,null,null,null,null,null,null,null,null,null,null,null,null,null,null,null,null,null,null,null,null,null,null,null,null,null,null,null,null,null,null,null,null,null,null,null,null,null,null,null,null,null,null,null,null,null,null,null,null,null,null,null,null,null,null,null,null,null,null,null,null,null,null,null,null,null,null,null,null,null,null,null,null,null,null,null,null,null,null,null,null,null,null,null,null,null,null,null,null,null,null,null,null,null,null,null,null,null,null,null,null,null,null,null,null,null,null,null,null,null,null,null,null,null,null,null,null,null,null,null,null,null,null,null,null,null,null,null,null,null,null,null,null,null,null,null,null,null,null,null,null,null,null,null,null,null,null,null,null,null,null,null,null,null,null,null,null,null,null,null,null,null,null,null,null,null,null,null,null,null,null,null,null,null,null,null,null,null,null,null,null,null,null,null,null,null,null,null,null,null,null,null,null,null,null,null,null,null,null,null,null,null,null,null,null,null,null,null,null,null,null,null,null,null,null,null,null,null,null,null,null,null,null,null,null,null,null,null,null,null,null,null,null,null,null,null,null,null,null,null,null,null,null,null,null,null,null,null,null,null,null,null,null,null,null,null,null,null,null,null,null,null,null,null,null,null,null,null,null,null,null,null,null,null,null,null,null,null,null,null,null,null,null,null,null,null,null,null,null,null,null,null,null,null,null,null,null,null,null,null,null,null,null,null,null,null,null,null,null,null,null,null,null,null,null,null,null,null,null,null,null,null,null,null,null,null,null,null,null,null,null,null,null,null,null,null,null,null,null,null,null,null,null,null,null,null,null,null,null,null,null,null,null,null,null,null,null,null,null,null,null,null,null,null,null,null,null,null,null,null,null,null,null,null,null,null,null,null,null,null,null,null,null,null,null,null,null,null,null,null,null,null,null,null,null,null,null,null,null,null,null,null,null,null,null,null,null,null,null,null,null,null,null,null,null,null,null,null,null,null,null,null,null,null,null,null,null,null,null,null,null,null,null,null,null,null,null,null,null,null,null,null,null,null,null,null,null,null,null,null,null,null,null,null,null,null,null,null,null,null,null,null,null,null,null,null,null,null,null,null,null,null,null,null,null,null,null,null,null,null,null,null,null,null,null,null,null,null,null,null,null,null,null,null,null,null,null,null,null,null,null,null,null,null,null,null,null,null,null,null,null,null,null,null,null,null,null,null,null,null,null,null,null,null,null,null,null,null,null,null,null,null,null,null,null,null,null,null,null,null,null,null,null,null,null,null,null,null,null,null,null,null,null,null,null,null,null,null,null,null,null,null,null,null,null,null,null,null,null,null,null,null,null,null,null,null,null,null,null,null,null,null,null,null,null,null,null,null,null,null,null,null,null,null,null,null,null,null,null,null,null,null,null,null,null,null,null,null,null,null,null,null,null,null,null,null,null,null,null,null,null,null,null,null,null,null,null,null,null,null,null,null,null,null,null,null,null,null,null,null,null,null,null,null,null,null,null,null,null,null,null,null,null,null,null,null,null,null,null,null,null,null,null,null,null,null,null,null,null,null,null,null,null,null,null,null,null,null,null,null,null,null,null,null,null,null,null,null,null,null,null,null,null,null,null,null,null,null,null,null,null,null,null,null,null,null,null,null,null,null,null,null,null,null,null,null,null,null,null,null,null,null,null,null,null,null,null,null,null,null,null,null,null,null,null,null,null,null,null,null,null,null,null,null,null,null,null,null,null,null,null,null,null,null,null,null,null,null,null,null,null,null,null,null,null,null,null,null,null,null,null,null,null,null,null,null,null,null,null,null,null,null,null,null,null,null,null,null,null,null,null,null,null,null,null,null,null,null,null,null,null,null,null,null,null,null,null,null,null,null,null,null,null,null,null,null,null,null,null,null,null,null,null,null,null,null,null,null,null,null,null,null,null,null,null,null,null,null,null,null,null,null,null,null,null,null,null,null,null,null,null,null,null,null,null,null,null,null,null,null,null,null,null,null,null,null,null,null,null,null,null,null,null,null,null,null,null,null,null,null,null,null,null,null,null,null,null,null,null,null,null,null,null,null,null,null,null,null,null,null,null,null,null,null,null,null,null,null,null,null,null,null,null,null,null,null,null,null,null,null,null,null,null,null,null,null,null,null,null,null,null,null,null,null,null,null,null,null,null,null,null,null,null,null,null,null,null,null,null,null,null,null,null,null,null,null,null,null,null,null,null,null,null,null,null,null,null,null,null,null,null,null,null,null,null,null,null,null,null,null,null,null,null,null,null,null,null,null,null,null,null,null,null,null,null,null,null,null,null,null,null,null,null,null,null,null,null,null,null,null,null,null,null,null,null,null,null,null,null,null,null,null,null,null,null,null,null,null,null,null,null,null,null,null,null,null,null,null,null,null,null,null,null,null,null,null,null,null,null,null,null,null,null,null,null,null,null,null,null,null,null,null,null,null,null,null,null,null,null,null,null,null,null,null,null,null,null,null,null,null,null,null,null,null,null,null,null,null,null,null,null,null,null,null,null,null,null,null,null,null,null,null,null,null,null,null,null,null,null,null,null,null,null,null,null,null,null,null,null,null,null,null,null,null,null,null,null,null,null,null,null,null,null,null,null,null,null,null,null,null,null,null,null,null,null,null,null,null,null,null,null,null,null,null,null,null,null,null,null,null,null,null,null,null,null,null,null,null,null,null,null,null,null,null,null,null,null,null,null,null,null,null,null,null,null,null,null,null,null,null,null,null,null,null,null,null,null,null,null,null,null,null,null,null,null,null,null,null,null,null,null,null,null,null,null,null,null,null,null,null,null,null,null,null,null,null,null,null,null,null,null,null,null,null,null,null,null,null,null,null,null,null,null,null,null,null,null,null,null,null,null,null,null,null,null,null,null,null,null,null,null,null,null,null,null,null,null,null,null,null,null,null,null,null,null,null,null,null,null,null,null,null,null,null,null,null,null,null,null,null,null,null,null,null,null,null,null,null,null,null,null,null,null,null,null,null,null,null,null,null,null,null,null,null,null,null,null,null,null,null,null,null,null,null,null,null,null,null,null,null,null,null,null,null,null,null,null,null,null,null,null,null,null,null,null,null,null,null,null,null,null,null,null,null,null,null,null,null,null,null,null,null,null,null,null,null,null,null,null,null,null,null,null,null,null,null,null,null,null,null,null,null,null,null,null,null,null,null,null,null,null,null,null,null,null,null,null,null,null,null,null,null,null,null,null,null,null,null,null,null,null,null,null,null,null,null,null,null,null,null,null,null,null,null,null,null,null,null,null,null,null,null,null,null,null,null,null,null,null,null,null,null,null,null,null,null,null,null,null,null,null,null,null,null,null,null,null,null,null,null,null,null,null,null,null,null,null,null,null,null,null,null,null,null,null,null,null,null,null,null,null,null,null,null,null,null,null,null,null,null,null,null,null,null,null,null,null,null,null,null,null,null,null,null,null,null,null,null,null,null,null,null,null,null,null,null,null,null,null,null,null,null,null,null,null,null,null,null,null,null,null,null,null,null,null,null,null,null,null,null,null,null,null,null,null,null,null,null,null,null,null,null,null,null,null,null,null,null,null,null,null,null,null,null,null,null,null,null,null,null,null,null,null,null,null,null,null,null,null,null,null,null,null,null,null,null,null,null,null,null,null,null,null,null,null,null,null,null,null,null,null,null,null,null,null,null,null,null,null,null,null,null,null,null,null,null,null,null,null,null,null,null,null,null,null,null,null,null,null,null,null,null,null,null,null,null,null,null,null,null,null,null,null,null,null,null,null,null,null,null,null,null,null,null,null,null,null,null,null,null,null,null,null,null,null,null,null,null,null,null,null,null,null,null,null,null,null,null,null,null,null,null,null,null,null,null,null,null,null,null,null,null,null,null,null,null,null,null,null,null,null,null,null,null,null,null,null,null,null,null,null,null,null,null,null,null,null,null,null,null,null,null,null,null,null,null,null,null,null,null,null,null,null,null,null,null,null,null,null,null,null,null,null,null,null,null,null,null,null,null,null,null,null,null,null,null,null,null,null,null,null,null,null,null,null,null,null,null,null,null,null,null,null,null,null,null,null,null,null,null,null,null,null,null,null,null,null,null,null,null,null,null,null,null,null,null,null,null,null,null,null,null,null,null,null,null,null,null,null,null,null,null,null,null,null,null,null,null,null,null,null,null,null,null,null,null,null,null,null,null,null,null,null,null,null,null,null,null,null,null,null,null,null,null,null,null,null,null,null,null,null,null,null,null,null,null,null,null,null,null,null,null,null,null,null,null,null,null,null,null,null,null,null,null,null,null,null,null,null,null,null,null,null,null,null,null,null,null,null,null,null,null,null,null,null,null,null,null,null,null,null,null,null,null,null,null,null,null,null,null,null,null,null,null,null,null,null,null,null,null,null,null,null,null,null,null,null,null,null,null,null,null,null,null,null,null,null,null,null,null,null,null,null,null,null,null,null,null,null,null,null,null,null,null,null,null,null,null,null,null,null,null,null,null,null,null,null,null,null,null,null,null,null,null,null,null,null,null,null,null,null,null,null,null,null,null,null,null,null,null,null,null,null,null,null,null,null,null,null,null,null,null,null,null,null,null,null,null,null,null,null,null,null,null,null,null,null,null,null,null,null,null,null,null,null,null,null,null,null,null,null,null,null,null,null,null,null,null,null,null,null,null,null,null,null,null,null,null,null,null,null,null,null,null,null,null,null,null,null,null,null,null,null,null,null,null,null,null,null,null,null,null,null,null,null,null,null,null,null,null,null,null,null,null,null,null,null,null,null,null,null,null,null,null,null,null,null,null,null,null,null,null,null,null,null,null,null,null,null,null,null,null,null,null,null,null,null,null,null,null,null,null,null,null,null,null,null,null,null,null,null,null,null,null,null,null,null,null,null,null,null,null,null,null,null,null,null,null,null,null,null,null,null,null,null,null,null,null,null,null,null,null,null,null,null,null,null,null,null,null,null,null,null,null,null,null,null,null,null,null,null,null,null,null,null,null,null,null,null,null,null,null,null,null,null,null,null,null,null,null,null,null,null,null,null,null,null,null,null,null,null,null,null,null,null,null,null,null,null,null,null,null,null,null,null,null,null,null,null,null,null,null,null,null,null,null,null,null,null,null,null,null,null,null,null,null,null,null,null,null,null,null,null,null,null,null,null,null,null,null,null,null,null,null,null,null,null,null,null,null,null,null,null,null,null,null,null,null,null,null,null,null,null,null,null,null,null,null,null,null,null,null,null,null,null,null,null,null,null,null,null,null,null,null,null,null,null,null,null,null,null,null,null,null,null,null,null,null,null,null,null,null,null,null,null,null,null,null,null,null,null,null,null,null,null,null,null,null,null,null,null,null,null,null,null,null,null,null,null,null,null,null,null,null,null,null,null,null,null,null,null,null,null,null,null,null,null,null,null,null,null,null,null,null,null,null,null,null,null,null,null,null,null,null,null,null,null,null,null,null,null,null,null,null,null,null,null,null,null,null,null,null,null,null,null,null,null,null,null,null,null,null,null,null,null,null,null,null,null,null,null,null,null,null,null,null,null,null,null,null,null,null,null,null,null,null,null,null,null,null,null,null,null,null,null,null,null,null,null,null,null,null,null,null,null,null,null,null,null,null,null,null,null,null,null,null,null,null,null,null,null,null,null,null,null,null,null,null,null,null,null,null,null,null,null,null,null,null,null,null,null,null,null,null,null,null,null,null,null,null,null,null,null,null,null,null,null,null,null,null,null,null,null,null,null,null,null,null,null,null,null,null,null,null,null,null,null,null,null,null,null,null,null,null,null,null,null,null,null,null,null,null,null,null,null,null,null,null,null,null,null,null,null,null,null,null,null,null,null,null,null,null,null,null,null,null,null,null,null,null,null,null,null,null,null,null,null,null,null,null,null,null,null,null,null,null,null,null,null,null,null,null,null,null,null,null,null,null,null,null,null,null,null,null,null,null,null,null,null,null,null,null,null,null,null,null,null,null,null,null,null,null,null,null,null,null,null,null,null,null,null,null,null,null,null,null,null,null,null,null,null,null,null,null,null,null,null,null,null,null,null,null,null,null,null,null,null,null,null,null,null,null,null,null,null,null,null,null,null,null,null,null,null,null,null,null,null,null,null,null,null,null,null,null,null,null,null,null,null,null,null,null,null,null,null,null,null,null,null,null,null,null,null,null,null,null,null,null,null,null,null,null,null,null,null,null,null,null,null,null,null,null,null,null,null,null,null,null,null,null,null,null,null,null,null,null,null,null,null,null,null,null,null,null,null,null,null,null,null,null,null,null,null,null,null,null,null,null,null,null,null,null,null,null,null,null,null,null,null,null,null,null,null,null,null,null,null,null,null,null,null,null,null,null,null,null,null,null,null,null,null,null,null,null,null,null,null,null,null,null,null,null,null,null,null,null,null,null,null,null,null,null,null,null,null,null,null,null,null,null,null,null,null,null,null,null,null,null,null,null,null,null,null,null,null,null,null,null,null,null,null,null,null,null,null,null,null,null,null,null,null,null,null,null,null,null,null,null,null,null,null,null,null,null,null,null,null,null,null,null,null,null,null,null,null,null,null,null,null,null,null,null,null,null,null,null,null,null,null,null,null,null,null,null,null,null,null,null,null,null,null,null,null,null,null,null,null,null,null,null,null,null,null,null,null,null,null,null,null,null,null,null,null,null,null,null,null,null,null,null,null,null,null,null,null,null,null,null,null,null,null,null,null,null,null,null,null,null,null,null,null,null,null,null,null,null,null,null,null,null,null,null,null,null,null,null,null,null,null,null,null,null,null,null,null,null,null,null,null,null,null,null,null,null,null,null,null,null,null,null,null,null,null,null,null,null,null,null,null,null,null,null,null,null,null,null,null,null,null,null,null,null,null,null,null,null,null,null,null,null,null,null,null,null,null,null,null,null,null,null,null,null,null,null,null,null,null,null,null,null,null,null,null,null,null,null,null,null,null,null,null,null,null,null,null,null,null,null,null,null,null,null,null,null,null,null,null,null,null,null,null,null,null,null,null,null,null,null,null,null,null,null,null,null,null,null,null,null,null,null,null,null,null,null,null,null,null,null,null,null,null,null,null,null,null,null,null,null,null,null,null,null,null,null,null,null,null,null,null,null,null,null,null,null,null,null,null,null,null,null,null,null,null,null,null,null,null,null,null,null,null,null,null,null,null,null,null,null,null,null,null,null,null,null,null,null,null,null,null,null,null,null,null,null,null,null,null,null,null,null,null,null,null,null,null,null,null,null,null,null,null,null,null,null,null,null,null,null,null,null,null,null,null,null,null,null,null,null,null,null,null,null,null,null,null,null,null,null,null,null,null,null,null,null,null,null,null,null,null,null,null,null,null,null,null,null,null,null,null,null,null,null,null,null,null,null,null,null,null,null,null,null,null,null,null,null,null,null,null,null,null,null,null,null,null,null,null,null,null,null,null,null,null,null,null,null,null,null,null,null,null,null,null,null,null,null,null,null,null,null,null,null,null,null,null,null,null,null,null,null,null,null,null,null,null,null,null,null,null,null,null,null,null,null,null,null,null,null,null,null,null,null,null,null,null,null,null,null,null,null,null,null,null,null,null,null,null,null,null,null,null,null,null,null,null,null,null,null,null,null,null,null,null,null,null,null,null,null,null,null,null,null,null,null,null,null,null,null,null,null,null,null,null,null,null,null,null,null,null,null,null,null,null,null,null,null,null,null,null,null,null,null,null,null,null,null,null,null,null,null,null,null,null,null,null,null,null,null,null,null,null,null,null,null,null,null,null,null,null,null,null,null,null,null,null,null,null,null,null,null,null,null,null,null,null,null,null,null,null,null,null,null,null,null,null,null,null,null,null,null,null,null,null,null,null,null,null,null,null,null,null,null,null,null,null,null,null,null,null,null,null,null,null,null,null,null,null,null,null,null,null,null,null,null,null,null,null,null,null,null,null,null,null,null,null,null,null,null,null,null,null,null,null,null,null,null,null,null,null,null,null,null,null,null,null,null,null,null,null,null,null,null,null,null,null,null,null,null,null,null,null,null,null,null,null,null,null,null,null,null,null,null,null,null,null,null,null,null,null,null,null,null,null,null,null,null,null,null,null,null,null,null,null,null,null,null,null,null,null,null,null,null,null,null,null,null,null,null,null,null,null,null,null,null,null,null,null,null,null,null,null,null,null,null,null,null,null,null,null,null,null,null,null,null,null,null,null,null,null,null,null,null,null,null,null,null,null,null,null,null,null,null,null,null,null,null,null,null,null,null,null,null,null,null,null,null,null,null,null,null,null,null,null,null,null,null,null,null,null,null,null,null,null,null,null,null,null,null,null,null,null,null,null,null,null,null,null,null,null,null,null,null,null,null,null,null,null,null,null,null,null,null,null,null,null,null,null,null,null,null,null,null,null,null,null,null,null,null,null,null,null,null,null,null,null,null,null,null,null,null,null,null,null,null,null,null,null,null,null,null,null,null,null,null,null,null,null,null,null,null,null,null,null,null,null,null,null,null,null,null,null,null,null,null,null,null,null,null,null,null,null,null,null,null,null,null,null,null,null,null,null,null,null,null,null,null,null,null,null,null,null,null,null,null,null,null,null,null,null,null,null,null,null,null,null,null,null,null,null,null,null,null,null,null,null,null,null,null,null,null,null,null,null,null,null,null,null,null,null,null,null,null,null,null,null,null,null,null,null,null,null,null,null,null,null,null,null,null,null,null,null,null,null,null,null,null,null,null,null,null,null,null,null,null,null,null,null,null,null,null,null,null,null,null,null,null,null,null,null,null,null,null,null,null,null,null,null,null,null,null,null,null,null,null,null,null,null,null,null,null,null,null,null,null,null,null,null,null,null,null,null,null,null,null,null,null,null,null,null,null,null,null,null,null,null,null,null,null,null,null,null,null,null,null,null,null,null,null,null,null,null,null,null,null,null,null,null,null,null,null,null,null,null,null,null,null,null,null,null,null,null,null,null,null,null,null,null,null,null,null,null,null,null,null,null,null,null,null,null,null,null,null,null,null,null,null,null,null,null,null,null,null,null,null,null,null,null,null,null,null,null,null,null,null,null,null,null,null,null,null,null,null,null,null,null,null,null,null,null,null,null,null,null,null,null,null,null,null,null,null,null,null,null,null,null,null,null,null,null,null,null,null,null,null,null,null,null,null,null,null,null,null,null,null,null,null,null,null,null,null,null,null,null,null,null,null,null,null,null,null,null,null,null,null,null,null,null,null,null,null,null,null,null,null,null,null,null,null,null,null,null,null,null,null,null,null,null,null,null,null,null,null,null,null,null,null,null,null,null,null,null,null,null,null,null,null,null,null,null,null,null,null,null,null,null,null,null,null,null,null,null,null,null,null,null,null,null,null,null,null,null,null,null,null,null,null,null,null,null,null,null,null,null,null,null,null,null,null,null,null,null,null,null,null,null,null,null,null,null,null,null,null,null,null,null,null,null,null,null,null,null,null,null,null,null,null,null,null,null,null,null,null,null,null,null,null,null,null,null,null,null,null,null,null,null,null,null,null,null,null,null,null,null,null,null,null,null,null,null,null,null,null,null,null,null,null,null,null,null,null,null,null,null,null,null,null,null,null,null,null,null,null,null,null,null,null,null,null,null,null,null,null,null,null,null,null,null,null,null,null,null,null,null,null,null,null,null,null,null,null,null,null,null,null,null,null,null,null,null,null,null,null,null,null,null,null,null,null,null,null,null,null,null,null,null,null,null,null,null,null,null,null,null,null,null,null,null,null,null,null,null,null,null,null,null,null,null,null,null,null,null,null,null,null,null,null,null,null,null,null,null,null,null,null,null,null,null,null,null,null,null,null,null,null,null,null,null,null,null,null,null,null,null,null,null,null,null,null,null,null,null,null,null,null,null,null,null,null,null,null,null,null,null,null,null,null,null,null,null,null,null,null,null,null,null,null,null,null,null,null,null,null,null,null,null,null,null,null,null,null,null,null,null,null,null,null,null,null,null,null,null,null,null,null,null,null,null,null,null,null,null,null,null,null,null,null,null,null,null,null,null,null,null,null,null,null,null,null,null,null,null,null,null,null,null,null,null,null,null,null,null,null,null,null,null,null,null,null,null,null,null,null,null,null,null,null,null,null,null,null,null,null,null,null,null,null,null,null,null,null,null,null,null,null,null,null,null,null,null,null,null,null,null,null,null,null,null,null,null,null,null,null,null,null,null,null,null,null,null,null,null,null,null,null,null,null,null,null,null,null,null,null,null,null,null,null,null,null,null,null,null,null,null,null,null,null,null,null,null,null,null,null,null,null,null,null,null,null,null,null,null,null,null,null,null,null,null,null,null,null,null,null,null,null,null,null,null,null,null,null,null,null,null,null,null,null,null,null,null,null,null,null,null,null,null,null,null,null,null,null,null,null,null,null,null,null,null,null,null,null,null,null,null,null,null,null,null,null,null,null,null,null,null,null,null,null,null,null,null,null,null,null,null,null,null,null,null,null,null,null,null,null,null,null,null,null,null,null,null,null,null,null,null,null,null,null,null,null,null,null,null,null,null,null,null,null,null,null,null,null,null,null,null,null,null,null,null,null,null,null,null,null,null,null,null,null,null,null,null,null,null,null,null,null,null,null,null,null,null,null,null,null,null,null,null,null,null,null,null,null,null,null,null,null,null,null,null,null,null,null,null,null,null,null,null,null,null,null,null,null,null,null,null,null,null,null,null,null,null,null,null,null,null,null,null,null,null,null,null,null,null,null,null,null,null,null,null,null,null,null,null,null,null,null,null,null,null,null,null,null,null,null,null,null,null,null,null,null,null,null,null,null,null,null,null,null,null,null,null,null,null,null,null,null,null,null,null,null,null,null,null,null,null,null,null,null,null,null,null,null,null,null,null,null,null,null,null,null,null,null,null,null,null,null,null,null,null,null,null,null,null,null,null,null,null,null,null,null,null,null,null,null,null,null,null,null,null,null,null,null,null,null,null,null,null,null,null,null,null,null,null,null,null,null,null,null,null,null,null,null,null,null,null,null,null,null,null,null,null,null,null,null,null,null,null,null,null,null,null,null,null,null,null,null,null,null,null,null,null,null,null,null,null,null,null,null,null,null,null,null,null,null,null,null,null,null,null,null,null,null,null,null,null,null,null,null,null,null,null,null,null,null,null,null,null,null,null,null,null,null,null,null,null,null,null,null,null,null,null,null,null,null,null,null,null,null,null,null,null,null,null,null,null,null,null,null,null,null,null,null,null,null,null,null,null,null,null,null,null,null,null,null,null,null,null,null,null,null,null,null,null,null,null,null,null,null,null,null,null,null,null,null,null,null,null,null,null,null,null,null,null,null,null,null,null,null,null,null,null,null,null,null,null,null,null,null,null,null,null,null,null,null,null,null,null,null,null,null,null,null,null,null,null,null,null,null,null,null,null,null,null,null,null,null,null,null,null,null,null,null,null,null,null,null,null,null,null,null,null,null,null,null,null,null,null,null,null,null,null,null,null,null,null,null,null,null,null,null,null,null,null,null,null,null,null,null,null,null,null,null,null,null,null,null,null,null,null,null,null,null,null,null,null,null,null,null,null,null,null,null,null,null,null,null,null,null,null,null,null,null,null,null,null,null,null,null,null,null,null,null,null,null,null,null,null,null,null,null,null,null,null,null,null,null,null,null,null,null,null,null,null,null,null,null,null,null,null,null,null,null,null,null,null,null,null,null,null,null,null,null,null,null,null,null,null,null,null,null,null,null,null,null,null,null,null,null,null,null,null,null,null,null,null,null,null,null,null,null,null,null,null,null,null,null,null,null,null,null,null,null,null,null,null,null,null,null,null,null,null,null,null,null,null,null,null,null,null,null,null,null,null,null,null,null,null,null,null,null,null,null,null,null,null,null,null,null,null,null,null,null,null,null,null,null,null,null,null,null,null,null,null,null,null,null,null,null,null,null,null,null,null,null,null,null,null,null,null,null,null,null,null,null,null,null,null,null,null,null,null,null,null,null,null,null,null,null,null,null,null,null,null,null,null,null,null,null,null,null,null,null,null,null,null,null,null,null,null,null,null,null,null,null,null,null,null,null,null,null,null,null,null,null,null,null,null,null,null,null,null,null,null,null,null,null,null,null,null,null,null,null,null,null,null,null,null,null,null,null,null,null,null,null,null,null,null,null,null,null,null,null,null,null,null,null,null,null,null,null,null,null,null,null,null,null,null,null,null,null,null,null,null,null,null,null,null,null,null,null,null,null,null,null,null,null,null,null,null,null,null,null,null,null,null,null,null,null,null,null,null,null,null,null,null,null,null,null,null,null,null,null,null,null,null,null,null,null,null,null,null,null,null,null,null,null,null,null,null,null,null,null,null,null,null,null,null,null,null,null,null,null,null,null,null,null,null,null,null,null,null,null,null,null,null,null,null,null,null,null,null,null,null,null,null,null,null,null,null,null,null,null,null,null,null,null,null,null,null,null,null,null,null,null,null,null,null,null,null,null,null,null,null,null,null,null,null,null,null,null,null,null,null,null,null,null,null,null,null,null,null,null,null,null,null,null,null,null,null,null,null,null,null,null,null,null,null,null,null,null,null,null,null,null,null,null,null,null,null,null,null,null,null,null,null,null,null,null,null,null,null,null,null,null,null,null,null,null,null,null,null,null,null,null,null,null,null,null,null,null,null,null,null,null,null,null,null,null,null,null,null,null,null,null,null,null,null,null,null,null,null,null,null,null,null,null,null,null,null,null,null,null,null,null,null,null,null,null,null,null,null,null,null,null,null,null,null,null,null,null,null,null,null,null,null,null,null,null,null,null,null,null,null,null,null,null,null,null,null,null,null,null,null,null,null,null,null,null,null,null,null,null,null,null,null,null,null,null,null,null,null,null,null,null,null,null,null,null,null,null,null,null,null,null,null,null,null,null,null,null,null,null,null,null,null,null,null,null,null,null,null,null,null,null,null,null,null,null,null,null,null,null,null,null,null,null,null,null,null,null,null,null,null,null,null,null,null,null,null,null,null,null,null,null,null,null,null,null,null,null,null,null,null,null,null,null,null,null,null,null,null,null,null,null,null,null,null,null,null,null,null,null,null,null,null,null,null,null,null,null,null,null,null,null,null,null,null,null,null,null,null,null,null,null,null,null,null,null,null,null,null,null,null,null,null,null,null,null,null,null,null,null,null,null,null,null,null,null,null,null,null,null,null,null,null,null,null,null,null,null,null,null,null,null,null,null,null,null,null,null,null,null,null,null,null,null,null,null,null,null,null,null,null,null,null,null,null,null,null,null,null,null,null,null,null,null,null,null,null,null,null,null,null,null,null,null,null,null,null,null,null,null,null,null,null,null,null,null,null,null,null,null,null,null,null,null,null,null,null,null,null,null,null,null,null,null,null,null,null,null,null,null,null,null,null,null,null,null,null,null,null,null,null,null,null,null,null,null,null,null,null,null,null,null,null,null,null,null,null,null,null,null,null,null,null,null,null,null,null,null,null,null,null,null,null,null,null,null,null,null,null,null,null,null,null,null,null,null,null,null,null,null,null,null,null,null,null,null,null,null,null,null,null,null,null,null,null,null,null,null,null,null,null,null,null,null,null,null,null,null,null,null,null,null,null,null,null,null,null,null,null,null,null,null,null,null,null,null,null,null,null,null,null,null,null,null,null,null,null,null,null,null,null,null,null,null,null,null,null,null,null,null,null,null,null,null,null,null,null,null,null,null,null,null,null,null,null,null,null,null,null,null,null,null,null,null,null,null,null,null,null,null,null,null,null,null,null,null,null,null,null,null,null,null,null,null,null,null,null,null,null,null,null,null,null,null,null,null,null,null,null,null,null,null,null,null,null,null,null,null,null,null,null,null,null,null,null,null,null,null,null,null,null,null,null,null,null,null,null,null,null,null,null,null,null,null,null,null,null,null,null,null,null,null,null,null,null,null,null,null,null,null,null,null,null,null,null,null,null,null,null,null,null,null,null,null,null,null,null,null,null,null,null,null,null,null,null,null,null,null,null,null,null,null,null,null,null,null,null,null,null,null,null,null,null,null,null,null,null,null,null,null,null,null,null,null,null,null,null,null,null,null,null,null,null,null,null,null,null,null,null,null,null,null,null,null,null,null,null,null,null,null,null,null,null,null,null,null,null,null,null,null,null,null,null,null,null,null,null,null,null,null,null,null,null,null,null,null,null,null,null,null,null,null,null,null,null,null,null,null,null,null,null,null,null,null,null,null,null,null,null,null,null,null,null,null,null,null,null,null,null,null,null,null,null,null,null,null,null,null,null,null,null,null,null,null,null,null,null,null,null,null,null,null,null,null,null,null,null,null,null,null,null,null,null,null,null,null,null,null,null,null,null,null,null,null,null,null,null,null,null,null,null,null,null,null,null,null,null,null,null,null,null,null,null,null,null,null,null,null,null,null,null,null,null,null,null,null,null,null,null,null,null,null,null,null,null,null,null,null,null,null,null,null,null,null,null,null,null,null,null,null,null,null,null,null,null,null,null,null,null,null,null,null,null,null,null,null,null,null,null,null,null,null,null,null,null,null,null,null,null,null,null,null,null,null,null,null,null,null,null,null,null,null,null,null,null,null,null,null,null,null,null,null,null,null,null,null,null,null,null,null,null,null,null,null,null,null,null,null,null,null,null,null,null,null,null,null,null,null,null,null,null,null,null,null,null,null,null,null,null,null,null,null,null,null,null,null,null,null,null,null,null,null,null,null,null,null,null,null,null,null,null,null,null,null,null,null,null,null,null,null,null,null,null,null,null,null,null,null,null,null,null,null,null,null,null,null,null,null,null,null,null,null,null,null,null,null,null,null,null,null,null,null,null,null,null,null,null,null,null,null,null,null,null,null,null,null,null,null,null,null,null,null,null,null,null,null,null,null,null,null,null,null,null,null,null,null,null,null,null,null,null,null,null,null,null,null,null,null,null,null,null,null,null,null,null,null,null,null,null,null,null,null,null,null,null,null,null,null,null,null,null,null,null,null,null,null,null,null,null,null,null,null,null,null,null,null,null,null,null,null,null,null,null,null,null,null,null,null,null,null,null,null,null,null,null,null,null,null,null,null,null,null,null,null,null,null,null,null,null,null,null,null,null,null,null,null,null,null,null,null,null,null,null,null,null,null,null,null,null,null,null,null,null,null,null,null,null,null,null,null,null,null,null,null,null,null,null,null,null,null,null,null,null,null,null,null,null,null,null,null,null,null,null,null,null,null,null,null,null,null,null,null,null,null,null,null,null,null,null,null,null,null,null,null,null,null,null,null,null,null,null,null,null,null,null,null,null,null,null,null,null,null,null,null,null,null,null,null,null,null,null,null,null,null,null,null,null,null,null,null,null,null,null,null,null,null,null,null,null,null,null,null,null,null,null,null,null,null,null,null,null,null,null,null,null,null,null,null,null,null,null,null,null,null,null,null,null,null,null,null,null,null,null,null,null,null,null,null,null,null,null,null,null,null,null,null,null,null,null,null,null,null,null,null,null,null,null,null,null,null,null,null,null,null,null,null,null,null,null,null,null,null,null,null,null,null,null,null,null,null,null,null,null,null,null,null,null,null,null,null,null,null,null,null,null,null,null,null,null,null,null,null,null,null,null,null,null,null,null,null,null,null,null,null,null,null,null,null,null,null,null,null,null,null,null,null,null,null,null,null,null,null,null,null,null,null,null,null,null,null,null,null,null,null,null,null,null,null,null,null,null,null,null,null,null,null,null,null,null,null,null,null,null,null,null,null,null,null,null,null,null,null,null,null,null,null,null,null,null,null,null,null,null,null,null,null,null,null,null,null,null,null,null,null,null,null,null,null,null,null,null,null,null,null,null,null,null,null,null,null,null,null,null,null,null,null,null,null,null,null,null,null,null,null,null,null,null,null,null,null,null,null,null,null,null,null,null,null,null,null,null,null,null,null,null,null,null,null,null,null,null,null,null,null,null,null,null,null,null,null,null,null,null,null,null,null,null,null,null,null,null,null,null,null,null,null,null,null,null,null,null,null,null,null,null,null,null,null,null,null,null,null,null,null,null,null,null,null,null,null,null,null,null,null,null,null,null,null,null,null,null,null,null,null,null,null,null,null,null,null,null,null,null,null,null,null,null,null,null,null,null,null,null,null,null,null,null,null,null,null,null,null,null,null,null,null,null,null,null,null,null,null,null,null,null,null,null,null,null,null,null,null,null,null,null,null,null,null,null,null,null,null,null,null,null,null,null,null,null,null,null,null,null,null,null,null,null,null,null,null,null,null,null,null,null,null,null,null,null,null,null,null,null,null,null,null,null,null,null,null,null,null,null,null,null,null,null,null,null,null,null,null,null,null,null,null,null,null,null,null,null,null,null,null,null,null,null,null,null,null,null,null,null,null,null,null,null,null,null,null,null,null,null,null,null,null,null,null,null,null,null,null,null,null,null,null,null,null,null,null,null,null,null,null,null,null,null,null,null,null,null,null,null,null,null,null,null,null,null,null,null,null,null,null,null,null,null,null,null,null,null,null,null,null,null,null,null,null,null,null,null,null,null,null,null,null,null,null,null,null,null,null,null,null,null,null,null,null,null,null,null,null,null,null,null,null,null,null,null,null,null,null,null,null,null,null,null,null,null,null,null,null,null,null,null,null,null,null,null,null,null,null,null,null,null,null,null,null,null,null,null,null,null,null,null,null,null,null,null,null,null,null,null,null,null,null,null,null,null,null,null,null,null,null,null,null,null,null,null,null,null,null,null,null,null,null,null,null,null,null,null,null,null,null,null,null,null,null,null,null,null,null,null,null,null,null,null,null,null,null,null,null,null,null,null,null,null,null,null,null,null,null,null,null,null,null,null,null,null,null,null,null,null,null,null,null,null,null,null,null,null,null,null,null,null,null,null,null,null,null,null,null,null,null,null,null,null,null,null,null,null,null,null,null,null,null,null,null,null,null,null,null,null,null,null,null,null,null,null,null,null,null,null,null,null,null,null,null,null,null,null,null,null,null,null,null,null,null,null,null,null,null,null,null,null,null,null,null,null,null,null,null,null,null,null,null,null,null,null,null,null,null,null,null,null,null,null,null,null,null,null,null,null,null,null,null,null,null,null,null,null,null,null,null,null,null,null,null,null,null,null,null,null,null,null,null,null,null,null,null,null,null,null,null,null,null,null,null,null,null,null,null,null,null,null,null,null,null,null,null,null,null,null,null,null,null,null,null,null,null,null,null,null,null,null,null,null,null,null,null,null,null,null,null,null,null,null,null,null,null,null,null,null,null,null,null,null,null,null,null,null,null,null,null,null,null,null,null,null,null,null,null,null,null,null,null,null,null,null,null,null,null,null,null,null,null,null,null,null,null,null,null,null,null,null,null,null,null,null,null,null,null,null,null,null,null,null,null,null,null,null,null,null,null,null,null,null,null,null,null,null,null,null,null,null,null,null,null,null,null,null,null,null,null,null,null,null,null,null,null,null,null,null,null,null,null,null,null,null,null,null,null,null,null,null,null,null,null,null,null,null,null,null,null,null,null,null,null,null,null,null,null,null,null,null,null,null,null,null,null,null,null,null,null,null,null,null,null,null,null,null,null,null,null,null,null,null,null,null,null,null,null,null,null,null,null,null,null,null,null,null,null,null,null,null,null,null,null,null,null,null,null,null,null,null,null,null,null,null,null,null,null,null,null,null,null,null,null,null,null,null,null,null,null,null,null,null,null,null,null,null,null,null,null,null,null,null,null,null,null,null,null,null,null,null,null,null,null,null,null,null,null,null,null,null,null,null,null,null,null,null,null,null,null,null,null,null,null,null,null,null,null,null,null,null,null,null,null,null,null,null,null,null,null,null,null,null,null,null,null,null,null,null,null,null,null,null,null,null,null,null,null,null,null,null,null,null,null,null,null,null,null,null,null,null,null,null,null,null,null,null,null,null,null,null,null,null,null,null,null,null,null,null,null,null,null,null,null,null,null,null,null,null,null,null,null,null,null,null,null,null,null,null,null,null,null,null,null,null,null,null,null,null,null,null,null,null,null,null,null,null,null,null,null,null,null,null,null,null,null,null,null,null,null,null,null,null,null,null,null,null,null,null,null,null,null,null,null,null,null,null,null,null,null,null,null,null,null,null,null,null,null,null,null,null,null,null,null,null,null,null,null,null,null,null,null,null,null,null,null,null,null,null,null,null,null,null,null,null,null,null,null,null,null,null,null,null,null,null,null,null,null,null,null,null,null,null,null,null,null,null,null,null,null,null,null,null,null,null,null,null,null,null,null,null,null,null,null,null,null,null,null,null,null,null,null,null,null,null,null,null,null,null,null,null,null,null,null,null,null,null,null,null,null,null,null,null,null,null,null,null,null,null,null,null,null,null,null,null,null,null,null,null,null,null,null,null,null,null,null,null,null,null,null,null,null,null,null,null,null,null,null,null,null,null,null,null,null,null,null,null,null,null,null,null,null,null,null,null,null,null,null,null,null,null,null,null,null,null,null,null,null,null,null,null,null,null,null,null,null,null,null,null,null,null,null,null,null,null,null,null,null,null,null,null,null,null,null,null,null,null,null,null,null,null,null,null,null,null,null,null,null,null,null,null,null,null,null,null,null,null,null,null,null,null,null,null,null,null,null,null,null,null,null,null,null,null,null,null,null,null,null,null,null,null,null,null,null,null,null,null,null,null,null,null,null,null,null,null,null,null,null,null,null,null,null,null,null,null,null,null,null,null,null,null,null,null,null,null,null,null,null,null,null,null,null,null,null,null,null,null,null,null,null,null,null,null,null,null,null,null,null,null,null,null,null,null,null,null,null,null,null,null,null,null,null,null,null,null,null,null,null,null,null,null,null,null,null,null,null,null,null,null,null,null,null,null,null,null,null,null,null,null,null,null,null,null,null,null,null,null,null,null,null,null,null,null,null,null,null,null,null,null,null,null,null,null,null,null,null,null,null,null,null,null,null,null,null,null,null,null,null,null,null,null,null,null,null,null,null,null,null,null,null,null,null,null,null,null,null,null,null,null,null,null,null,null,null,null,null,null,null,null,null,null,null,null,null,null,null,null,null,null,null,null,null,null,null,null,null,null,null,null,null,null,null,null,null,null,null,null,null,null,null,null,null,null,null,null,null,null,null,null,null,null,null,null,null,null,null,null,null,null,null,null,null,null,null,null,null,null,null,null,null,null,null,null,null,null,null,null,null,null,null,null,null,null,null,null,null,null,null,null,null,null,null,null,null,null,null,null,null,null,null,null,null,null,null,null,null,null,null,null,null,null,null,null,null,null,null,null,null,null,null,null,null,null,null,null,null,null,null,null,null,null,null,null,null,null,null,null,null,null,null,null,null,null,null,null,null,null,null,null,null,null,null,null,null,null,null,null,null,null,null,null,null,null,null,null,null,null,null,null,null,null,null,null,null,null,null,null,null,null,null,null,null,null,null,null,null,null,null,null,null,null,null,null,null,null,null,null,null,null,null,null,null,null,null,null,null,null,null,null,null,null,null,null,null,null,null,null,null,null,null,null,null,null,null,null,null,null,null,null,null,null,null,null,null,null,null,null,null,null,null,null,null,null,null,null,null,null,null,null,null,null,null,null,null,null,null,null,null,null,null,null,null,null,null,null,null,null,null,null,null,null,null,null,null,null,null,null,null,null,null,null,null,null,null,null,null,null,null,null,null,null,null,null,null,null,null,null,null,null,null,null,null,null,null,null,null,null,null,null,null,null,null,null,null,null,null,null,null,null,null,null,null,null,null,null,null,null,null,null,null,null,null,null,null,null,null,null,null,null,null,null,null,null,null,null,null,null,null,null,null,null,null,null,null,null,null,null,null,null,null,null,null,null,null,null,null,null,null,null,null,null,null,null,null,null,null,null,null,null,null,null,null,null,null,null,null,null,null,null,null,null,null,null,null,null,null,null,null,null,null,null,null,null,null,null,null,null,null,null,null,null,null,null,null,null,null,null,null,null,null,null,null,null,null,null,null,null,null,null,null,null,null,null,null,null,null,null,null,null,null,null,null,null,null,null,null,null,null,null,null,null,null,null,null,null,null,null,null,null,null,null,null,null,null,null,null,null,null,null,null,null,null,null,null,null,null,null,null,null,null,null,null,null,null,null,null,null,null,null,null,null,null,null,null,null,null,null,null,null,null,null,null,null,null,null,null,null,null,null,null,null,null,null,null,null,null,null,null,null,null,null,null,null,null,null,null,null,null,null,null,null,null,null,null,null,null,null,null,null,null,null,null,null,null,null,null,null,null,null,null,null,null,null,null,null,null,null,null,null,null,null,null,null,null,null,null,null,null,null,null,null,null,null,null,null,null,null,null,null,null,null,null,null,null,null,null,null,null,null,null,null,null,null,null,null,null,null,null,null,null,null,null,null,null,null,null,null,null,null,null,null,null,null,null,null,null,null,null,null,null,null,null,null,null,null,null,null,null,null,null,null,null,null,null,null,null,null,null,null,null,null,null,null,null,null,null,null,null,null,null,null,null,null,null,null,null,null,null,null,null,null,null,null,null,null,null,null,null,null,null,null,null,null,null,null,null,null,null,null,null,null,null,null,null,null,null,null,null,null,null,null,null,null,null,null,null,null,null,null,null,null,null,null,null,null,null,null,null,null,null,null,null,null,null,null,null,null,null,null,null,null,null,null,null,null,null,null,null,null,null,null,null,null,null,null,null,null,null,null,null,null,null,null,null,null,null,null,null,null,null,null,null,null,null,null,null,null,null,null,null,null,null,null,null,null,null,null,null,null,null,null,null,null,null,null,null,null,null,null,null,null,null,null,null,null,null,null,null,null,null,null,null,null,null,null,null,null,null,null,null,null,null,null,null,null,null,null,null,null,null,null,null,null,null,null,null,null,null,null,null,null,null,null,null,null,null,null,null,null,null,null,null,null,null,null,null,null,null,null,null,null,null,null,null,null,null,null,null,null,null,null,null,null,null,null,null,null,null,null,null,null,null,null,null,null,null,null,null,null,null,null,null,null,null,null,null,null,null,null,null,null,null,null,null,null,null,null,null,null,null,null,null,null,null,null,null,null,null,null,null,null,null,null,null,null,null,null,null,null,null,null,null,null,null,null,null,null,null,null,null,null,null,null,null,null,null,null,null,null,null,null,null,null,null,null,null,null,null,null,null,null,null,null,null,null,null,null,null,null,null,null,null,null,null,null,null,null,null,null,null,null,null,null,null,null,null,null,null,null,null,null,null,null,null,null,null,null,null,null,null,null,null,null,null,null,null,null,null,null,null,null,null,null,null,null,null,null,null,null,null,null,null,null,null,null,null,null,null,null,null,null,null,null,null,null,null,null,null,null,null,null,null,null,null,null,null,null,null,null,null,null,null,null,null,null,null,null,null,null,null,null,null,null,null,null,null,null,null,null,null,null,null,null,null,null,null,null,null,null,null,null,null,null,null,null,null,null,null,null,null,null,null,null,null,null,null,null,null,null,null,null,null,null,null,null,null,null,null,null,null,null,null,null,null,null,null,null,null,null,null,null,null,null,null,null,null,null,null,null,null,null,null,null,null,null,null,null,null,null,null,null,null,null,null,null,null,null,null,null,null,null,null,null,null,null,null,null,null,null,null,null,null,null,null,null,null,null,null,null,null,null,null,null,null,null,null,null,null,null,null,null,null,null,null,null,null,null,null,null,null,null,null,null,null,null,null,null,null,null,null,null,null,null,null,null,null,null,null,null,null,null,null,null,null,null,null,null,null,null,null,null,null,null,null,null,null,null,null,null,null,null,null,null,null,null,null,null,null,null,null,null,null,null,null,null,null,null,null,null,null,null,null,null,null,null,null,null,null,null,null,null,null,null,null,null,null,null,null,null,null,null,null,null,null,null,null,null,null,null,null,null,null,null,null,null,null,null,null,null,null,null,null,null,null,null,null,null,null,null,null,null,null,null,null,null,null,null,null,null,null,null,null,null,null,null,null,null,null,null,null,null,null,null,null,null,null,null,null,null,null,null,null,null,null,null,null,null,null,null,null,null,null,null,null,null,null,null,null,null,null,null,null,null,null,null,null,null,null,null,null,null,null,null,null,null,null,null,null,null,null,null,null,null,null,null,null,null,null,null,null,null,null,null,null,null,null,null,null,null,null,null,null,null,null,null,null,null,null,null,null,null,null,null,null,null,null,null,null,null,null,null,null,null,null,null,null,null,null,null,null,null,null,null,null,null,null,null,null,null,null,null,null,null,null,null,null,null,null,null,null,null,null,null,null,null,null,null,null,null,null,null,null,null,null,null,null,null,null,null,null,null,null,null,null,null,null,null,null,null,null,null,null,null,null,null,null,null,null,null,null,null,null,null,null,null,null,null,null,null,null,null,null,null,null,null,null,null,null,null,null,null,null,null,null,null,null,null,null,null,null,null,null,null,null,null,null,null,null,null,null,null,null,null,null,null,null,null,null,null,null,null,null,null,null,null,null,null,null,null,null,null,null,null,null,null,null,null,null,null,null,null,null,null,null,null,null,null,null,null,null,null,null,null,null,null,null,null,null,null,null,null,null,null,null,null,null,null,null,null,null,null,null,null,null,null,null,null,null,null,null,null,null,null,null,null,null,null,null,null,null,null,null,null,null,null,null,null,null,null,null,null,null,null,null,null,null,null,null,null,null,null,null,null,null,null,null,null,null,null,null,null,null,null,null,null,null,null,null,null,null,null,null,null,null,null,null,null,null,null,null,null,null,null,null,null,null,null,null,null,null,null,null,null,null,null,null,null,null,null,null,null,null,null,null,null,null,null,null,null,null,null,null,null,null,null,null,null,null,null,null,null,null,null,null,null,null,null,null,null,null,null,null,null,null,null,null,null,null,null,null,null,null,null,null,null,null,null,null,null,null,null,null,null,null,null,null,null,null,null,null,null,null,null,null,null,null,null,null,null,null,null,null,null,null,null,null,null,null,null,null,null,null,null,null,null,null,null,null,null,null,null,null,null,null,null,null,null,null,null,null,null,null,null,null,null,null,null,null,null,null,null,null,null,null,null,null,null,null,null,null,null,null,null,null,null,null,null,null,null,null,null,null,null,null,null,null,null,null,null,null,null,null,null,null,null,null,null,null,null,null,null,null,null,null,null,null,null,null,null,null,null,null,null,null,null,null,null,null,null,null,null,null,null,null,null,null,null,null,null,null,null,null,null,null,null,null,null,null,null,null,null,null,null,null,null,null,null,null,null,null,null,null,null,null,null,null,null,null,null,null,null,null,null,null,null,null,null,null,null,null,null,null,null,null,null,null,null,null,null,null,null,null,null,null,null,null,null,null,null,null,null,null,null,null,null,null,null,null,null,null,null,null,null,null,null,null,null,null,null,null,null,null,null,null,null,null,null,null,null,null,null,null,null,null,null,null,null,null,null,null,null,null,null,null,null,null,null,null,null,null,null,null,null,null,null,null,null,null,null,null,null,null,null,null,null,null,null,null,null,null,null,null,null,null,null,null,null,null,null,null,null,null,null,null,null,null,null,null,null,null,null,null,null,null,null,null,null,null,null,null,null,null,null,null,null,null,null,null,null,null,null,null,null,null,null,null,null,null,null,null,null,null,null,null,null,null,null,null,null,null,null,null,null,null,null,null,null,null,null,null,null,null,null,null,null,null,null,null,null,null,null,null,null,null,null,null,null,null,null,null,null,null,null,null,null,null,null,null,null,null,null,null,null,null,null,null,null,null,null,null,null,null,null,null,null,null,null,null,null,null,null,null,null,null,null,null,null,null,null,null,null,null,null,null,null,null,null,null,null,null,null,null,null,null,null,null,null,null,null,null,null,null,null,null,null,null,null,null,null,null,null,null,null,null,null,null,null,null,null,null,null,null,null,null,null,null,null,null,null,null,null,null,null,null,null,null,null,null,null,null,null,null,null,null,null,null,null,null,null,null,null,null,null,null,null,null,null,null,null,null,null,null,null,null,null,null,null,null,null,null,null,null,null,null,null,null,null,null,null,null,null,null,null,null,null,null,null,null,null,null,null,null,null,null,null,null,null,null,null,null,null,null,null,null,null,null,null,null,null,null,null,null,null,null,null,null,null,null,null,null,null,null,null,null,null,null,null,null,null,null,null,null,null,null,null,null,null,null,null,null,null,null,null,null,null,null,null,null,null,null,null,null,null,null,null,null,null,null,null,null,null,null,null,null,null,null,null,null,null,null,null,null,null,null,null,null,null,null,null,null,null,null,null,null,null,null,null,null,null,null,null,null,null,null,null,null,null,null,null,null,null,null,null,null,null,null,null,null,null,null,null,null,null,null,null,null,null,null,null,null,null,null,null,null,null,null,null,null,null,null,null,null,null,null,null,null,null,null,null,null,null,null,null,null,null,null,null,null,null,null,null,null,null,null,null,null,null,null,null,null,null,null,null,null,null,null,null,null,null,null,null,null,null,null,null,null,null,null,null,null,null,null,null,null,null,null,null,null,null,null,null,null,null,null,null,null,null,null,null,null,null,null,null,null,null,null,null,null,null,null,null,null,null,null,null,null,null,null,null,null,null,null,null,null,null,null,null,null,null,null,null,null,null,null,null,null,null,null,null,null,null,null,null,null,null,null,null,null,null,null,null,null,null,null,null,null,null,null,null,null,null,null,null,null,null,null,null,null,null,null,null,null,null,null,null,null,null,null,null,null,null,null,null,null,null,null,null,null,null,null,null,null,null,null,null,null,null,null,null,null,null,null,null,null,null,null,null,null,null,null,null,null,null,null,null,null,null,null,null,null,null,null,null,null,null,null,null,null,null,null,null,null,null,null,null,null,null,null,null,null,null,null,null,null,null,null,null,null,null,null,null,null,null,null,null,null,null,null,null,null,null,null,null,null,null,null,null,null,null,null,null,null,null,null,null,null,null,null,null,null,null,null,null,null,null,null,null,null,null,null,null,null,null,null,null,null,null,null,null,null,null,null,null,null,null,null,null,null,null,null,null,null,null,null,null,null,null,null,null,null,null,null,null,null,null,null,null,null,null,null,null,null,null,null,null,null,null,null,null,null,null,null,null,null,null,null,null,null,null,null,null,null,null,null,null,null,null,null,null,null,null,null,null,null,null,null,null,null,null,null,null,null,null,null,null,null,null,null,null,null,null,null,null,null,null,null,null,null,null,null,null,null,null,null,null,null,null,null,null,null,null,null,null,null,null,null,null,null,null,null,null,null,null,null,null,null,null,null,null,null,null,null,null,null,null,null,null,null,null,null,null,null,null,null,null,null,null,null,null,null,null,null,null,null,null,null,null,null,null,null,null,null,null,null,null,null,null,null,null,null,null,null,null,null,null,null,null,null,null,null,null,null,null,null,null,null,null,null,null,null,null,null,null,null,null,null,null,null,null,null,null,null,null,null,null,null,null,null,null,null,null,null,null,null,null,null,null,null,null,null,null,null,null,null,null,null,null,null,null,null,null,null,null,null,null,null,null,null,null,null,null,null,null,null,null,null,null,null,null,null,null,null,null,null,null,null,null,null,null,null,null,null,null,null,null,null,null,null,null,null,null,null,null,null,null,null,null,null,null,null,null,null,null,null,null,null,null,null,null,null,null,null,null,null,null,null,null,null,null,null,null,null,null,null,null,null,null,null,null,null,null,null,null,null,null,null,null,null,null,null,null,null,null,null,null,null,null,null,null,null,null,null,null,null,null,null,null,null,null,null,null,null,null,null,null,null,null,null,null,null,null,null,null,null,null,null,null,null,null,null,null,null,null,null,null,null,null,null,null,null,null,null,null,null,null,null,null,null,null,null,null,null,null,null,null,null,null,null,null,null,null,null,null,null,null,null,null,null,null,null,null,null,null,null,null,null,null,null,null,null,null,null,null,null,null,null,null,null,null,null,null,null,null,null,null,null,null,null,null,null,null,null,null,null,null,null,null,null,null,null,null,null,null,null,null,null,null,null,null,null,null,null,null,null,null,null,null,null,null,null,null,null,null,null,null,null,null,null,null,null,null,null,null,null,null,null,null,null,null,null,null,null,null,null,null,null,null,null,null,null,null,null,null,null,null,null,null,null,null,null,null,null,null,null,null,null,null,null,null,null,null,null,null,null,null,null,null,null,null,null,null,null,null,null,null,null,null,null,null,null,null,null,null,null,null,null,null,null,null,null,null,null,null,null,null,null,null,null,null,null,null,null,null,null,null,null,null,null,null,null,null,null,null,null,null,null,null,null,null,null,null,null,null,null,null,null,null,null,null,null,null,null,null,null,null,null,null,null,null,null,null,null,null,null,null,null,null,null,null,null,null,null,null,null,null,null,null,null,null,null,null,null,null,null,null,null,null,null,null,null,null,null,null,null,null,null,null,null,null,null,null,null,null,null,null,null,null,null,null,null,null,null,null,null,null,null,null,null,null,null,null,null,null,null,null,null,null,null,null,null,null,null,null,null,null,null,null,null,null,null,null,null,null,null,null,null,null,null,null,null,null,null,null,null,null,null,null,null,null,null,null,null,null,null,null,null,null,null,null,null,null,null,null,null,null,null,null,null,null,null,null,null,null,null,null,null,null,null,null,null,null,null,null,null,null,null,null,null,null,null,null,null,null,null,null,null,null,null,null,null,null,null,null,null,null,null,null,null,null,null,null,null,null,null,null,null,null,null,null,null,null,null,null,null,null,null,null,null,null,null,null,null,null,null,null,null,null,null,null,null,null,null,null,null,null,null,null,null,null,null,null,null,null,null,null,null,null,null,null,null,null,null,null,null,null,null,null,null,null,null,null,null,null,null,null,null,null,null,null,null,null,null,null,null,null,null,null,null,null,null,null,null,null,null,null,null,null,null,null,null,null,null,null,null,null,null,null,null,null,null,null,null,null,null,null,null,null,null,null,null,null,null,null,null,null,null,null,null,null,null,null,null,null,null,null,null,null,null,null,null,null,null,null,null,null,null,null,null,null,null,null,null,null,null,null,null,null,null,null,null,null,null,null,null,null,null,null,null,null,null,null,null,null,null,null,null,null,null,null,null,null,null,null,null,null,null,null,null,null,null,null,null,null,null,null,null,null,null,null,null,null,null,null,null,null,null,null,null,null,null,null,null,null,null,null,null,null,null,null,null,null,null,null,null,null,null,null,null,null,null,null,null,null,null,null,null,null,null,null,null,null,null,null,null,null,null,null,null,null,null,null,null,null,null,null,null,null,null,null,null,null,null,null,null,null,null,null,null,null,null,null,null,null,null,null,null,null,null,null,null,null,null,null,null,null,null,null,null,null,null,null,null,null,null,null,null,null,null,null,null,null,null,null,null,null,null,null,null,null,null,null,null,null,null,null,null,null,null,null,null,null,null,null,null,null,null,null,null,null,null,null,null,null,null,null,null,null,null,null,null,null,null,null,null,null,null,null,null,null,null,null,null,null,null,null,null,null,null,null,null,null,null,null,null,null,null,null,null,null,null,null,null,null,null,null,null,null,null,null,null,null,null,null,null,null,null,null,null,null,null,null,null,null,null,null,null,null,null,null,null,null,null,null,null,null,null,null,null,null,null,null,null,null,null,null,null,null,null,null,null,null,null,null,null,null,null,null,null,null,null,null,null,null,null,null,null,null,null,null,null,null,null,null,null,null,null,null,null,null,null,null,null,null,null,null,null,null,null,null,null,null,null,null,null,null,null,null,null,null,null,null,null,null,null,null,null,null,null,null,null,null,null,null,null,null,null,null,null,null,null,null,null,null,null,null,null,null,null,null,null,null,null,null,null,null,null,null,null,null,null,null,null,null,null,null,null,null,null,null,null,null,null,null,null,null,null,null,null,null,null,null,null,null,null,null,null,null,null,null,null,null,null,null,null,null,null,null,null,null,null,null,null,null,null,null,null,null,null,null,null,null,null,null,null,null,null,null,null,null,null,null,null,null,null,null,null,null,null,null,null,null,null,null,null,null,null,null,null,null,null,null,null,null,null,null,null,null,null,null,null,null,null,null,null,null,null,null,null,null,null,null,null,null,null,null,null,null,null,null,null,null,null,null,null,null,null,null,null,null,null,null,null,null,null,null,null,null,null,null,null,null,null,null,null,null,null,null,null,null,null,null,null,null,null,null,null,null,null,null,null,null,null,null,null,null,null,null,null,null,null,null,null,null,null,null,null,null,null,null,null,null,null,null,null,null,null,null,null,null,null,null,null,null,null,null,null,null,null,null,null,null,null,null,null,null,null,null,null,null,null,null,null,null,null,null,null,null,null,null,null,null,null,null,null,null,null,null,null,null,null,null,null,null,null,null,null,null,null,null,null,null,null,null,null,null,null,null,null,null,null,null,null,null,null,null,null,null,null,null,null,null,null,null,null,null,null,null,null,null,null,null,null,null,null,null,null,null,null,null,null,null,null,null,null,null,null,null,null,null,null,null,null,null,null,null,null,null,null,null,null,null,null,null,null,null,null,null,null,null,null,null,null,null,null,null,null,null,null,null,null,null,null,null,null,null,null,null,null,null,null,null,null,null,null,null,null,null,null,null,null,null,null,null,null,null,null,null,null,null,null,null,null,null,null,null,null,null,null,null,null,null,null,null,null,null,null,null,null,null,null,null,null,null,null,null,null,null,null,null,null,null,null,null,null,null,null,null,null,null,null,null,null,null,null,null,null,null,null,null,null,null,null,null,null,null,null,null,null,null,null,null,null,null,null,null,null,null,null,null,null,null,null,null,null,null,null,null,null,null,null,null,null,null,null,null,null,null,null,null,null,null,null,null,null,null,null,null,null,null,null,null,null,null,null,null,null,null,null,null,null,null,null,null,null,null,null,null,null,null,null,null,null,null,null,null,null,null,null,null,null,null,null,null,null,null,null,null,null,null,null,null,null,null,null,null,null,null,null,null,null,null,null,null,null,null,null,null,null,null,null,null,null,null,null,null,null,null,null,null,null,null,null,null,null,null,null,null,null,null,null,null,null,null,null,null,null,null,null,null,null,null,null,null,null,null,null,null,null,null,null,null,null,null,null,null,null,null,null,null,null,null,null,null,null,null,null,null,null,null,null,null,null,null,null,null,null,null,null,null,null,null,null,null,null,null,null,null,null,null,null,null,null,null,null,null,null,null,null,null,null,null,null,null,null,null,null,null,null,null,null,null,null,null,null,null,null,null,null,null,null,null,null,null,null,null,null,null,null,null,null,null,null,null,null,null,null,null,null,null,null,null,null,null,null,null,null,null,null,null,null,null,null,null,null,null,null,null,null,null,null,null,null,null,null,null,null,null,null,null,null,null,null,null,null,null,null,null,null,null,null,null,null,null,null,null,null,null,null,null,null,null,null,null,null,null,null,null,null,null,null,null,null,null,null,null,null,null,null,null,null,null,null,null,null,null,null,null,null,null,null,null,null,null,null,null,null,null,null,null,null,null,null,null,null,null,null,null,null,null,null,null,null,null,null,null,null,null,null,null,null,null,null,null,null,null,null,null,null,null,null,null,null,null,null,null,null,null,null,null,null,null,null,null,null,null,null,null,null,null,null,null,null,null,null,null,null,null,null,null,null,null,null,null,null,null,null,null,null,null,null,null,null,null,null,null,null,null,null,null,null,null,null,null,null,null,null,null,null,null,null,null,null,null,null,null,null,null,null,null,null,null,null,null,null,null,null,null,null,null,null,null,null,null,null,null,null,null,null,null,null,null,null,null,null,null,null,null,null,null,null,null,null,null,null,null,null,null,null,null,null,null,null,null,null,null,null,null,null,null,null,null,null,null,null,null,null,null,null,null,null,null,null,null,null,null,null,null,null,null,null,null,null,null,null,null,null,null,null,null,null,null,null,null,null,null,null,null,null,null,null,null,null,null,null,null,null,null,null,null,null,null,null,null,null,null,null,null,null,null,null,null,null,null,null,null,null,null,null,null,null,null,null,null,null,"CASANARE"]
[null,"JULIO",0,0,0,null,"JULIO",{"$f":"Hoja8!B29","v":0},{"$f":"Hoja8!C29","v":0},{"$f":"Hoja8!D29","v":0},{"$f":"Hoja8!E29","v":0},{"$f":"Hoja8!F29","v":0},{"$f":"Hoja8!G29","v":0},{"$f":"Hoja8!H29","v":0},{"$f":"Hoja8!I29","v":0},0,0,0,null,null,null,null,null,null,null,null,null,null,null,null,null,null,null,null,null,null,null,null,null,null,null,null,null,null,null,null,null,null,null,null,null,null,null,null,null,null,null,null,null,null,null,null,null,null,null,null,null,null,null,null,null,null,null,null,null,null,null,null,null,null,null,null,null,null,null,null,null,null,null,null,null,null,null,null,null,null,null,null,null,null,null,null,null,null,null,null,null,null,null,null,null,null,null,null,null,null,null,null,null,null,null,null,null,null,null,null,null,null,null,null,null,null,null,null,null,null,null,null,null,null,null,null,null,null,null,null,null,null,null,null,null,null,null,null,null,null,null,null,null,null,null,null,null,null,null,null,null,null,null,null,null,null,null,null,null,null,null,null,null,null,null,null,null,null,null,null,null,null,null,null,null,null,null,null,null,null,null,null,null,null,null,null,null,null,null,null,null,null,null,null,null,null,null,null,null,null,null,null,null,null,null,null,null,null,null,null,null,null,null,null,null,null,null,null,null,null,null,null,null,null,null,null,null,null,null,null,null,null,null,null,null,null,null,null,null,null,null,null,null,null,null,null,null,null,null,null,null,null,null,null,null,null,null,null,null,null,null,null,null,null,null,null,null,null,null,null,null,null,null,null,null,null,null,null,null,null,null,null,null,null,null,null,null,null,null,null,null,null,null,null,null,null,null,null,null,null,null,null,null,null,null,null,null,null,null,null,null,null,null,null,null,null,null,null,null,null,null,null,null,null,null,null,null,null,null,null,null,null,null,null,null,null,null,null,null,null,null,null,null,null,null,null,null,null,null,null,null,null,null,null,null,null,null,null,null,null,null,null,null,null,null,null,null,null,null,null,null,null,null,null,null,null,null,null,null,null,null,null,null,null,null,null,null,null,null,null,null,null,null,null,null,null,null,null,null,null,null,null,null,null,null,null,null,null,null,null,null,null,null,null,null,null,null,null,null,null,null,null,null,null,null,null,null,null,null,null,null,null,null,null,null,null,null,null,null,null,null,null,null,null,null,null,null,null,null,null,null,null,null,null,null,null,null,null,null,null,null,null,null,null,null,null,null,null,null,null,null,null,null,null,null,null,null,null,null,null,null,null,null,null,null,null,null,null,null,null,null,null,null,null,null,null,null,null,null,null,null,null,null,null,null,null,null,null,null,null,null,null,null,null,null,null,null,null,null,null,null,null,null,null,null,null,null,null,null,null,null,null,null,null,null,null,null,null,null,null,null,null,null,null,null,null,null,null,null,null,null,null,null,null,null,null,null,null,null,null,null,null,null,null,null,null,null,null,null,null,null,null,null,null,null,null,null,null,null,null,null,null,null,null,null,null,null,null,null,null,null,null,null,null,null,null,null,null,null,null,null,null,null,null,null,null,null,null,null,null,null,null,null,null,null,null,null,null,null,null,null,null,null,null,null,null,null,null,null,null,null,null,null,null,null,null,null,null,null,null,null,null,null,null,null,null,null,null,null,null,null,null,null,null,null,null,null,null,null,null,null,null,null,null,null,null,null,null,null,null,null,null,null,null,null,null,null,null,null,null,null,null,null,null,null,null,null,null,null,null,null,null,null,null,null,null,null,null,null,null,null,null,null,null,null,null,null,null,null,null,null,null,null,null,null,null,null,null,null,null,null,null,null,null,null,null,null,null,null,null,null,null,null,null,null,null,null,null,null,null,null,null,null,null,null,null,null,null,null,null,null,null,null,null,null,null,null,null,null,null,null,null,null,null,null,null,null,null,null,null,null,null,null,null,null,null,null,null,null,null,null,null,null,null,null,null,null,null,null,null,null,null,null,null,null,null,null,null,null,null,null,null,null,null,null,null,null,null,null,null,null,null,null,null,null,null,null,null,null,null,null,null,null,null,null,null,null,null,null,null,null,null,null,null,null,null,null,null,null,null,null,null,null,null,null,null,null,null,null,null,null,null,null,null,null,null,null,null,null,null,null,null,null,null,null,null,null,null,null,null,null,null,null,null,null,null,null,null,null,null,null,null,null,null,null,null,null,null,null,null,null,null,null,null,null,null,null,null,null,null,null,null,null,null,null,null,null,null,null,null,null,null,null,null,null,null,null,null,null,null,null,null,null,null,null,null,null,null,null,null,null,null,null,null,null,null,null,null,null,null,null,null,null,null,null,null,null,null,null,null,null,null,null,null,null,null,null,null,null,null,null,null,null,null,null,null,null,null,null,null,null,null,null,null,null,null,null,null,null,null,null,null,null,null,null,null,null,null,null,null,null,null,null,null,null,null,null,null,null,null,null,null,null,null,null,null,null,null,null,null,null,null,null,null,null,null,null,null,null,null,null,null,null,null,null,null,null,null,null,null,null,null,null,null,null,null,null,null,null,null,null,null,null,null,null,null,null,null,null,null,null,null,null,null,null,null,null,null,null,null,null,null,null,null,null,null,null,null,null,null,null,null,null,null,null,null,null,null,null,null,null,null,null,null,null,null,null,null,null,null,null,null,null,null,null,null,null,null,null,null,null,null,null,null,null,null,null,null,null,null,null,null,null,null,null,null,null,null,null,null,null,null,null,null,null,null,null,null,null,null,null,null,null,null,null,null,null,null,null,null,null,null,null,null,null,null,null,null,null,null,null,null,null,null,null,null,null,null,null,null,null,null,null,null,null,null,null,null,null,null,null,null,null,null,null,null,null,null,null,null,null,null,null,null,null,null,null,null,null,null,null,null,null,null,null,null,null,null,null,null,null,null,null,null,null,null,null,null,null,null,null,null,null,null,null,null,null,null,null,null,null,null,null,null,null,null,null,null,null,null,null,null,null,null,null,null,null,null,null,null,null,null,null,null,null,null,null,null,null,null,null,null,null,null,null,null,null,null,null,null,null,null,null,null,null,null,null,null,null,null,null,null,null,null,null,null,null,null,null,null,null,null,null,null,null,null,null,null,null,null,null,null,null,null,null,null,null,null,null,null,null,null,null,null,null,null,null,null,null,null,null,null,null,null,null,null,null,null,null,null,null,null,null,null,null,null,null,null,null,null,null,null,null,null,null,null,null,null,null,null,null,null,null,null,null,null,null,null,null,null,null,null,null,null,null,null,null,null,null,null,null,null,null,null,null,null,null,null,null,null,null,null,null,null,null,null,null,null,null,null,null,null,null,null,null,null,null,null,null,null,null,null,null,null,null,null,null,null,null,null,null,null,null,null,null,null,null,null,null,null,null,null,null,null,null,null,null,null,null,null,null,null,null,null,null,null,null,null,null,null,null,null,null,null,null,null,null,null,null,null,null,null,null,null,null,null,null,null,null,null,null,null,null,null,null,null,null,null,null,null,null,null,null,null,null,null,null,null,null,null,null,null,null,null,null,null,null,null,null,null,null,null,null,null,null,null,null,null,null,null,null,null,null,null,null,null,null,null,null,null,null,null,null,null,null,null,null,null,null,null,null,null,null,null,null,null,null,null,null,null,null,null,null,null,null,null,null,null,null,null,null,null,null,null,null,null,null,null,null,null,null,null,null,null,null,null,null,null,null,null,null,null,null,null,null,null,null,null,null,null,null,null,null,null,null,null,null,null,null,null,null,null,null,null,null,null,null,null,null,null,null,null,null,null,null,null,null,null,null,null,null,null,null,null,null,null,null,null,null,null,null,null,null,null,null,null,null,null,null,null,null,null,null,null,null,null,null,null,null,null,null,null,null,null,null,null,null,null,null,null,null,null,null,null,null,null,null,null,null,null,null,null,null,null,null,null,null,null,null,null,null,null,null,null,null,null,null,null,null,null,null,null,null,null,null,null,null,null,null,null,null,null,null,null,null,null,null,null,null,null,null,null,null,null,null,null,null,null,null,null,null,null,null,null,null,null,null,null,null,null,null,null,null,null,null,null,null,null,null,null,null,null,null,null,null,null,null,null,null,null,null,null,null,null,null,null,null,null,null,null,null,null,null,null,null,null,null,null,null,null,null,null,null,null,null,null,null,null,null,null,null,null,null,null,null,null,null,null,null,null,null,null,null,null,null,null,null,null,null,null,null,null,null,null,null,null,null,null,null,null,null,null,null,null,null,null,null,null,null,null,null,null,null,null,null,null,null,null,null,null,null,null,null,null,null,null,null,null,null,null,null,null,null,null,null,null,null,null,null,null,null,null,null,null,null,null,null,null,null,null,null,null,null,null,null,null,null,null,null,null,null,null,null,null,null,null,null,null,null,null,null,null,null,null,null,null,null,null,null,null,null,null,null,null,null,null,null,null,null,null,null,null,null,null,null,null,null,null,null,null,null,null,null,null,null,null,null,null,null,null,null,null,null,null,null,null,null,null,null,null,null,null,null,null,null,null,null,null,null,null,null,null,null,null,null,null,null,null,null,null,null,null,null,null,null,null,null,null,null,null,null,null,null,null,null,null,null,null,null,null,null,null,null,null,null,null,null,null,null,null,null,null,null,null,null,null,null,null,null,null,null,null,null,null,null,null,null,null,null,null,null,null,null,null,null,null,null,null,null,null,null,null,null,null,null,null,null,null,null,null,null,null,null,null,null,null,null,null,null,null,null,null,null,null,null,null,null,null,null,null,null,null,null,null,null,null,null,null,null,null,null,null,null,null,null,null,null,null,null,null,null,null,null,null,null,null,null,null,null,null,null,null,null,null,null,null,null,null,null,null,null,null,null,null,null,null,null,null,null,null,null,null,null,null,null,null,null,null,null,null,null,null,null,null,null,null,null,null,null,null,null,null,null,null,null,null,null,null,null,null,null,null,null,null,null,null,null,null,null,null,null,null,null,null,null,null,null,null,null,null,null,null,null,null,null,null,null,null,null,null,null,null,null,null,null,null,null,null,null,null,null,null,null,null,null,null,null,null,null,null,null,null,null,null,null,null,null,null,null,null,null,null,null,null,null,null,null,null,null,null,null,null,null,null,null,null,null,null,null,null,null,null,null,null,null,null,null,null,null,null,null,null,null,null,null,null,null,null,null,null,null,null,null,null,null,null,null,null,null,null,null,null,null,null,null,null,null,null,null,null,null,null,null,null,null,null,null,null,null,null,null,null,null,null,null,null,null,null,null,null,null,null,null,null,null,null,null,null,null,null,null,null,null,null,null,null,null,null,null,null,null,null,null,null,null,null,null,null,null,null,null,null,null,null,null,null,null,null,null,null,null,null,null,null,null,null,null,null,null,null,null,null,null,null,null,null,null,null,null,null,null,null,null,null,null,null,null,null,null,null,null,null,null,null,null,null,null,null,null,null,null,null,null,null,null,null,null,null,null,null,null,null,null,null,null,null,null,null,null,null,null,null,null,null,null,null,null,null,null,null,null,null,null,null,null,null,null,null,null,null,null,null,null,null,null,null,null,null,null,null,null,null,null,null,null,null,null,null,null,null,null,null,null,null,null,null,null,null,null,null,null,null,null,null,null,null,null,null,null,null,null,null,null,null,null,null,null,null,null,null,null,null,null,null,null,null,null,null,null,null,null,null,null,null,null,null,null,null,null,null,null,null,null,null,null,null,null,null,null,null,null,null,null,null,null,null,null,null,null,null,null,null,null,null,null,null,null,null,null,null,null,null,null,null,null,null,null,null,null,null,null,null,null,null,null,null,null,null,null,null,null,null,null,null,null,null,null,null,null,null,null,null,null,null,null,null,null,null,null,null,null,null,null,null,null,null,null,null,null,null,null,null,null,null,null,null,null,null,null,null,null,null,null,null,null,null,null,null,null,null,null,null,null,null,null,null,null,null,null,null,null,null,null,null,null,null,null,null,null,null,null,null,null,null,null,null,null,null,null,null,null,null,null,null,null,null,null,null,null,null,null,null,null,null,null,null,null,null,null,null,null,null,null,null,null,null,null,null,null,null,null,null,null,null,null,null,null,null,null,null,null,null,null,null,null,null,null,null,null,null,null,null,null,null,null,null,null,null,null,null,null,null,null,null,null,null,null,null,null,null,null,null,null,null,null,null,null,null,null,null,null,null,null,null,null,null,null,null,null,null,null,null,null,null,null,null,null,null,null,null,null,null,null,null,null,null,null,null,null,null,null,null,null,null,null,null,null,null,null,null,null,null,null,null,null,null,null,null,null,null,null,null,null,null,null,null,null,null,null,null,null,null,null,null,null,null,null,null,null,null,null,null,null,null,null,null,null,null,null,null,null,null,null,null,null,null,null,null,null,null,null,null,null,null,null,null,null,null,null,null,null,null,null,null,null,null,null,null,null,null,null,null,null,null,null,null,null,null,null,null,null,null,null,null,null,null,null,null,null,null,null,null,null,null,null,null,null,null,null,null,null,null,null,null,null,null,null,null,null,null,null,null,null,null,null,null,null,null,null,null,null,null,null,null,null,null,null,null,null,null,null,null,null,null,null,null,null,null,null,null,null,null,null,null,null,null,null,null,null,null,null,null,null,null,null,null,null,null,null,null,null,null,null,null,null,null,null,null,null,null,null,null,null,null,null,null,null,null,null,null,null,null,null,null,null,null,null,null,null,null,null,null,null,null,null,null,null,null,null,null,null,null,null,null,null,null,null,null,null,null,null,null,null,null,null,null,null,null,null,null,null,null,null,null,null,null,null,null,null,null,null,null,null,null,null,null,null,null,null,null,null,null,null,null,null,null,null,null,null,null,null,null,null,null,null,null,null,null,null,null,null,null,null,null,null,null,null,null,null,null,null,null,null,null,null,null,null,null,null,null,null,null,null,null,null,null,null,null,null,null,null,null,null,null,null,null,null,null,null,null,null,null,null,null,null,null,null,null,null,null,null,null,null,null,null,null,null,null,null,null,null,null,null,null,null,null,null,null,null,null,null,null,null,null,null,null,null,null,null,null,null,null,null,null,null,null,null,null,null,null,null,null,null,null,null,null,null,null,null,null,null,null,null,null,null,null,null,null,null,null,null,null,null,null,null,null,null,null,null,null,null,null,null,null,null,null,null,null,null,null,null,null,null,null,null,null,null,null,null,null,null,null,null,null,null,null,null,null,null,null,null,null,null,null,null,null,null,null,null,null,null,null,null,null,null,null,null,null,null,null,null,null,null,null,null,null,null,null,null,null,null,null,null,null,null,null,null,null,null,null,null,null,null,null,null,null,null,null,null,null,null,null,null,null,null,null,null,null,null,null,null,null,null,null,null,null,null,null,null,null,null,null,null,null,null,null,null,null,null,null,null,null,null,null,null,null,null,null,null,null,null,null,null,null,null,null,null,null,null,null,null,null,null,null,null,null,null,null,null,null,null,null,null,null,null,null,null,null,null,null,null,null,null,null,null,null,null,null,null,null,null,null,null,null,null,null,null,null,null,null,null,null,null,null,null,null,null,null,null,null,null,null,null,null,null,null,null,null,null,null,null,null,null,null,null,null,null,null,null,null,null,null,null,null,null,null,null,null,null,null,null,null,null,null,null,null,null,null,null,null,null,null,null,null,null,null,null,null,null,null,null,null,null,null,null,null,null,null,null,null,null,null,null,null,null,null,null,null,null,null,null,null,null,null,null,null,null,null,null,null,null,null,null,null,null,null,null,null,null,null,null,null,null,null,null,null,null,null,null,null,null,null,null,null,null,null,null,null,null,null,null,null,null,null,null,null,null,null,null,null,null,null,null,null,null,null,null,null,null,null,null,null,null,null,null,null,null,null,null,null,null,null,null,null,null,null,null,null,null,null,null,null,null,null,null,null,null,null,null,null,null,null,null,null,null,null,null,null,null,null,null,null,null,null,null,null,null,null,null,null,null,null,null,null,null,null,null,null,null,null,null,null,null,null,null,null,null,null,null,null,null,null,null,null,null,null,null,null,null,null,null,null,null,null,null,null,null,null,null,null,null,null,null,null,null,null,null,null,null,null,null,null,null,null,null,null,null,null,null,null,null,null,null,null,null,null,null,null,null,null,null,null,null,null,null,null,null,null,null,null,null,null,null,null,null,null,null,null,null,null,null,null,null,null,null,null,null,null,null,null,null,null,null,null,null,null,null,null,null,null,null,null,null,null,null,null,null,null,null,null,null,null,null,null,null,null,null,null,null,null,null,null,null,null,null,null,null,null,null,null,null,null,null,null,null,null,null,null,null,null,null,null,null,null,null,null,null,null,null,null,null,null,null,null,null,null,null,null,null,null,null,null,null,null,null,null,null,null,null,null,null,null,null,null,null,null,null,null,null,null,null,null,null,null,null,null,null,null,null,null,null,null,null,null,null,null,null,null,null,null,null,null,null,null,null,null,null,null,null,null,null,null,null,null,null,null,null,null,null,null,null,null,null,null,null,null,null,null,null,null,null,null,null,null,null,null,null,null,null,null,null,null,null,null,null,null,null,null,null,null,null,null,null,null,null,null,null,null,null,null,null,null,null,null,null,null,null,null,null,null,null,null,null,null,null,null,null,null,null,null,null,null,null,null,null,null,null,null,null,null,null,null,null,null,null,null,null,null,null,null,null,null,null,null,null,null,null,null,null,null,null,null,null,null,null,null,null,null,null,null,null,null,null,null,null,null,null,null,null,null,null,null,null,null,null,null,null,null,null,null,null,null,null,null,null,null,null,null,null,null,null,null,null,null,null,null,null,null,null,null,null,null,null,null,null,null,null,null,null,null,null,null,null,null,null,null,null,null,null,null,null,null,null,null,null,null,null,null,null,null,null,null,null,null,null,null,null,null,null,null,null,null,null,null,null,null,null,null,null,null,null,null,null,null,null,null,null,null,null,null,null,null,null,null,null,null,null,null,null,null,null,null,null,null,null,null,null,null,null,null,null,null,null,null,null,null,null,null,null,null,null,null,null,null,null,null,null,null,null,null,null,null,null,null,null,null,null,null,null,null,null,null,null,null,null,null,null,null,null,null,null,null,null,null,null,null,null,null,null,null,null,null,null,null,null,null,null,null,null,null,null,null,null,null,null,null,null,null,null,null,null,null,null,null,null,null,null,null,null,null,null,null,null,null,null,null,null,null,null,null,null,null,null,null,null,null,null,null,null,null,null,null,null,null,null,null,null,null,null,null,null,null,null,null,null,null,null,null,null,null,null,null,null,null,null,null,null,null,null,null,null,null,null,null,null,null,null,null,null,null,null,null,null,null,null,null,null,null,null,null,null,null,null,null,null,null,null,null,null,null,null,null,null,null,null,null,null,null,null,null,null,null,null,null,null,null,null,null,null,null,null,null,null,null,null,null,null,null,null,null,null,null,null,null,null,null,null,null,null,null,null,null,null,null,null,null,null,null,null,null,null,null,null,null,null,null,null,null,null,null,null,null,null,null,null,null,null,null,null,null,null,null,null,null,null,null,null,null,null,null,null,null,null,null,null,null,null,null,null,null,null,null,null,null,null,null,null,null,null,null,null,null,null,null,null,null,null,null,null,null,null,null,null,null,null,null,null,null,null,null,null,null,null,null,null,null,null,null,null,null,null,null,null,null,null,null,null,null,null,null,null,null,null,null,null,null,null,null,null,null,null,null,null,null,null,null,null,null,null,null,null,null,null,null,null,null,null,null,null,null,null,null,null,null,null,null,null,null,null,null,null,null,null,null,null,null,null,null,null,null,null,null,null,null,null,null,null,null,null,null,null,null,null,null,null,null,null,null,null,null,null,null,null,null,null,null,null,null,null,null,null,null,null,null,null,null,null,null,null,null,null,null,null,null,null,null,null,null,null,null,null,null,null,null,null,null,null,null,null,null,null,null,null,null,null,null,null,null,null,null,null,null,null,null,null,null,null,null,null,null,null,null,null,null,null,null,null,null,null,null,null,null,null,null,null,null,null,null,null,null,null,null,null,null,null,null,null,null,null,null,null,null,null,null,null,null,null,null,null,null,null,null,null,null,null,null,null,null,null,null,null,null,null,null,null,null,null,null,null,null,null,null,null,null,null,null,null,null,null,null,null,null,null,null,null,null,null,null,null,null,null,null,null,null,null,null,null,null,null,null,null,null,null,null,null,null,null,null,null,null,null,null,null,null,null,null,null,null,null,null,null,null,null,null,null,null,null,null,null,null,null,null,null,null,null,null,null,null,null,null,null,null,null,null,null,null,null,null,null,null,null,null,null,null,null,null,null,null,null,null,null,null,null,null,null,null,null,null,null,null,null,null,null,null,null,null,null,null,null,null,null,null,null,null,null,null,null,null,null,null,null,null,null,null,null,null,null,null,null,null,null,null,null,null,null,null,null,null,null,null,null,null,null,null,null,null,null,null,null,null,null,null,null,null,null,null,null,null,null,null,null,null,null,null,null,null,null,null,null,null,null,null,null,null,null,null,null,null,null,null,null,null,null,null,null,null,null,null,null,null,null,null,null,null,null,null,null,null,null,null,null,null,null,null,null,null,null,null,null,null,null,null,null,null,null,null,null,null,null,null,null,null,null,null,null,null,null,null,null,null,null,null,null,null,null,null,null,null,null,null,null,null,null,null,null,null,null,null,null,null,null,null,null,null,null,null,null,null,null,null,null,null,null,null,null,null,null,null,null,null,null,null,null,null,null,null,null,null,null,null,null,null,null,null,null,null,null,null,null,null,null,null,null,null,null,null,null,null,null,null,null,null,null,null,null,null,null,null,null,null,null,null,null,null,null,null,null,null,null,null,null,null,null,null,null,null,null,null,null,null,null,null,null,null,null,null,null,null,null,null,null,null,null,null,null,null,null,null,null,null,null,null,null,null,null,null,null,null,null,null,null,null,null,null,null,null,null,null,null,null,null,null,null,null,null,null,null,null,null,null,null,null,null,null,null,null,null,null,null,null,null,null,null,null,null,null,null,null,null,null,null,null,null,null,null,null,null,null,null,null,null,null,null,null,null,null,null,null,null,null,null,null,null,null,null,null,null,null,null,null,null,null,null,null,null,null,null,null,null,null,null,null,null,null,null,null,null,null,null,null,null,null,null,null,null,null,null,null,null,null,null,null,null,null,null,null,null,null,null,null,null,null,null,null,null,null,null,null,null,null,null,null,null,null,null,null,null,null,null,null,null,null,null,null,null,null,null,null,null,null,null,null,null,null,null,null,null,null,null,null,null,null,null,null,null,null,null,null,null,null,null,null,null,null,null,null,null,null,null,null,null,null,null,null,null,null,null,null,null,null,null,null,null,null,null,null,null,null,null,null,null,null,null,null,null,null,null,null,null,null,null,null,null,null,null,null,null,null,null,null,null,null,null,null,null,null,null,null,null,null,null,null,null,null,null,null,null,null,null,null,null,null,null,null,null,null,null,null,null,null,null,null,null,null,null,null,null,null,null,null,null,null,null,null,null,null,null,null,null,null,null,null,null,null,null,null,null,null,null,null,null,null,null,null,null,null,null,null,null,null,null,null,null,null,null,null,null,null,null,null,null,null,null,null,null,null,null,null,null,null,null,null,null,null,null,null,null,null,null,null,null,null,null,null,null,null,null,null,null,null,null,null,null,null,null,null,null,null,null,null,null,null,null,null,null,null,null,null,null,null,null,null,null,null,null,null,null,null,null,null,null,null,null,null,null,null,null,null,null,null,null,null,null,null,null,null,null,null,null,null,null,null,null,null,null,null,null,null,null,null,null,null,null,null,null,null,null,null,null,null,null,null,null,null,null,null,null,null,null,null,null,null,null,null,null,null,null,null,null,null,null,null,null,null,null,null,null,null,null,null,null,null,null,null,null,null,null,null,null,null,null,null,null,null,null,null,null,null,null,null,null,null,null,null,null,null,null,null,null,null,null,null,null,null,null,null,null,null,null,null,null,null,null,null,null,null,null,null,null,null,null,null,null,null,null,null,null,null,null,null,null,null,null,null,null,null,null,null,null,null,null,null,null,null,null,null,null,null,null,null,null,null,null,null,null,null,null,null,null,null,null,null,null,null,null,null,null,null,null,null,null,null,null,null,null,null,null,null,null,null,null,null,null,null,null,null,null,null,null,null,null,null,null,null,null,null,null,null,null,null,null,null,null,null,null,null,null,null,null,null,null,null,null,null,null,null,null,null,null,null,null,null,null,null,null,null,null,null,null,null,null,null,null,null,null,null,null,null,null,null,null,null,null,null,null,null,null,null,null,null,null,null,null,null,null,null,null,null,null,null,null,null,null,null,null,null,null,null,null,null,null,null,null,null,null,null,null,null,null,null,null,null,null,null,null,null,null,null,null,null,null,null,null,null,null,null,null,null,null,null,null,null,null,null,null,null,null,null,null,null,null,null,null,null,null,null,null,null,null,null,null,null,null,null,null,null,null,null,null,null,null,null,null,null,null,null,null,null,null,null,null,null,null,null,null,null,null,null,null,null,null,null,null,null,null,null,null,null,null,null,null,null,null,null,null,null,null,null,null,null,null,null,null,null,null,null,null,null,null,null,null,null,null,null,null,null,null,null,null,null,null,null,null,null,null,null,null,null,null,null,null,null,null,null,null,null,null,null,null,null,null,null,null,null,null,null,null,null,null,null,null,null,null,null,null,null,null,null,null,null,null,null,null,null,null,null,null,null,null,null,null,null,null,null,null,null,null,null,null,null,null,null,null,null,null,null,null,null,null,null,null,null,null,null,null,null,null,null,null,null,null,null,null,null,null,null,null,null,null,null,null,null,null,null,null,null,null,null,null,null,null,null,null,null,null,null,null,null,null,null,null,null,null,null,null,null,null,null,null,null,null,null,null,null,null,null,null,null,null,null,null,null,null,null,null,null,null,null,null,null,null,null,null,null,null,null,null,null,null,null,null,null,null,null,null,null,null,null,null,null,null,null,null,null,null,null,null,null,null,null,null,null,null,null,null,null,null,null,null,null,null,null,null,null,null,null,null,null,null,null,null,null,null,null,null,null,null,null,null,null,null,null,null,null,null,null,null,null,null,null,null,null,null,null,null,null,null,null,null,null,null,null,null,null,null,null,null,null,null,null,null,null,null,null,null,null,null,null,null,null,null,null,null,null,null,null,null,null,null,null,null,null,null,null,null,null,null,null,null,null,null,null,null,null,null,null,null,null,null,null,null,null,null,null,null,null,null,null,null,null,null,null,null,null,null,null,null,null,null,null,null,null,null,null,null,null,null,null,null,null,null,null,null,null,null,null,null,null,null,null,null,null,null,null,null,null,null,null,null,null,null,null,null,null,null,null,null,null,null,null,null,null,null,null,null,null,null,null,null,null,null,null,null,null,null,null,null,null,null,null,null,null,null,null,null,null,null,null,null,null,null,null,null,null,null,null,null,null,null,null,null,null,null,null,null,null,null,null,null,null,null,null,null,null,null,null,null,null,null,null,null,null,null,null,null,null,null,null,null,null,null,null,null,null,null,null,null,null,null,null,null,null,null,null,null,null,null,null,null,null,null,null,null,null,null,null,null,null,null,null,null,null,null,null,null,null,null,null,null,null,null,null,null,null,null,null,null,null,null,null,null,null,null,null,null,null,null,null,null,null,null,null,null,null,null,null,null,null,null,null,null,null,null,null,null,null,null,null,null,null,null,null,null,null,null,null,null,null,null,null,null,null,null,null,null,null,null,null,null,null,null,null,null,null,null,null,null,null,null,null,null,null,null,null,null,null,null,null,null,null,null,null,null,null,null,null,null,null,null,null,null,null,null,null,null,null,null,null,null,null,null,null,null,null,null,null,null,null,null,null,null,null,null,null,null,null,null,null,null,null,null,null,null,null,null,null,null,null,null,null,null,null,null,null,null,null,null,null,null,null,null,null,null,null,null,null,null,null,null,null,null,null,null,null,null,null,null,null,null,null,null,null,null,null,null,null,null,null,null,null,null,null,null,null,null,null,null,null,null,null,null,null,null,null,null,null,null,null,null,null,null,null,null,null,null,null,null,null,null,null,null,null,null,null,null,null,null,null,null,null,null,null,null,null,null,null,null,null,null,null,null,null,null,null,null,null,null,null,null,null,null,null,null,null,null,null,null,null,null,null,null,null,null,null,null,null,null,null,null,null,null,null,null,null,null,null,null,null,null,null,null,null,null,null,null,null,null,null,null,null,null,null,null,null,null,null,null,null,null,null,null,null,null,null,null,null,null,null,null,null,null,null,null,null,null,null,null,null,null,null,null,null,null,null,null,null,null,null,null,null,null,null,null,null,null,null,null,null,null,null,null,null,null,null,null,null,null,null,null,null,null,null,null,null,null,null,null,null,null,null,null,null,null,null,null,null,null,null,null,null,null,null,null,null,null,null,null,null,null,null,null,null,null,null,null,null,null,null,null,null,null,null,null,null,null,null,null,null,null,null,null,null,null,null,null,null,null,null,null,null,null,null,null,null,null,null,null,null,null,null,null,null,null,null,null,null,null,null,null,null,null,null,null,null,null,null,null,null,null,null,null,null,null,null,null,null,null,null,null,null,null,null,null,null,null,null,null,null,null,null,null,null,null,null,null,null,null,null,null,null,null,null,null,null,null,null,null,null,null,null,null,null,null,null,null,null,null,null,null,null,null,null,null,null,null,null,null,null,null,null,null,null,null,null,null,null,null,null,null,null,null,null,null,null,null,null,null,null,null,null,null,null,null,null,null,null,null,null,null,null,null,null,null,null,null,null,null,null,null,null,null,null,null,null,null,null,null,null,null,null,null,null,null,null,null,null,null,null,null,null,null,null,null,null,null,null,null,null,null,null,null,null,null,null,null,null,null,null,null,null,null,null,null,null,null,null,null,null,null,null,null,null,null,null,null,null,null,null,null,null,null,null,null,null,null,null,null,null,null,null,null,null,null,null,null,null,null,null,null,null,null,null,null,null,null,null,null,null,null,null,null,null,null,null,null,null,null,null,null,null,null,null,null,null,null,null,null,null,null,null,null,null,null,null,null,null,null,null,null,null,null,null,null,null,null,null,null,null,null,null,null,null,null,null,null,null,null,null,null,null,null,null,null,null,null,null,null,null,null,null,null,null,null,null,null,null,null,null,null,null,null,null,null,null,null,null,null,null,null,null,null,null,null,null,null,null,null,null,null,null,null,null,null,null,null,null,null,null,null,null,null,null,null,null,null,null,null,null,null,null,null,null,null,null,null,null,null,null,null,null,null,null,null,null,null,null,null,null,null,null,null,null,null,null,null,null,null,null,null,null,null,null,null,null,null,null,null,null,null,null,null,null,null,null,null,null,null,null,null,null,null,null,null,null,null,null,null,null,null,null,null,null,null,null,null,null,null,null,null,null,null,null,null,null,null,null,null,null,null,null,null,null,null,null,null,null,null,null,null,null,null,null,null,null,null,null,null,null,null,null,null,null,null,null,null,null,null,null,null,null,null,null,null,null,null,null,null,null,null,null,null,null,null,null,null,null,null,null,null,null,null,null,null,null,null,null,null,null,null,null,null,null,null,null,null,null,null,null,null,null,null,null,null,null,null,null,null,null,null,null,null,null,null,null,null,null,null,null,null,null,null,null,null,null,null,null,null,null,null,null,null,null,null,null,null,null,null,null,null,null,null,null,null,null,null,null,null,null,null,null,null,null,null,null,null,null,null,null,null,null,null,null,null,null,null,null,null,null,null,null,null,null,null,null,null,null,null,null,null,null,null,null,null,null,null,null,null,null,null,null,null,null,null,null,null,null,null,null,null,null,null,null,null,null,null,null,null,null,null,null,null,null,null,null,null,null,null,null,null,null,null,null,null,null,null,null,null,null,null,null,null,null,null,null,null,null,null,null,null,null,null,null,null,null,null,null,null,null,null,null,null,null,null,null,null,null,null,null,null,null,null,null,null,null,null,null,null,null,null,null,null,null,null,null,null,null,null,null,null,null,null,null,null,null,null,null,null,null,null,null,null,null,null,null,null,null,null,null,null,null,null,null,null,null,null,null,null,null,null,null,null,null,null,null,null,null,null,null,null,null,null,null,null,null,null,null,null,null,null,null,null,null,null,null,null,null,null,null,null,null,null,null,null,null,null,null,null,null,null,null,null,null,null,null,null,null,null,null,null,null,null,null,null,null,null,null,null,null,null,null,null,null,null,null,null,null,null,null,null,null,null,null,null,null,null,null,null,null,null,null,null,null,null,null,null,null,null,null,null,null,null,null,null,null,null,null,null,null,null,null,null,null,null,null,null,null,null,null,null,null,null,null,null,null,null,null,null,null,null,null,null,null,null,null,null,null,null,null,null,null,null,null,null,null,null,null,null,null,null,null,null,null,null,null,null,null,null,null,null,null,null,null,null,null,null,null,null,null,null,null,null,null,null,null,null,null,null,null,null,null,null,null,null,null,null,null,null,null,null,null,null,null,null,null,null,null,null,null,null,null,null,null,null,null,null,null,null,null,null,null,null,null,null,null,null,null,null,null,null,null,null,null,null,null,null,null,null,null,null,null,null,null,null,null,null,null,null,null,null,null,null,null,null,null,null,null,null,null,null,null,null,null,null,null,null,null,null,null,null,null,null,null,null,null,null,null,null,null,null,null,null,null,null,null,null,null,null,null,null,null,null,null,null,null,null,null,null,null,null,null,null,null,null,null,null,null,null,null,null,null,null,null,null,null,null,null,null,null,null,null,null,null,null,null,null,null,null,null,null,null,null,null,null,null,null,null,null,null,null,null,null,null,null,null,null,null,null,null,null,null,null,null,null,null,null,null,null,null,null,null,null,null,null,null,null,null,null,null,null,null,null,null,null,null,null,null,null,null,null,null,null,null,null,null,null,null,null,null,null,null,null,null,null,null,null,null,null,null,null,null,null,null,null,null,null,null,null,null,null,null,null,null,null,null,null,null,null,null,null,null,null,null,null,null,null,null,null,null,null,null,null,null,null,null,null,null,null,null,null,null,null,null,null,null,null,null,null,null,null,null,null,null,null,null,null,null,null,null,null,null,null,null,null,null,null,null,null,null,null,null,null,null,null,null,null,null,null,null,null,null,null,null,null,null,null,null,null,null,null,null,null,null,null,null,null,null,null,null,null,null,null,null,null,null,null,null,null,null,null,null,null,null,null,null,null,null,null,null,null,null,null,null,null,null,null,null,null,null,null,null,null,null,null,null,null,null,null,null,null,null,null,null,null,null,null,null,null,null,null,null,null,null,null,null,null,null,null,null,null,null,null,null,null,null,null,null,null,null,null,null,null,null,null,null,null,null,null,null,null,null,null,null,null,null,null,null,null,null,null,null,null,null,null,null,null,null,null,null,null,null,null,null,null,null,null,null,null,null,null,null,null,null,null,null,null,null,null,null,null,null,null,null,null,null,null,null,null,null,null,null,null,null,null,null,null,null,null,null,null,null,null,null,null,null,null,null,null,null,null,null,null,null,null,null,null,null,null,null,null,null,null,null,null,null,null,null,null,null,null,null,null,null,null,null,null,null,null,null,null,null,null,null,null,null,null,null,null,null,null,null,null,null,null,null,null,null,null,null,null,null,null,null,null,null,null,null,null,null,null,null,null,null,null,null,null,null,null,null,null,null,null,null,null,null,null,null,null,null,null,null,null,null,null,null,null,null,null,null,null,null,null,null,null,null,null,null,null,null,null,null,null,null,null,null,null,null,null,null,null,null,null,null,null,null,null,null,null,null,null,null,null,null,null,null,null,null,null,null,null,null,null,null,null,null,null,null,null,null,null,null,null,null,null,null,null,null,null,null,null,null,null,null,null,null,null,null,null,null,null,null,null,null,null,null,null,null,null,null,null,null,null,null,null,null,null,null,null,null,null,null,null,null,null,null,null,null,null,null,null,null,null,null,null,null,null,null,null,null,null,null,null,null,null,null,null,null,null,null,null,null,null,null,null,null,null,null,null,null,null,null,null,null,null,null,null,null,null,null,null,null,null,null,null,null,null,null,null,null,null,null,null,null,null,null,null,null,null,null,null,null,null,null,null,null,null,null,null,null,null,null,null,null,null,null,null,null,null,null,null,null,null,null,null,null,null,null,null,null,null,null,null,null,null,null,null,null,null,null,null,null,null,null,null,null,null,null,null,null,null,null,null,null,null,null,null,null,null,null,null,null,null,null,null,null,null,null,null,null,null,null,null,null,null,null,null,null,null,null,null,null,null,null,null,null,null,null,null,null,null,null,null,null,null,null,null,null,null,null,null,null,null,null,null,null,null,null,null,null,null,null,null,null,null,null,null,null,null,null,null,null,null,null,null,null,null,null,null,null,null,null,null,null,null,null,null,null,null,null,null,null,null,null,null,null,null,null,null,null,null,null,null,null,null,null,null,null,null,null,null,null,null,null,null,null,null,null,null,null,null,null,null,null,null,null,null,null,null,null,null,null,null,null,null,null,null,null,null,null,null,null,null,null,null,null,null,null,null,null,null,null,null,null,null,null,null,null,null,null,null,null,null,null,null,null,null,null,null,null,null,null,null,null,null,null,null,null,null,null,null,null,null,null,null,null,null,null,null,null,null,null,null,null,null,null,null,null,null,null,null,null,null,null,null,null,null,null,null,null,null,null,null,null,null,null,null,null,null,null,null,null,null,null,null,null,null,null,null,null,null,null,null,null,null,null,null,null,null,null,null,null,null,null,null,null,null,null,null,null,null,null,null,null,null,null,null,null,null,null,null,null,null,null,null,null,null,null,null,null,null,null,null,null,null,null,null,null,null,null,null,null,null,null,null,null,null,null,null,null,null,null,null,null,null,null,null,null,null,null,null,null,null,null,null,null,null,null,null,null,null,null,null,null,null,null,null,null,null,null,null,null,null,null,null,null,null,null,null,null,null,null,null,null,null,null,null,null,null,null,null,null,null,null,null,null,null,null,null,null,null,null,null,null,null,null,null,null,null,null,null,null,null,null,null,null,null,null,null,null,null,null,null,null,null,null,null,null,null,null,null,null,null,null,null,null,null,null,null,null,null,null,null,null,null,null,null,null,null,null,null,null,null,null,null,null,null,null,null,null,null,null,null,null,null,null,null,null,null,null,null,null,null,null,null,null,null,null,null,null,null,null,null,null,null,null,null,null,null,null,null,null,null,null,null,null,null,null,null,null,null,null,null,null,null,null,null,null,null,null,null,null,null,null,null,null,null,null,null,null,null,null,null,null,null,null,null,null,null,null,null,null,null,null,null,null,null,null,null,null,null,null,null,null,null,null,null,null,null,null,null,null,null,null,null,null,null,null,null,null,null,null,null,null,null,null,null,null,null,null,null,null,null,null,null,null,null,null,null,null,null,null,null,null,null,null,null,null,null,null,null,null,null,null,null,null,null,null,null,null,null,null,null,null,null,null,null,null,null,null,null,null,null,null,null,null,null,null,null,null,null,null,null,null,null,null,null,null,null,null,null,null,null,null,null,null,null,null,null,null,null,null,null,null,null,null,null,null,null,null,null,null,null,null,null,null,null,null,null,null,null,null,null,null,null,null,null,null,null,null,null,null,null,null,null,null,null,null,null,null,null,null,null,null,null,null,null,null,null,null,null,null,null,null,null,null,null,null,null,null,null,null,null,null,null,null,null,null,null,null,null,null,null,null,null,null,null,null,null,null,null,null,null,null,null,null,null,null,null,null,null,null,null,null,null,null,null,null,null,null,null,null,null,null,null,null,null,null,null,null,null,null,null,null,null,null,null,null,null,null,null,null,null,null,null,null,null,null,null,null,null,null,null,null,null,null,null,null,null,null,null,null,null,null,null,null,null,null,null,null,null,null,null,null,null,null,null,null,null,null,null,null,null,null,null,null,null,null,null,null,null,null,null,null,null,null,null,null,null,null,null,null,null,null,null,null,null,null,null,null,null,null,null,null,null,null,null,null,null,null,null,null,null,null,null,null,null,null,null,null,null,null,null,null,null,null,null,null,null,null,null,null,null,null,null,null,null,null,null,null,null,null,null,null,null,null,null,null,null,null,null,null,null,null,null,null,null,null,null,null,null,null,null,null,null,null,null,null,null,null,null,null,null,null,null,null,null,null,null,null,null,null,null,null,null,null,null,null,null,null,null,null,null,null,null,null,null,null,null,null,null,null,null,null,null,null,null,null,null,null,null,null,null,null,null,null,null,null,null,null,null,null,null,null,null,null,null,null,null,null,null,null,null,null,null,null,null,null,null,null,null,null,null,null,null,null,null,null,null,null,null,null,null,null,null,null,null,null,null,null,null,null,null,null,null,null,null,null,null,null,null,null,null,null,null,null,null,null,null,null,null,null,null,null,null,null,null,null,null,null,null,null,null,null,null,null,null,null,null,null,null,null,null,null,null,null,null,null,null,null,null,null,null,null,null,null,null,null,null,null,null,null,null,null,null,null,null,null,null,null,null,null,null,null,null,null,null,null,null,null,null,null,null,null,null,null,null,null,null,null,null,null,null,null,null,null,null,null,null,null,null,null,null,null,null,null,null,null,null,null,null,null,null,null,null,null,null,null,null,null,null,null,null,null,null,null,null,null,null,null,null,null,null,null,null,null,null,null,null,null,null,null,null,null,null,null,null,null,null,null,null,null,null,null,null,null,null,null,null,null,null,null,null,null,null,null,null,null,null,null,null,null,null,null,null,null,null,null,null,null,null,null,null,null,null,null,null,null,null,null,null,null,null,null,null,null,null,null,null,null,null,null,null,null,null,null,null,null,null,null,null,null,null,null,null,null,null,null,null,null,null,null,null,null,null,null,null,null,null,null,null,null,null,null,null,null,null,null,null,null,null,null,null,null,null,null,null,null,null,null,null,null,null,null,null,null,null,null,null,null,null,null,null,null,null,null,null,null,null,null,null,null,null,null,null,null,null,null,null,null,null,null,null,null,null,null,null,null,null,null,null,null,null,null,null,null,null,null,null,null,null,null,null,null,null,null,null,null,null,null,null,null,null,null,null,null,null,null,null,null,null,null,null,null,null,null,null,null,null,null,null,null,null,null,null,null,null,null,null,null,null,null,null,null,null,null,null,null,null,null,null,null,null,null,null,null,null,null,null,null,null,null,null,null,null,null,null,null,null,null,null,null,null,null,null,null,null,null,null,null,null,null,null,null,null,null,null,null,null,null,null,null,null,null,null,null,null,null,null,null,null,null,null,null,null,null,null,null,null,null,null,null,null,null,null,null,null,null,null,null,null,null,null,null,null,null,null,null,null,null,null,null,null,null,null,null,null,null,null,null,null,null,null,null,null,null,null,null,null,null,null,null,null,null,null,null,null,null,null,null,null,null,null,null,null,null,null,null,null,null,null,null,null,null,null,null,null,null,null,null,null,null,null,null,null,null,null,null,null,null,null,null,null,null,null,null,null,null,null,null,null,null,null,null,null,null,null,null,null,null,null,null,null,null,null,null,null,null,null,null,null,null,null,null,null,null,null,null,null,null,null,null,null,null,null,null,null,null,null,null,null,null,null,null,null,null,null,null,null,null,null,null,null,null,null,null,null,null,null,null,null,null,null,null,null,null,null,null,null,null,null,null,null,null,null,null,null,null,null,null,null,null,null,null,null,null,null,null,null,null,null,null,null,null,null,null,null,null,null,null,null,null,null,null,null,null,null,null,null,null,null,null,null,null,null,null,null,null,null,null,null,null,null,null,null,null,null,null,null,null,null,null,null,null,null,null,null,null,null,null,null,null,null,null,null,null,null,null,null,null,null,null,null,null,null,null,null,null,null,null,null,null,null,null,null,null,null,null,null,null,null,null,null,null,null,null,null,null,null,null,null,null,null,null,null,null,null,null,null,null,null,null,null,null,null,null,null,null,null,null,null,null,null,null,null,null,null,null,null,null,null,null,null,null,null,null,null,null,null,null,null,null,null,null,null,null,null,null,null,null,null,null,null,null,null,null,null,null,null,null,null,null,null,null,null,null,null,null,null,null,null,null,null,null,null,null,null,null,null,null,null,null,null,null,null,null,null,null,null,null,null,null,null,null,null,null,null,null,null,null,null,null,null,null,null,null,null,null,null,null,null,null,null,null,null,null,null,null,null,null,null,null,null,null,null,null,null,null,null,null,null,null,null,null,null,null,null,null,null,null,null,null,null,null,null,null,null,null,null,null,null,null,null,null,null,null,null,null,null,null,null,null,null,null,null,null,null,null,null,null,null,null,null,null,null,null,null,null,null,null,null,null,null,null,null,null,null,null,null,null,null,null,null,null,null,null,null,null,null,null,null,null,null,null,null,null,null,null,null,null,null,null,null,null,null,null,null,null,null,null,null,null,null,null,null,null,null,null,null,null,null,null,null,null,null,null,null,null,null,null,null,null,null,null,null,null,null,null,null,null,null,null,null,null,null,null,null,null,null,null,null,null,null,null,null,null,null,null,null,null,null,null,null,null,null,null,null,null,null,null,null,null,null,null,null,null,null,null,null,null,null,null,null,null,null,null,null,null,null,null,null,null,null,null,null,null,null,null,null,null,null,null,null,null,null,null,null,null,null,null,null,null,null,null,null,null,null,null,null,null,null,null,null,null,null,null,null,null,null,null,null,null,null,null,null,null,null,null,null,null,null,null,null,null,null,null,null,null,null,null,null,null,null,null,null,null,null,null,null,null,null,null,null,null,null,null,null,null,null,null,null,null,null,null,null,null,null,null,null,null,null,null,null,null,null,null,null,null,null,null,null,null,null,null,null,null,null,null,null,null,null,null,null,null,null,null,null,null,null,null,null,null,null,null,null,null,null,null,null,null,null,null,null,null,null,null,null,null,null,null,null,null,null,null,null,null,null,null,null,null,null,null,null,null,null,null,null,null,null,null,null,null,null,null,null,null,null,null,null,null,null,null,null,null,null,null,null,null,null,null,null,null,null,null,null,null,null,null,null,null,null,null,null,null,null,null,null,null,null,null,null,null,null,null,null,null,null,null,null,null,null,null,null,null,null,null,null,null,null,null,null,null,null,null,null,null,null,null,null,null,null,null,null,null,null,null,null,null,null,null,null,null,null,null,null,null,null,null,null,null,null,null,null,null,null,null,null,null,null,null,null,null,null,null,null,null,null,null,null,null,null,null,null,null,null,null,null,null,null,null,null,null,null,null,null,null,null,null,null,null,null,null,null,null,null,null,null,null,null,null,null,null,null,null,null,null,null,null,null,null,null,null,null,null,null,null,null,null,null,null,null,null,null,null,null,null,null,null,null,null,null,null,null,null,null,null,null,null,null,null,null,null,null,null,null,null,null,null,null,null,null,null,null,null,null,null,null,null,null,null,null,null,null,null,null,null,null,null,null,null,null,null,null,null,null,null,null,null,null,null,null,null,null,null,null,null,null,null,null,null,null,null,null,null,null,null,null,null,null,null,null,null,null,null,null,null,null,null,null,null,null,null,null,null,null,null,null,null,null,null,null,null,null,null,null,null,null,null,null,null,null,null,null,null,null,null,null,null,null,null,null,null,null,null,null,null,null,null,null,null,null,null,null,null,null,null,null,null,null,null,null,null,null,null,null,null,null,null,null,null,null,null,null,null,null,null,null,null,null,null,null,null,null,null,null,null,null,null,null,null,null,null,null,null,null,null,null,null,null,null,null,null,null,null,null,null,null,null,null,null,null,null,null,null,null,null,null,null,null,null,null,null,null,null,null,null,null,null,null,null,null,null,null,null,null,null,null,null,null,null,null,null,null,null,null,null,null,null,null,null,null,null,null,null,null,null,null,null,null,null,null,null,null,null,null,null,null,null,null,null,null,null,null,null,null,null,null,null,null,null,null,null,null,null,null,null,null,null,null,null,null,null,null,null,null,null,null,null,null,null,null,null,null,null,null,null,null,null,null,null,null,null,null,null,null,null,null,null,null,null,null,null,null,null,null,null,null,null,null,null,null,null,null,null,null,null,null,null,null,null,null,null,null,null,null,null,null,null,null,null,null,null,null,null,null,null,null,null,null,null,null,null,null,null,null,null,null,null,null,null,null,null,null,null,null,null,null,null,null,null,null,null,null,null,null,null,null,null,null,null,null,null,null,null,null,null,null,null,null,null,null,null,null,null,null,null,null,null,null,null,null,null,null,null,null,null,null,null,null,null,null,null,null,null,null,null,null,null,null,null,null,null,null,null,null,null,null,null,null,null,null,null,null,null,null,null,null,null,null,null,null,null,null,null,null,null,null,null,null,null,null,null,null,null,null,null,null,null,null,null,null,null,null,null,null,null,null,null,null,null,null,null,null,null,null,null,null,null,null,null,null,null,null,null,null,null,null,null,null,null,null,null,null,null,null,null,null,null,null,null,null,null,null,null,null,null,null,null,null,null,null,null,null,null,null,null,null,null,null,null,null,null,null,null,null,null,null,null,null,null,null,null,null,null,null,null,null,null,null,null,null,null,null,null,null,null,null,null,null,null,null,null,null,null,null,null,null,null,null,null,null,null,null,null,null,null,null,null,null,null,null,null,null,null,null,null,null,null,null,null,null,null,null,null,null,null,null,null,null,null,null,null,null,null,null,null,null,null,null,null,null,null,null,null,null,null,null,null,null,null,null,null,null,null,null,null,null,null,null,null,null,null,null,null,null,null,null,null,null,null,null,null,null,null,null,null,null,null,null,null,null,null,null,null,null,null,null,null,null,null,null,null,null,null,null,null,null,null,null,null,null,null,null,null,null,null,null,null,null,null,null,null,null,null,null,null,null,null,null,null,null,null,null,null,null,null,null,null,null,null,null,null,null,null,null,null,null,null,null,null,null,null,null,null,null,null,null,null,null,null,null,null,null,null,null,null,null,null,null,null,null,null,null,null,null,null,null,null,null,null,null,null,null,null,null,null,null,null,null,null,null,null,null,null,null,null,null,null,null,null,null,null,null,null,null,null,null,null,null,null,null,null,null,null,null,null,null,null,null,null,null,null,null,null,null,null,null,null,null,null,null,null,null,null,null,null,null,null,null,null,null,null,null,null,null,null,null,null,null,null,null,null,null,null,null,null,null,null,null,null,null,null,null,null,null,null,null,null,null,null,null,null,null,null,null,null,null,null,null,null,null,null,null,null,null,null,null,null,null,null,null,null,null,null,null,null,null,null,null,null,null,null,null,null,null,null,null,null,null,null,null,null,null,null,null,null,null,null,null,null,null,null,null,null,null,null,null,null,null,null,null,null,null,null,null,null,null,null,null,null,null,null,null,null,null,null,null,null,null,null,null,null,null,null,null,null,null,null,null,null,null,null,null,null,null,null,null,null,null,null,null,null,null,null,null,null,null,null,null,null,null,null,null,null,null,null,null,null,null,null,null,null,null,null,null,null,null,null,null,null,null,null,null,null,null,null,null,null,null,null,null,null,null,null,null,null,null,null,null,null,null,null,null,null,null,null,null,null,null,null,null,null,null,null,null,null,null,null,null,null,null,null,null,null,null,null,null,null,null,null,null,null,null,null,null,null,null,null,null,null,null,null,null,null,null,null,null,null,null,null,null,null,null,null,null,null,null,null,null,null,null,null,null,null,null,null,null,null,null,null,null,null,null,null,null,null,null,null,null,null,null,null,null,null,null,null,null,null,null,null,null,null,null,null,null,null,null,null,null,null,null,null,null,null,null,null,null,null,null,null,null,null,null,null,null,null,null,null,null,null,null,null,null,null,null,null,null,null,null,null,null,null,null,null,null,null,null,null,null,null,null,null,null,null,null,null,null,null,null,null,null,null,null,null,null,null,null,null,null,null,null,null,null,null,null,null,null,null,null,null,null,null,null,null,null,null,null,null,null,null,null,null,null,null,null,null,null,null,null,null,null,null,null,null,null,null,null,null,null,null,null,null,null,null,null,null,null,null,null,null,null,null,null,null,null,null,null,null,null,null,null,null,null,null,null,null,null,null,null,null,null,null,null,null,null,null,null,null,null,null,null,null,null,null,null,null,null,null,null,null,null,null,null,null,null,null,null,null,null,null,null,null,null,null,null,null,null,null,null,null,null,null,null,null,null,null,null,null,null,null,null,null,null,null,null,null,null,null,null,null,null,null,null,null,null,null,null,null,null,null,null,null,null,null,null,null,null,null,null,null,null,null,null,null,null,null,null,null,null,null,null,null,null,null,null,null,null,null,null,null,null,null,null,null,null,null,null,null,null,null,null,null,null,null,null,null,null,null,null,null,null,null,null,null,null,null,null,null,null,null,null,null,null,null,null,null,null,null,null,null,null,null,null,null,null,null,null,null,null,null,null,null,null,null,null,null,null,null,null,null,null,null,null,null,null,null,null,null,null,null,null,null,null,null,null,null,null,null,null,null,null,null,null,null,null,null,null,null,null,null,null,null,null,null,null,null,null,null,null,null,null,null,null,null,null,null,null,null,null,null,null,null,null,null,null,null,null,null,null,null,null,null,null,null,null,null,null,null,null,null,null,null,null,null,null,null,null,null,null,null,null,null,null,null,null,null,null,null,null,null,null,null,null,null,null,null,null,null,null,null,null,null,null,null,null,null,null,null,null,null,null,null,null,null,null,null,null,null,null,null,null,null,null,null,null,null,null,null,null,null,null,null,null,null,null,null,null,null,null,null,null,null,null,null,null,null,null,null,null,null,null,null,null,null,null,null,null,null,null,null,null,null,null,null,null,null,null,null,null,null,null,null,null,null,null,null,null,null,null,null,null,null,null,null,null,null,null,null,null,null,null,null,null,null,null,null,null,null,null,null,null,null,null,null,null,null,null,null,null,null,null,null,null,null,null,null,null,null,null,null,null,null,null,null,null,null,null,null,null,null,null,null,null,null,null,null,null,null,null,null,null,null,null,null,null,null,null,null,null,null,null,null,null,null,null,null,null,null,null,null,null,null,null,null,null,null,null,null,null,null,null,null,null,null,null,null,null,null,null,null,null,null,null,null,null,null,null,null,null,null,null,null,null,null,null,null,null,null,null,null,null,null,null,null,null,null,null,null,null,null,null,null,null,null,null,null,null,null,null,null,null,null,null,null,null,null,null,null,null,null,null,null,null,null,null,null,null,null,null,null,null,null,null,null,null,null,null,null,null,null,null,null,null,null,null,null,null,null,null,null,null,null,null,null,null,null,null,null,null,null,null,null,null,null,null,null,null,null,null,null,null,null,null,null,null,null,null,null,null,null,null,null,null,null,null,null,null,null,null,null,null,null,null,null,null,null,null,null,null,null,null,null,null,null,null,null,null,null,null,null,null,null,null,null,null,null,null,null,null,null,null,null,null,null,null,null,null,null,null,null,null,null,null,null,null,null,null,null,null,null,null,null,null,null,null,null,null,null,null,null,null,null,null,null,null,null,null,null,null,null,null,null,null,null,null,null,null,null,null,null,null,null,null,null,null,null,null,null,null,null,null,null,null,null,null,null,null,null,null,null,null,null,null,null,null,null,null,null,null,null,null,null,null,null,null,null,null,null,null,null,null,null,null,null,null,null,null,null,null,null,null,null,null,null,null,null,null,null,null,null,null,null,null,null,null,null,null,null,null,null,null,null,null,null,null,null,null,null,null,null,null,null,null,null,null,null,null,null,null,null,null,null,null,null,null,null,null,null,null,null,null,null,null,null,null,null,null,null,null,null,null,null,null,null,null,null,null,null,null,null,null,null,null,null,null,null,null,null,null,null,null,null,null,null,null,null,null,null,null,null,null,null,null,null,null,null,null,null,null,null,null,null,null,null,null,null,null,null,null,null,null,null,null,null,null,null,null,null,null,null,null,null,null,null,null,null,null,null,null,null,null,null,null,null,null,null,null,null,null,null,null,null,null,null,null,null,null,null,null,null,null,null,null,null,null,null,null,null,null,null,null,null,null,null,null,null,null,null,null,null,null,null,null,null,null,null,null,null,null,null,null,null,null,null,null,null,null,null,null,null,null,null,null,null,null,null,null,null,null,null,null,null,null,null,null,null,null,null,null,null,null,null,null,null,null,null,null,null,null,null,null,null,null,null,null,null,null,null,null,null,null,null,null,null,null,null,null,null,null,null,null,null,null,null,null,null,null,null,null,null,null,null,null,null,null,null,null,null,null,null,null,null,null,null,null,null,null,null,null,null,null,null,null,null,null,null,null,null,null,null,null,null,null,null,null,null,null,null,null,null,null,null,null,null,null,null,null,null,null,null,null,null,null,null,null,null,null,null,null,null,null,null,null,null,null,null,null,null,null,null,null,null,null,null,null,null,null,null,null,null,null,null,null,null,null,null,null,null,null,null,null,null,null,null,null,null,null,null,null,null,null,null,null,null,null,null,null,null,null,null,null,null,null,null,null,null,null,null,null,null,null,null,null,null,null,null,null,null,null,null,null,null,null,null,null,null,null,null,null,null,null,null,null,null,null,null,null,null,null,null,null,null,null,null,null,null,null,null,null,null,null,null,null,null,null,null,null,null,null,null,null,null,null,null,null,null,null,null,null,null,null,null,null,null,null,null,null,null,null,null,null,null,null,null,null,null,null,null,null,null,null,null,null,null,null,null,null,null,null,null,null,null,null,null,null,null,null,null,null,null,null,null,null,null,null,null,null,null,null,null,null,null,null,null,null,null,null,null,null,null,null,null,null,null,null,null,null,null,null,null,null,null,null,null,null,null,null,null,null,null,null,null,null,null,null,null,null,null,null,null,null,null,null,null,null,null,null,null,null,null,null,null,null,null,null,null,null,null,null,null,null,null,null,null,null,null,null,null,null,null,null,null,null,null,null,null,null,null,null,null,null,null,null,null,null,null,null,null,null,null,null,null,null,null,null,null,null,null,null,null,null,null,null,null,null,null,null,null,null,null,null,null,null,null,null,null,null,null,null,null,null,null,null,null,null,null,null,null,null,null,null,null,null,null,null,null,null,null,null,null,null,null,null,null,null,null,null,null,null,null,null,null,null,null,null,null,null,null,null,null,null,null,null,null,null,null,null,null,null,null,null,null,null,null,null,null,null,null,null,null,null,null,null,null,null,null,null,null,null,null,null,null,null,null,null,null,null,null,null,null,null,null,null,null,null,null,null,null,null,null,null,null,null,null,null,null,null,null,null,null,null,null,null,null,null,null,null,null,null,null,null,null,null,null,null,null,null,null,null,null,null,null,null,null,null,null,null,null,null,null,null,null,null,null,null,null,null,null,null,null,null,null,null,null,null,null,null,null,null,null,null,null,null,null,null,null,null,null,null,null,null,null,null,null,null,null,null,null,null,null,null,null,null,null,null,null,null,null,null,null,null,null,null,null,null,null,null,null,null,null,null,null,null,null,null,null,null,null,null,null,null,null,null,null,null,null,null,null,null,null,null,null,null,null,null,null,null,null,null,null,null,null,null,null,null,null,null,null,null,null,null,null,null,null,null,null,null,null,null,null,null,null,null,null,null,null,null,null,null,null,null,null,null,null,null,null,null,null,null,null,null,null,null,null,null,null,null,null,null,null,null,null,null,null,null,null,null,null,null,null,null,null,null,null,null,null,null,null,null,null,null,null,null,null,null,null,null,null,null,null,null,null,null,null,null,null,null,null,null,null,null,null,null,null,null,null,null,null,null,null,null,null,null,null,null,null,null,null,null,null,null,null,null,null,null,null,null,null,null,null,null,null,null,null,null,null,null,null,null,null,null,null,null,null,null,null,null,null,null,null,null,null,null,null,null,null,null,null,null,null,null,null,null,null,null,null,null,null,null,null,null,null,null,null,null,null,null,null,null,null,null,null,null,null,null,null,null,null,null,null,null,null,null,null,null,null,null,null,null,null,null,null,null,null,null,null,null,null,null,null,null,null,null,null,null,null,null,null,null,null,null,null,null,null,null,null,null,null,null,null,null,null,null,null,null,null,null,null,null,null,null,null,null,null,null,null,null,null,null,null,null,null,null,null,null,null,null,null,null,null,null,null,null,null,null,null,null,null,null,null,null,null,null,null,null,null,null,null,null,null,null,null,null,null,null,null,null,null,null,null,null,null,null,null,null,null,null,null,null,null,null,null,null,null,null,null,null,null,null,null,null,null,null,null,null,null,null,null,null,null,null,null,null,null,null,null,null,null,null,null,null,null,null,null,null,null,null,null,null,null,null,null,null,null,null,null,null,null,null,null,null,null,null,null,null,null,null,null,null,null,null,null,null,null,null,null,null,null,null,null,null,null,null,null,null,null,null,null,null,null,null,null,null,null,null,null,null,null,null,null,null,null,null,null,null,null,null,null,null,null,null,null,null,null,null,null,null,null,null,null,null,null,null,null,null,null,null,null,null,null,null,null,null,null,null,null,null,null,null,null,null,null,null,null,null,null,null,null,null,null,null,null,null,null,null,null,null,null,null,null,null,null,null,null,null,null,null,null,null,null,null,null,null,null,null,null,null,null,null,null,null,null,null,null,null,null,null,null,null,null,null,null,null,null,null,null,null,null,null,null,null,null,null,null,null,null,null,null,null,null,null,null,null,null,null,null,null,null,null,null,null,null,null,null,null,null,null,null,null,null,null,null,null,null,null,null,null,null,null,null,null,null,null,null,null,null,null,null,null,null,null,null,null,null,null,null,null,null,null,null,null,null,null,null,null,null,null,null,null,null,null,null,null,null,null,null,null,null,null,null,null,null,null,null,null,null,null,null,null,null,null,null,null,null,null,null,null,null,null,null,null,null,null,null,null,null,null,null,null,null,null,null,null,null,null,null,null,null,null,null,null,null,null,null,null,null,null,null,null,null,null,null,null,null,null,null,null,null,null,null,null,null,null,null,null,null,null,null,null,null,null,null,null,null,null,null,null,null,null,null,null,null,null,null,null,null,null,null,null,null,null,null,null,null,null,null,null,null,null,null,null,null,null,null,null,null,null,null,null,null,null,null,null,null,null,null,null,null,null,null,null,null,null,null,null,null,null,null,null,null,null,null,null,null,null,null,null,null,null,null,null,null,null,null,null,null,null,null,null,null,null,null,null,null,null,null,null,null,null,null,null,null,null,null,null,null,null,null,null,null,null,null,null,null,null,null,null,null,null,null,null,null,null,null,null,null,null,null,null,null,null,null,null,null,null,null,null,null,null,null,null,null,null,null,null,null,null,null,null,null,null,null,null,null,null,null,null,null,null,null,null,null,null,null,null,null,null,null,null,null,null,null,null,null,null,null,null,null,null,null,null,null,null,null,null,null,null,null,null,null,null,null,null,null,null,null,null,null,null,null,null,null,null,null,null,null,null,null,null,null,null,null,null,null,null,null,null,null,null,null,null,null,null,null,null,null,null,null,null,null,null,null,null,null,null,null,null,null,null,null,null,null,null,null,null,null,null,null,null,null,null,null,null,null,null,null,null,null,null,null,null,null,null,null,null,null,null,null,null,null,null,null,null,null,null,null,null,null,null,null,null,null,null,null,null,null,null,null,null,null,null,null,null,null,null,null,null,null,null,null,null,null,null,null,null,null,null,null,null,null,null,null,null,null,null,null,null,null,null,null,null,null,null,null,null,null,null,null,null,null,null,null,null,null,null,null,null,null,null,null,null,null,null,null,null,null,null,null,null,null,null,null,null,null,null,null,null,null,null,null,null,null,null,null,null,null,null,null,null,null,null,null,null,null,null,null,null,null,null,null,null,null,null,null,null,null,null,null,null,null,null,null,null,null,null,null,null,null,null,null,null,null,null,null,null,null,null,null,null,null,null,null,null,null,null,null,null,null,null,null,null,null,null,null,null,null,null,null,null,null,null,null,null,null,null,null,null,null,null,null,null,null,null,null,null,null,null,null,null,null,null,null,null,null,null,null,null,null,null,null,null,null,null,null,null,null,null,null,null,null,null,null,null,null,null,null,null,null,null,null,null,null,null,null,null,null,null,null,null,null,null,null,null,null,null,null,null,null,null,null,null,null,null,null,null,null,null,null,null,null,null,null,null,null,null,null,null,null,null,null,null,null,null,null,null,null,null,null,null,null,null,null,null,null,null,null,null,null,null,null,null,null,null,null,null,null,null,null,null,null,null,null,null,null,null,null,null,null,null,null,null,null,null,null,null,null,null,null,null,null,null,null,null,null,null,null,null,null,null,null,null,null,null,null,null,null,null,null,null,null,null,null,null,null,null,null,null,null,null,null,null,null,null,null,null,null,null,null,null,null,null,null,null,null,null,null,null,null,null,null,null,null,null,null,null,null,null,null,null,null,null,null,null,null,null,null,null,null,null,null,null,null,null,null,null,null,null,null,null,null,null,null,null,null,null,null,null,null,null,null,null,null,null,null,null,null,null,null,null,null,null,null,null,null,null,null,null,null,null,null,null,null,null,null,null,null,null,null,null,null,null,null,null,null,null,null,null,null,null,null,null,null,null,null,null,null,null,null,null,null,null,null,null,null,null,null,null,null,null,null,null,null,null,null,null,null,null,null,null,null,null,null,null,null,null,null,null,null,null,null,null,null,null,null,null,null,null,null,null,null,null,null,null,null,null,null,null,null,null,null,null,null,null,null,null,null,null,null,null,null,null,null,null,null,null,null,null,null,null,null,null,null,null,null,null,null,null,null,null,null,null,null,null,null,null,null,null,null,null,null,null,null,null,null,null,null,null,null,null,null,null,null,null,null,null,null,null,null,null,null,null,null,null,null,null,null,null,null,null,null,null,null,null,null,null,null,null,null,null,null,null,null,null,null,null,null,null,null,null,null,null,null,null,null,null,null,null,null,null,null,null,null,null,null,null,null,null,null,null,null,null,null,null,null,null,null,null,null,null,null,null,null,null,null,null,null,null,null,null,null,null,null,null,null,null,null,null,null,null,null,null,null,null,null,null,null,null,null,null,null,null,null,null,null,null,null,null,null,null,null,null,null,null,null,null,null,null,null,null,null,null,null,null,null,null,null,null,null,null,null,null,null,null,null,null,null,null,null,null,null,null,null,null,null,null,null,null,null,null,null,null,null,null,null,null,null,null,null,null,null,null,null,null,null,null,null,null,null,null,null,null,null,null,null,null,null,null,null,null,null,null,null,null,null,null,null,null,null,null,null,null,null,null,null,null,null,null,null,null,null,null,null,null,null,null,null,null,null,null,null,null,null,null,null,null,null,null,null,null,null,null,null,null,null,null,null,null,null,null,null,null,null,null,null,null,null,null,null,null,null,null,null,null,null,null,null,null,null,null,null,null,null,null,null,null,null,null,null,null,null,null,null,null,null,null,null,null,null,null,null,null,null,null,null,null,null,null,null,null,null,null,null,null,null,null,null,null,null,null,null,null,null,null,null,null,null,null,null,null,null,null,null,null,null,null,null,null,null,null,null,null,null,null,null,null,null,null,null,null,null,null,null,null,null,null,null,null,null,null,null,null,null,null,null,null,null,null,null,null,null,null,null,null,null,null,null,null,null,null,null,null,null,null,null,null,null,null,null,null,null,null,null,null,null,null,null,null,null,null,null,null,null,null,null,null,null,null,null,null,null,null,null,null,null,null,null,null,null,null,null,null,null,null,null,null,null,null,null,null,null,null,null,null,null,null,null,null,null,null,null,null,null,null,null,null,null,null,null,null,null,null,null,null,null,null,null,null,null,null,null,null,null,null,null,null,null,null,null,null,null,null,null,null,null,null,null,null,null,null,null,null,null,null,null,null,null,null,null,null,null,null,null,null,null,null,null,null,null,null,null,null,null,null,null,null,null,null,null,null,null,null,null,null,null,null,null,null,null,null,null,null,null,null,null,null,null,null,null,null,null,null,null,null,null,null,null,null,null,null,null,null,null,null,null,null,null,null,null,null,null,null,null,null,null,null,null,null,null,null,null,null,null,null,null,null,null,null,null,null,null,null,null,null,null,null,null,null,null,null,null,null,null,null,null,null,null,null,null,null,null,null,null,null,null,null,null,null,null,null,null,null,null,null,null,null,null,null,null,null,null,null,null,null,null,null,null,null,null,null,null,null,null,null,null,null,null,null,null,null,null,null,null,null,null,null,null,null,null,null,null,null,null,null,null,null,null,null,null,null,null,null,null,null,null,null,null,null,null,null,null,null,null,null,null,null,null,null,null,null,null,null,null,null,null,null,null,null,null,null,null,null,null,null,null,null,null,null,null,null,null,null,null,null,null,null,null,null,null,null,null,null,null,null,null,null,null,null,null,null,null,null,null,null,null,null,null,null,null,null,null,null,null,null,null,null,null,null,null,null,null,null,null,null,null,null,null,null,null,null,null,null,null,null,null,null,null,null,null,null,null,null,null,null,null,null,null,null,null,null,null,null,null,null,null,null,null,null,null,null,null,null,null,null,null,null,null,null,null,null,null,null,null,null,null,null,null,null,null,null,null,null,null,null,null,null,null,null,null,null,null,null,null,null,null,null,null,null,null,null,null,null,null,null,null,null,null,null,null,null,null,null,null,null,null,null,null,null,null,null,null,null,null,null,null,null,null,null,null,null,null,null,null,null,null,null,null,null,null,null,null,null,null,null,null,null,null,null,null,null,null,null,null,null,null,null,null,null,null,null,null,null,null,null,null,null,null,null,null,null,null,null,null,null,null,null,null,null,null,null,null,null,null,null,null,null,null,null,null,null,null,null,null,null,null,null,null,null,null,null,null,null,null,null,null,null,null,null,null,null,null,null,null,null,null,null,null,null,null,null,null,null,null,null,null,null,null,null,null,null,null,null,null,null,null,null,null,null,null,null,null,null,null,null,null,null,null,null,null,null,null,null,null,null,null,null,null,null,null,null,null,null,null,null,null,null,null,null,null,null,null,null,null,null,null,null,null,null,null,null,null,null,null,null,null,null,null,null,null,null,null,null,null,null,null,null,null,null,null,null,null,null,null,null,null,null,null,null,null,null,null,null,null,null,null,null,null,null,null,null,null,null,null,null,null,null,null,null,null,null,null,null,null,null,null,null,null,null,null,null,null,null,null,null,null,null,null,null,null,null,null,null,null,null,null,null,null,null,null,null,null,null,null,null,null,null,null,null,null,null,null,null,null,null,null,null,null,null,null,null,null,null,null,null,null,null,null,null,null,null,null,null,null,null,null,null,null,null,null,null,null,null,null,null,null,null,null,null,null,null,null,null,null,null,null,null,null,null,null,null,null,null,null,null,null,null,null,null,null,null,null,null,null,null,null,null,null,null,null,null,null,null,null,null,null,null,null,null,null,null,null,null,null,null,null,null,null,null,null,null,null,null,null,null,null,null,null,null,null,null,null,null,null,null,null,null,null,null,null,null,null,null,null,null,null,null,null,null,null,null,null,null,null,null,null,null,null,null,null,null,null,null,null,null,null,null,null,null,null,null,null,null,null,null,null,null,null,null,null,null,null,null,null,null,null,null,null,null,null,null,null,null,null,null,null,null,null,null,null,null,null,null,null,null,null,null,null,null,null,null,null,null,null,null,null,null,null,null,null,null,null,null,null,null,null,null,null,null,null,null,null,null,null,null,null,null,null,null,null,null,null,null,null,null,null,null,null,null,null,null,null,null,null,null,null,null,null,null,null,null,null,null,null,null,null,null,null,null,null,null,null,null,null,null,null,null,null,null,null,null,null,null,null,null,null,null,null,null,null,null,null,null,null,null,null,null,null,null,null,null,null,null,null,null,null,null,null,null,null,null,null,null,null,null,null,null,null,null,null,null,null,null,null,null,null,null,null,null,null,null,null,null,null,null,null,null,null,null,null,null,null,null,null,null,null,null,null,null,null,null,null,null,null,null,null,null,null,null,null,null,null,null,null,null,null,null,null,null,null,null,null,null,null,null,null,null,null,null,null,null,null,null,null,null,null,null,null,null,null,null,null,null,null,null,null,null,null,null,null,null,null,null,null,null,null,null,null,null,null,null,null,null,null,null,null,null,null,null,null,null,null,null,null,null,null,null,null,null,null,null,null,null,null,null,null,null,null,null,null,null,null,null,null,null,null,null,null,null,null,null,null,null,null,null,null,null,null,null,null,null,null,null,null,null,null,null,null,null,null,null,null,null,null,null,null,null,null,null,null,null,null,null,null,null,null,null,null,null,null,null,null,null,null,null,null,null,null,null,null,null,null,null,null,null,null,null,null,null,null,null,null,null,null,null,null,null,null,null,null,null,null,null,null,null,null,null,null,null,null,null,null,null,null,null,null,null,null,null,null,null,null,null,null,null,null,null,null,null,null,null,null,null,null,null,null,null,null,null,null,null,null,null,null,null,null,null,null,null,null,null,null,null,null,null,null,null,null,null,null,null,null,null,null,null,null,null,null,null,null,null,null,null,null,null,null,null,null,null,null,null,null,null,null,null,null,null,null,null,null,null,null,null,null,null,null,null,null,null,null,null,null,null,null,null,null,null,null,null,null,null,null,null,null,null,null,null,null,null,null,null,null,null,null,null,null,null,null,null,null,null,null,null,null,null,null,null,null,null,null,null,null,null,null,null,null,null,null,null,null,null,null,null,null,null,null,null,null,null,null,null,null,null,null,null,null,null,null,null,null,null,null,null,null,null,null,null,null,null,null,null,null,null,null,null,null,null,null,null,null,null,null,null,null,null,null,null,null,null,null,null,null,null,null,null,null,null,null,null,null,null,null,null,null,null,null,null,null,null,null,null,null,null,null,null,null,null,null,null,null,null,null,null,null,null,null,null,null,null,null,null,null,null,null,null,null,null,null,null,null,null,null,null,null,null,null,null,null,null,null,null,null,null,null,null,null,null,null,null,null,null,null,null,null,null,null,null,null,null,null,null,null,null,null,null,null,null,null,null,null,null,null,null,null,null,null,null,null,null,null,null,null,null,null,null,null,null,null,null,null,null,null,null,null,null,null,null,null,null,null,null,null,null,null,null,null,null,null,null,null,null,null,null,null,null,null,null,null,null,null,null,null,null,null,null,null,null,null,null,null,null,null,null,null,null,null,null,null,null,null,null,null,null,null,null,null,null,null,null,null,null,null,null,null,null,null,null,null,null,null,null,null,null,null,null,null,null,null,null,null,null,null,null,null,null,null,null,null,null,null,null,null,null,null,null,null,null,null,null,null,null,null,null,null,null,null,null,null,null,null,null,null,null,null,null,null,null,null,null,null,null,null,null,null,null,null,null,null,null,null,null,null,null,null,null,null,null,null,null,null,null,null,null,null,null,null,null,null,null,null,null,null,null,null,null,null,null,null,null,null,null,null,null,null,null,null,null,null,null,null,null,null,null,null,null,null,null,null,null,null,null,null,null,null,null,null,null,null,null,null,null,null,null,null,null,null,null,null,null,null,null,null,null,null,null,null,null,null,null,null,null,null,null,null,null,null,null,null,null,null,null,null,null,null,null,null,null,null,null,null,null,null,null,null,null,null,null,null,null,null,null,null,null,null,null,null,null,null,null,null,"QUINDIO"]
[null,"JULIO",0,0,0,null,"JULIO",{"$f":"Hoja8!O29","v":0},{"$f":"Hoja8!P29","v":0},{"$f":"Hoja8!Q29","v":0},{"$f":"Hoja8!R29","v":0},{"$f":"Hoja8!S29","v":0},{"$f":"Hoja8!T29","v":0},{"$f":"Hoja8!U29","v":0},{"$f":"Hoja8!V29","v":0},{"$f":"Hoja8!W29","v":0},{"$f":"Hoja8!X29","v":0},{"$f":"Hoja8!Y29","v":0},{"$f":"Hoja8!Z29","v":0},{"$f":"Hoja8!AA29","v":0},{"$f":"Hoja8!AB29","v":0},{"$f":"Hoja8!AC29","v":0},{"$f":"Hoja8!AD29","v":0},0,0,0]
[null,"MARZO",0,0,0,null,"MARZO",{"$f":"Hoja8!AI25","v":0},{"$f":"Hoja8!AJ25","v":0},{"$f":"Hoja8!AK25","v":0},{"$f":"Hoja8!AL25","v":0},{"$f":"Hoja8!AM25","v":0},{"$f":"Hoja8!AN25","v":0},{"$f":"Hoja8!AO25","v":0},{"$f":"Hoja8!AP25","v":0},{"$f":"Hoja8!AQ25","v":0},{"$f":"Hoja8!AR25","v":0},{"$f":"Hoja8!AS25","v":0},{"$f":"Hoja8!AT25","v":0},0,0,0]
[null,null,null,null,null,null,null,"PERSUASIVO",null,"COACTIVO",null,"PROCESOS CONCURSALES",null,"OTRO TIPO DE COBRO JURIDICO"]
[null,"ABRIL",0,0,0,null,"ABRIL",{"$f":"Hoja8!AZ26","v":0},{"$f":"Hoja8!BA26","v":0},{"$f":"Hoja8!BB26","v":0},{"$f":"Hoja8!BC26","v":0},{"$f":"Hoja8!BD26","v":0},{"$f":"Hoja8!BE26","v":0},{"$f":"Hoja8!BF26","v":0},{"$f":"Hoja8!BG26","v":0},0,0,0]
["Cualquier copia impresa de este documento se considera como COPIA NO CONTROLADA."]

{"sheet":"INGRESOS_OTRAS_CARTERAS","index":1,"n_rows":265,"n_cols":17,"rows_kept":265,"cut":false,"hidden":false,"merged":[[265,1,265,5],[263,0,263,16],[264,0,264,16],[0,3,1,13],[4,3,5,13],[2,3,3,13],[0,0,5,2],[4,14,5,16],[2,14,3,15],[0,14,1,15],[0,16,1,16],[2,16,3,16]]}
[{"$error":"#VALUE!"},null,null,"PROCEDIMIENTO RECAUDO INGRESO OTRAS CARTERAS DIFERENTES A MINTIC Y ADN",null,null,null,null,null,null,null,null,null,null,{"$f":"INFORME_GENERAL!U1","v":"F3.P45.GF "},null,{"$f":"INFORME_GENERAL!Y1","v":"2024-12-10"}]
[]
[null,null,null,"FORMATO MOVIMIENTO INGRESOS BANCOS OTRAS CARTERA",null,null,null,null,null,null,null,null,null,null,{"$f":"INFORME_GENERAL!U3","v":"VERSION 1"},null,"PAGINA 1 DE 1"]
[]
[null,null,null,"DIFERENTES A MINTIC Y ADN ",null,null,null,null,null,null,null,null,null,null,"CLASIFICACION DE LA INFORMACION PUBLICA"]
[]
[]
["REGIONAL","MES","TIPO DE CARTERA","TIPO DE OBLIGACION","CLAVE ","CUENTA CONTABLE\nCAPITAL","CUENTA CONTABLE \nINTERESES","DOCUMENTO DE RECAUDO POR CLASIFICAR (DRXC)   TESORERIA ","FECHA DE PAGO","NÚMERO DE\nIDENTIFICACIÓN","NOMBRE Y/O RAZON SOCIAL","No. SENTENCIA O ACTA      ","FECHA DE SENTENCIA O ACTA","CAPITAL","INTERESES","VALOR\nTOTAL","PERTENECE AL FORMATO F-27, COACTIVO O ES INGRESO SIN GESTION"]
[{"$f":"INFORME_GENERAL!$B$19","v":0},null,null,null,{"$f":"CONCATENATE(C9,\"_\",D9)","v":"_"},{"$f":"IFERROR(VLOOKUP(E9,datos!$K$6:$M$30,2,0),\"-\")","v":"-"},{"$f":"IFERROR(VLOOKUP(E9,datos!$K$6:$M$30,3,0),\"-\")","v":"-"},null,null,null,null,null,null,null,null,{"$f":"N9+O9","v":0}]
[{"$f":"INFORME_GENERAL!$B$19","v":0},null,null,null,{"$f":"CONCATENATE(C10,\"_\",D10)","v":"_"},{"$f":"IFERROR(VLOOKUP(E10,datos!$K$6:$M$30,2,0),\"-\")","v":"-"},{"$f":"IFERROR(VLOOKUP(E10,datos!$K$6:$M$30,3,0),\"-\")","v":"-"},null,null,null,null,null,null,null,null,{"$f":"N10+O10","v":0}]
[{"$f":"INFORME_GENERAL!$B$19","v":0},null,null,null,"_",{"$f":"IFERROR(VLOOKUP(E11,datos!$K$6:$M$30,2,0),\"-\")","v":"-"},{"$f":"IFERROR(VLOOKUP(E11,datos!$K$6:$M$30,3,0),\"-\")","v":"-"},null,null,null,null,null,null,null,null,0]
[{"$f":"INFORME_GENERAL!$B$19","v":0},null,null,null,"_",{"$f":"IFERROR(VLOOKUP(E12,datos!$K$6:$M$30,2,0),\"-\")","v":"-"},{"$f":"IFERROR(VLOOKUP(E12,datos!$K$6:$M$30,3,0),\"-\")","v":"-"},null,null,null,null,null,null,null,null,0]
[{"$f":"INFORME_GENERAL!$B$19","v":0},null,null,null,"_",{"$f":"IFERROR(VLOOKUP(E13,datos!$K$6:$M$30,2,0),\"-\")","v":"-"},{"$f":"IFERROR(VLOOKUP(E13,datos!$K$6:$M$30,3,0),\"-\")","v":"-"},null,null,null,null,null,null,null,null,0]
[{"$f":"INFORME_GENERAL!$B$19","v":0},null,null,null,"_",{"$f":"IFERROR(VLOOKUP(E14,datos!$K$6:$M$30,2,0),\"-\")","v":"-"},{"$f":"IFERROR(VLOOKUP(E14,datos!$K$6:$M$30,3,0),\"-\")","v":"-"},null,null,null,null,null,null,null,null,0]
[{"$f":"INFORME_GENERAL!$B$19","v":0},null,null,null,"_",{"$f":"IFERROR(VLOOKUP(E15,datos!$K$6:$M$30,2,0),\"-\")","v":"-"},{"$f":"IFERROR(VLOOKUP(E15,datos!$K$6:$M$30,3,0),\"-\")","v":"-"},null,null,null,null,null,null,null,null,0]
[{"$f":"INFORME_GENERAL!$B$19","v":0},null,null,null,"_",{"$f":"IFERROR(VLOOKUP(E16,datos!$K$6:$M$30,2,0),\"-\")","v":"-"},{"$f":"IFERROR(VLOOKUP(E16,datos!$K$6:$M$30,3,0),\"-\")","v":"-"},null,null,null,null,null,null,null,null,0]
[{"$f":"INFORME_GENERAL!$B$19","v":0},null,null,null,"_",{"$f":"IFERROR(VLOOKUP(E17,datos!$K$6:$M$30,2,0),\"-\")","v":"-"},{"$f":"IFERROR(VLOOKUP(E17,datos!$K$6:$M$30,3,0),\"-\")","v":"-"},null,null,null,null,null,null,null,null,0]
[{"$f":"INFORME_GENERAL!$B$19","v":0},null,null,null,"_",{"$f":"IFERROR(VLOOKUP(E18,datos!$K$6:$M$30,2,0),\"-\")","v":"-"},{"$f":"IFERROR(VLOOKUP(E18,datos!$K$6:$M$30,3,0),\"-\")","v":"-"},null,null,null,null,null,null,null,null,0]
[{"$f":"INFORME_GENERAL!$B$19","v":0},null,null,null,"_",{"$f":"IFERROR(VLOOKUP(E19,datos!$K$6:$M$30,2,0),\"-\")","v":"-"},{"$f":"IFERROR(VLOOKUP(E19,datos!$K$6:$M$30,3,0),\"-\")","v":"-"},null,null,null,null,null,null,null,null,0]
[{"$f":"INFORME_GENERAL!$B$19","v":0},null,null,null,"_",{"$f":"IFERROR(VLOOKUP(E20,datos!$K$6:$M$30,2,0),\"-\")","v":"-"},{"$f":"IFERROR(VLOOKUP(E20,datos!$K$6:$M$30,3,0),\"-\")","v":"-"},null,null,null,null,null,null,null,null,0]
[{"$f":"INFORME_GENERAL!$B$19","v":0},null,null,null,"_",{"$f":"IFERROR(VLOOKUP(E21,datos!$K$6:$M$30,2,0),\"-\")","v":"-"},{"$f":"IFERROR(VLOOKUP(E21,datos!$K$6:$M$30,3,0),\"-\")","v":"-"},null,null,null,null,null,null,null,null,0]
[{"$f":"INFORME_GENERAL!$B$19","v":0},null,null,null,"_",{"$f":"IFERROR(VLOOKUP(E22,datos!$K$6:$M$30,2,0),\"-\")","v":"-"},{"$f":"IFERROR(VLOOKUP(E22,datos!$K$6:$M$30,3,0),\"-\")","v":"-"},null,null,null,null,null,null,null,null,0]
[{"$f":"INFORME_GENERAL!$B$19","v":0},null,null,null,"_",{"$f":"IFERROR(VLOOKUP(E23,datos!$K$6:$M$30,2,0),\"-\")","v":"-"},{"$f":"IFERROR(VLOOKUP(E23,datos!$K$6:$M$30,3,0),\"-\")","v":"-"},null,null,null,null,null,null,null,null,0]
[{"$f":"INFORME_GENERAL!$B$19","v":0},null,null,null,"_",{"$f":"IFERROR(VLOOKUP(E24,datos!$K$6:$M$30,2,0),\"-\")","v":"-"},{"$f":"IFERROR(VLOOKUP(E24,datos!$K$6:$M$30,3,0),\"-\")","v":"-"},null,null,null,null,null,null,null,null,0]
[{"$f":"INFORME_GENERAL!$B$19","v":0},null,null,null,"_",{"$f":"IFERROR(VLOOKUP(E25,datos!$K$6:$M$30,2,0),\"-\")","v":"-"},{"$f":"IFERROR(VLOOKUP(E25,datos!$K$6:$M$30,3,0),\"-\")","v":"-"},null,null,null,null,null,null,null,null,0]
[{"$f":"INFORME_GENERAL!$B$19","v":0},null,null,null,"_",{"$f":"IFERROR(VLOOKUP(E26,datos!$K$6:$M$30,2,0),\"-\")","v":"-"},{"$f":"IFERROR(VLOOKUP(E26,datos!$K$6:$M$30,3,0),\"-\")","v":"-"},null,null,null,null,null,null,null,null,0]
[{"$f":"INFORME_GENERAL!$B$19","v":0},null,null,null,"_",{"$f":"IFERROR(VLOOKUP(E27,datos!$K$6:$M$30,2,0),\"-\")","v":"-"},{"$f":"IFERROR(VLOOKUP(E27,datos!$K$6:$M$30,3,0),\"-\")","v":"-"},null,null,null,null,null,null,null,null,0]
[{"$f":"INFORME_GENERAL!$B$19","v":0},null,null,null,"_",{"$f":"IFERROR(VLOOKUP(E28,datos!$K$6:$M$30,2,0),\"-\")","v":"-"},{"$f":"IFERROR(VLOOKUP(E28,datos!$K$6:$M$30,3,0),\"-\")","v":"-"},null,null,null,null,null,null,null,null,0]
[{"$f":"INFORME_GENERAL!$B$19","v":0},null,null,null,"_",{"$f":"IFERROR(VLOOKUP(E29,datos!$K$6:$M$30,2,0),\"-\")","v":"-"},{"$f":"IFERROR(VLOOKUP(E29,datos!$K$6:$M$30,3,0),\"-\")","v":"-"},null,null,null,null,null,null,null,null,0]
[{"$f":"INFORME_GENERAL!$B$19","v":0},null,null,null,"_",{"$f":"IFERROR(VLOOKUP(E30,datos!$K$6:$M$30,2,0),\"-\")","v":"-"},{"$f":"IFERROR(VLOOKUP(E30,datos!$K$6:$M$30,3,0),\"-\")","v":"-"},null,null,null,null,null,null,null,null,0]
[{"$f":"INFORME_GENERAL!$B$19","v":0},null,null,null,"_",{"$f":"IFERROR(VLOOKUP(E31,datos!$K$6:$M$30,2,0),\"-\")","v":"-"},{"$f":"IFERROR(VLOOKUP(E31,datos!$K$6:$M$30,3,0),\"-\")","v":"-"},null,null,null,null,null,null,null,null,0]
[{"$f":"INFORME_GENERAL!$B$19","v":0},null,null,null,"_",{"$f":"IFERROR(VLOOKUP(E32,datos!$K$6:$M$30,2,0),\"-\")","v":"-"},{"$f":"IFERROR(VLOOKUP(E32,datos!$K$6:$M$30,3,0),\"-\")","v":"-"},null,null,null,null,null,null,null,null,0]
[{"$f":"INFORME_GENERAL!$B$19","v":0},null,null,null,"_",{"$f":"IFERROR(VLOOKUP(E33,datos!$K$6:$M$30,2,0),\"-\")","v":"-"},{"$f":"IFERROR(VLOOKUP(E33,datos!$K$6:$M$30,3,0),\"-\")","v":"-"},null,null,null,null,null,null,null,null,0]
[{"$f":"INFORME_GENERAL!$B$19","v":0},null,null,null,"_",{"$f":"IFERROR(VLOOKUP(E34,datos!$K$6:$M$30,2,0),\"-\")","v":"-"},{"$f":"IFERROR(VLOOKUP(E34,datos!$K$6:$M$30,3,0),\"-\")","v":"-"},null,null,null,null,null,null,null,null,0]
[{"$f":"INFORME_GENERAL!$B$19","v":0},null,null,null,"_",{"$f":"IFERROR(VLOOKUP(E35,datos!$K$6:$M$30,2,0),\"-\")","v":"-"},{"$f":"IFERROR(VLOOKUP(E35,datos!$K$6:$M$30,3,0),\"-\")","v":"-"},null,null,null,null,null,null,null,null,0]
[{"$f":"INFORME_GENERAL!$B$19","v":0},null,null,null,"_",{"$f":"IFERROR(VLOOKUP(E36,datos!$K$6:$M$30,2,0),\"-\")","v":"-"},{"$f":"IFERROR(VLOOKUP(E36,datos!$K$6:$M$30,3,0),\"-\")","v":"-"},null,null,null,null,null,null,null,null,0]
[{"$f":"INFORME_GENERAL!$B$19","v":0},null,null,null,"_",{"$f":"IFERROR(VLOOKUP(E37,datos!$K$6:$M$30,2,0),\"-\")","v":"-"},{"$f":"IFERROR(VLOOKUP(E37,datos!$K$6:$M$30,3,0),\"-\")","v":"-"},null,null,null,null,null,null,null,null,0]
[{"$f":"INFORME_GENERAL!$B$19","v":0},null,null,null,"_",{"$f":"IFERROR(VLOOKUP(E38,datos!$K$6:$M$30,2,0),\"-\")","v":"-"},{"$f":"IFERROR(VLOOKUP(E38,datos!$K$6:$M$30,3,0),\"-\")","v":"-"},null,null,null,null,null,null,null,null,0]
[{"$f":"INFORME_GENERAL!$B$19","v":0},null,null,null,"_",{"$f":"IFERROR(VLOOKUP(E39,datos!$K$6:$M$30,2,0),\"-\")","v":"-"},{"$f":"IFERROR(VLOOKUP(E39,datos!$K$6:$M$30,3,0),\"-\")","v":"-"},null,null,null,null,null,null,null,null,0]
[{"$f":"INFORME_GENERAL!$B$19","v":0},null,null,null,"_",{"$f":"IFERROR(VLOOKUP(E40,datos!$K$6:$M$30,2,0),\"-\")","v":"-"},{"$f":"IFERROR(VLOOKUP(E40,datos!$K$6:$M$30,3,0),\"-\")","v":"-"},null,null,null,null,null,null,null,null,0]
[{"$f":"INFORME_GENERAL!$B$19","v":0},null,null,null,"_",{"$f":"IFERROR(VLOOKUP(E41,datos!$K$6:$M$30,2,0),\"-\")","v":"-"},{"$f":"IFERROR(VLOOKUP(E41,datos!$K$6:$M$30,3,0),\"-\")","v":"-"},null,null,null,null,null,null,null,null,0]
[{"$f":"INFORME_GENERAL!$B$19","v":0},null,null,null,"_",{"$f":"IFERROR(VLOOKUP(E42,datos!$K$6:$M$30,2,0),\"-\")","v":"-"},{"$f":"IFERROR(VLOOKUP(E42,datos!$K$6:$M$30,3,0),\"-\")","v":"-"},null,null,null,null,null,null,null,null,0]
[{"$f":"INFORME_GENERAL!$B$19","v":0},null,null,null,"_",{"$f":"IFERROR(VLOOKUP(E43,datos!$K$6:$M$30,2,0),\"-\")","v":"-"},{"$f":"IFERROR(VLOOKUP(E43,datos!$K$6:$M$30,3,0),\"-\")","v":"-"},null,null,null,null,null,null,null,null,0]
[{"$f":"INFORME_GENERAL!$B$19","v":0},null,null,null,"_",{"$f":"IFERROR(VLOOKUP(E44,datos!$K$6:$M$30,2,0),\"-\")","v":"-"},{"$f":"IFERROR(VLOOKUP(E44,datos!$K$6:$M$30,3,0),\"-\")","v":"-"},null,null,null,null,null,null,null,null,0]
[{"$f":"INFORME_GENERAL!$B$19","v":0},null,null,null,"_",{"$f":"IFERROR(VLOOKUP(E45,datos!$K$6:$M$30,2,0),\"-\")","v":"-"},{"$f":"IFERROR(VLOOKUP(E45,datos!$K$6:$M$30,3,0),\"-\")","v":"-"},null,null,null,null,null,null,null,null,0]
[{"$f":"INFORME_GENERAL!$B$19","v":0},null,null,null,"_",{"$f":"IFERROR(VLOOKUP(E46,datos!$K$6:$M$30,2,0),\"-\")","v":"-"},{"$f":"IFERROR(VLOOKUP(E46,datos!$K$6:$M$30,3,0),\"-\")","v":"-"},null,null,null,null,null,null,null,null,0]
[{"$f":"INFORME_GENERAL!$B$19","v":0},null,null,null,"_",{"$f":"IFERROR(VLOOKUP(E47,datos!$K$6:$M$30,2,0),\"-\")","v":"-"},{"$f":"IFERROR(VLOOKUP(E47,datos!$K$6:$M$30,3,0),\"-\")","v":"-"},null,null,null,null,null,null,null,null,0]
[{"$f":"INFORME_GENERAL!$B$19","v":0},null,null,null,"_",{"$f":"IFERROR(VLOOKUP(E48,datos!$K$6:$M$30,2,0),\"-\")","v":"-"},{"$f":"IFERROR(VLOOKUP(E48,datos!$K$6:$M$30,3,0),\"-\")","v":"-"},null,null,null,null,null,null,null,null,0]
[{"$f":"INFORME_GENERAL!$B$19","v":0},null,null,null,"_",{"$f":"IFERROR(VLOOKUP(E49,datos!$K$6:$M$30,2,0),\"-\")","v":"-"},{"$f":"IFERROR(VLOOKUP(E49,datos!$K$6:$M$30,3,0),\"-\")","v":"-"},null,null,null,null,null,null,null,null,0]
[{"$f":"INFORME_GENERAL!$B$19","v":0},null,null,null,"_",{"$f":"IFERROR(VLOOKUP(E50,datos!$K$6:$M$30,2,0),\"-\")","v":"-"},{"$f":"IFERROR(VLOOKUP(E50,datos!$K$6:$M$30,3,0),\"-\")","v":"-"},null,null,null,null,null,null,null,null,0]
[{"$f":"INFORME_GENERAL!$B$19","v":0},null,null,null,"_",{"$f":"IFERROR(VLOOKUP(E51,datos!$K$6:$M$30,2,0),\"-\")","v":"-"},{"$f":"IFERROR(VLOOKUP(E51,datos!$K$6:$M$30,3,0),\"-\")","v":"-"},null,null,null,null,null,null,null,null,0]
[{"$f":"INFORME_GENERAL!$B$19","v":0},null,null,null,"_",{"$f":"IFERROR(VLOOKUP(E52,datos!$K$6:$M$30,2,0),\"-\")","v":"-"},{"$f":"IFERROR(VLOOKUP(E52,datos!$K$6:$M$30,3,0),\"-\")","v":"-"},null,null,null,null,null,null,null,null,0]
[{"$f":"INFORME_GENERAL!$B$19","v":0},null,null,null,"_",{"$f":"IFERROR(VLOOKUP(E53,datos!$K$6:$M$30,2,0),\"-\")","v":"-"},{"$f":"IFERROR(VLOOKUP(E53,datos!$K$6:$M$30,3,0),\"-\")","v":"-"},null,null,null,null,null,null,null,null,0]
[{"$f":"INFORME_GENERAL!$B$19","v":0},null,null,null,"_",{"$f":"IFERROR(VLOOKUP(E54,datos!$K$6:$M$30,2,0),\"-\")","v":"-"},{"$f":"IFERROR(VLOOKUP(E54,datos!$K$6:$M$30,3,0),\"-\")","v":"-"},null,null,null,null,null,null,null,null,0]
[{"$f":"INFORME_GENERAL!$B$19","v":0},null,null,null,"_",{"$f":"IFERROR(VLOOKUP(E55,datos!$K$6:$M$30,2,0),\"-\")","v":"-"},{"$f":"IFERROR(VLOOKUP(E55,datos!$K$6:$M$30,3,0),\"-\")","v":"-"},null,null,null,null,null,null,null,null,0]
[{"$f":"INFORME_GENERAL!$B$19","v":0},null,null,null,"_",{"$f":"IFERROR(VLOOKUP(E56,datos!$K$6:$M$30,2,0),\"-\")","v":"-"},{"$f":"IFERROR(VLOOKUP(E56,datos!$K$6:$M$30,3,0),\"-\")","v":"-"},null,null,null,null,null,null,null,null,0]
[{"$f":"INFORME_GENERAL!$B$19","v":0},null,null,null,"_",{"$f":"IFERROR(VLOOKUP(E57,datos!$K$6:$M$30,2,0),\"-\")","v":"-"},{"$f":"IFERROR(VLOOKUP(E57,datos!$K$6:$M$30,3,0),\"-\")","v":"-"},null,null,null,null,null,null,null,null,0]
[{"$f":"INFORME_GENERAL!$B$19","v":0},null,null,null,"_",{"$f":"IFERROR(VLOOKUP(E58,datos!$K$6:$M$30,2,0),\"-\")","v":"-"},{"$f":"IFERROR(VLOOKUP(E58,datos!$K$6:$M$30,3,0),\"-\")","v":"-"},null,null,null,null,null,null,null,null,0]
[{"$f":"INFORME_GENERAL!$B$19","v":0},null,null,null,"_",{"$f":"IFERROR(VLOOKUP(E59,datos!$K$6:$M$30,2,0),\"-\")","v":"-"},{"$f":"IFERROR(VLOOKUP(E59,datos!$K$6:$M$30,3,0),\"-\")","v":"-"},null,null,null,null,null,null,null,null,0]
[{"$f":"INFORME_GENERAL!$B$19","v":0},null,null,null,"_",{"$f":"IFERROR(VLOOKUP(E60,datos!$K$6:$M$30,2,0),\"-\")","v":"-"},{"$f":"IFERROR(VLOOKUP(E60,datos!$K$6:$M$30,3,0),\"-\")","v":"-"},null,null,null,null,null,null,null,null,0]
[{"$f":"INFORME_GENERAL!$B$19","v":0},null,null,null,"_",{"$f":"IFERROR(VLOOKUP(E61,datos!$K$6:$M$30,2,0),\"-\")","v":"-"},{"$f":"IFERROR(VLOOKUP(E61,datos!$K$6:$M$30,3,0),\"-\")","v":"-"},null,null,null,null,null,null,null,null,0]
[{"$f":"INFORME_GENERAL!$B$19","v":0},null,null,null,"_",{"$f":"IFERROR(VLOOKUP(E62,datos!$K$6:$M$30,2,0),\"-\")","v":"-"},{"$f":"IFERROR(VLOOKUP(E62,datos!$K$6:$M$30,3,0),\"-\")","v":"-"},null,null,null,null,null,null,null,null,0]
[{"$f":"INFORME_GENERAL!$B$19","v":0},null,null,null,"_",{"$f":"IFERROR(VLOOKUP(E63,datos!$K$6:$M$30,2,0),\"-\")","v":"-"},{"$f":"IFERROR(VLOOKUP(E63,datos!$K$6:$M$30,3,0),\"-\")","v":"-"},null,null,null,null,null,null,null,null,0]
[{"$f":"INFORME_GENERAL!$B$19","v":0},null,null,null,"_",{"$f":"IFERROR(VLOOKUP(E64,datos!$K$6:$M$30,2,0),\"-\")","v":"-"},{"$f":"IFERROR(VLOOKUP(E64,datos!$K$6:$M$30,3,0),\"-\")","v":"-"},null,null,null,null,null,null,null,null,0]
[{"$f":"INFORME_GENERAL!$B$19","v":0},null,null,null,"_",{"$f":"IFERROR(VLOOKUP(E65,datos!$K$6:$M$30,2,0),\"-\")","v":"-"},{"$f":"IFERROR(VLOOKUP(E65,datos!$K$6:$M$30,3,0),\"-\")","v":"-"},null,null,null,null,null,null,null,null,0]
[{"$f":"INFORME_GENERAL!$B$19","v":0},null,null,null,"_",{"$f":"IFERROR(VLOOKUP(E66,datos!$K$6:$M$30,2,0),\"-\")","v":"-"},{"$f":"IFERROR(VLOOKUP(E66,datos!$K$6:$M$30,3,0),\"-\")","v":"-"},null,null,null,null,null,null,null,null,0]
[{"$f":"INFORME_GENERAL!$B$19","v":0},null,null,null,"_",{"$f":"IFERROR(VLOOKUP(E67,datos!$K$6:$M$30,2,0),\"-\")","v":"-"},{"$f":"IFERROR(VLOOKUP(E67,datos!$K$6:$M$30,3,0),\"-\")","v":"-"},null,null,null,null,null,null,null,null,0]
[{"$f":"INFORME_GENERAL!$B$19","v":0},null,null,null,"_",{"$f":"IFERROR(VLOOKUP(E68,datos!$K$6:$M$30,2,0),\"-\")","v":"-"},{"$f":"IFERROR(VLOOKUP(E68,datos!$K$6:$M$30,3,0),\"-\")","v":"-"},null,null,null,null,null,null,null,null,0]
[{"$f":"INFORME_GENERAL!$B$19","v":0},null,null,null,"_",{"$f":"IFERROR(VLOOKUP(E69,datos!$K$6:$M$30,2,0),\"-\")","v":"-"},{"$f":"IFERROR(VLOOKUP(E69,datos!$K$6:$M$30,3,0),\"-\")","v":"-"},null,null,null,null,null,null,null,null,0]
[{"$f":"INFORME_GENERAL!$B$19","v":0},null,null,null,"_",{"$f":"IFERROR(VLOOKUP(E70,datos!$K$6:$M$30,2,0),\"-\")","v":"-"},{"$f":"IFERROR(VLOOKUP(E70,datos!$K$6:$M$30,3,0),\"-\")","v":"-"},null,null,null,null,null,null,null,null,0]
[{"$f":"INFORME_GENERAL!$B$19","v":0},null,null,null,"_",{"$f":"IFERROR(VLOOKUP(E71,datos!$K$6:$M$30,2,0),\"-\")","v":"-"},{"$f":"IFERROR(VLOOKUP(E71,datos!$K$6:$M$30,3,0),\"-\")","v":"-"},null,null,null,null,null,null,null,null,0]
[{"$f":"INFORME_GENERAL!$B$19","v":0},null,null,null,"_",{"$f":"IFERROR(VLOOKUP(E72,datos!$K$6:$M$30,2,0),\"-\")","v":"-"},{"$f":"IFERROR(VLOOKUP(E72,datos!$K$6:$M$30,3,0),\"-\")","v":"-"},null,null,null,null,null,null,null,null,0]
[{"$f":"INFORME_GENERAL!$B$19","v":0},null,null,null,"_",{"$f":"IFERROR(VLOOKUP(E73,datos!$K$6:$M$30,2,0),\"-\")","v":"-"},{"$f":"IFERROR(VLOOKUP(E73,datos!$K$6:$M$30,3,0),\"-\")","v":"-"},null,null,null,null,null,null,null,null,0]
[{"$f":"INFORME_GENERAL!$B$19","v":0},null,null,null,{"$f":"CONCATENATE(C74,\"_\",D74)","v":"_"},{"$f":"IFERROR(VLOOKUP(E74,datos!$K$6:$M$30,2,0),\"-\")","v":"-"},{"$f":"IFERROR(VLOOKUP(E74,datos!$K$6:$M$30,3,0),\"-\")","v":"-"},null,null,null,null,null,null,null,null,{"$f":"N74+O74","v":0}]
[{"$f":"INFORME_GENERAL!$B$19","v":0},null,null,null,"_",{"$f":"IFERROR(VLOOKUP(E75,datos!$K$6:$M$30,2,0),\"-\")","v":"-"},{"$f":"IFERROR(VLOOKUP(E75,datos!$K$6:$M$30,3,0),\"-\")","v":"-"},null,null,null,null,null,null,null,null,0]
[{"$f":"INFORME_GENERAL!$B$19","v":0},null,null,null,"_",{"$f":"IFERROR(VLOOKUP(E76,datos!$K$6:$M$30,2,0),\"-\")","v":"-"},{"$f":"IFERROR(VLOOKUP(E76,datos!$K$6:$M$30,3,0),\"-\")","v":"-"},null,null,null,null,null,null,null,null,0]
[{"$f":"INFORME_GENERAL!$B$19","v":0},null,null,null,"_",{"$f":"IFERROR(VLOOKUP(E77,datos!$K$6:$M$30,2,0),\"-\")","v":"-"},{"$f":"IFERROR(VLOOKUP(E77,datos!$K$6:$M$30,3,0),\"-\")","v":"-"},null,null,null,null,null,null,null,null,0]
[{"$f":"INFORME_GENERAL!$B$19","v":0},null,null,null,"_",{"$f":"IFERROR(VLOOKUP(E78,datos!$K$6:$M$30,2,0),\"-\")","v":"-"},{"$f":"IFERROR(VLOOKUP(E78,datos!$K$6:$M$30,3,0),\"-\")","v":"-"},null,null,null,null,null,null,null,null,0]
[{"$f":"INFORME_GENERAL!$B$19","v":0},null,null,null,"_",{"$f":"IFERROR(VLOOKUP(E79,datos!$K$6:$M$30,2,0),\"-\")","v":"-"},{"$f":"IFERROR(VLOOKUP(E79,datos!$K$6:$M$30,3,0),\"-\")","v":"-"},null,null,null,null,null,null,null,null,0]
[{"$f":"INFORME_GENERAL!$B$19","v":0},null,null,null,"_",{"$f":"IFERROR(VLOOKUP(E80,datos!$K$6:$M$30,2,0),\"-\")","v":"-"},{"$f":"IFERROR(VLOOKUP(E80,datos!$K$6:$M$30,3,0),\"-\")","v":"-"},null,null,null,null,null,null,null,null,0]
[{"$f":"INFORME_GENERAL!$B$19","v":0},null,null,null,"_",{"$f":"IFERROR(VLOOKUP(E81,datos!$K$6:$M$30,2,0),\"-\")","v":"-"},{"$f":"IFERROR(VLOOKUP(E81,datos!$K$6:$M$30,3,0),\"-\")","v":"-"},null,null,null,null,null,null,null,null,0]
[{"$f":"INFORME_GENERAL!$B$19","v":0},null,null,null,"_",{"$f":"IFERROR(VLOOKUP(E82,datos!$K$6:$M$30,2,0),\"-\")","v":"-"},{"$f":"IFERROR(VLOOKUP(E82,datos!$K$6:$M$30,3,0),\"-\")","v":"-"},null,null,null,null,null,null,null,null,0]
[{"$f":"INFORME_GENERAL!$B$19","v":0},null,null,null,"_",{"$f":"IFERROR(VLOOKUP(E83,datos!$K$6:$M$30,2,0),\"-\")","v":"-"},{"$f":"IFERROR(VLOOKUP(E83,datos!$K$6:$M$30,3,0),\"-\")","v":"-"},null,null,null,null,null,null,null,null,0]
[{"$f":"INFORME_GENERAL!$B$19","v":0},null,null,null,"_",{"$f":"IFERROR(VLOOKUP(E84,datos!$K$6:$M$30,2,0),\"-\")","v":"-"},{"$f":"IFERROR(VLOOKUP(E84,datos!$K$6:$M$30,3,0),\"-\")","v":"-"},null,null,null,null,null,null,null,null,0]
[{"$f":"INFORME_GENERAL!$B$19","v":0},null,null,null,"_",{"$f":"IFERROR(VLOOKUP(E85,datos!$K$6:$M$30,2,0),\"-\")","v":"-"},{"$f":"IFERROR(VLOOKUP(E85,datos!$K$6:$M$30,3,0),\"-\")","v":"-"},null,null,null,null,null,null,null,null,0]
[{"$f":"INFORME_GENERAL!$B$19","v":0},null,null,null,"_",{"$f":"IFERROR(VLOOKUP(E86,datos!$K$6:$M$30,2,0),\"-\")","v":"-"},{"$f":"IFERROR(VLOOKUP(E86,datos!$K$6:$M$30,3,0),\"-\")","v":"-"},null,null,null,null,null,null,null,null,0]
[{"$f":"INFORME_GENERAL!$B$19","v":0},null,null,null,"_",{"$f":"IFERROR(VLOOKUP(E87,datos!$K$6:$M$30,2,0),\"-\")","v":"-"},{"$f":"IFERROR(VLOOKUP(E87,datos!$K$6:$M$30,3,0),\"-\")","v":"-"},null,null,null,null,null,null,null,null,0]
[{"$f":"INFORME_GENERAL!$B$19","v":0},null,null,null,"_",{"$f":"IFERROR(VLOOKUP(E88,datos!$K$6:$M$30,2,0),\"-\")","v":"-"},{"$f":"IFERROR(VLOOKUP(E88,datos!$K$6:$M$30,3,0),\"-\")","v":"-"},null,null,null,null,null,null,null,null,0]
[{"$f":"INFORME_GENERAL!$B$19","v":0},null,null,null,"_",{"$f":"IFERROR(VLOOKUP(E89,datos!$K$6:$M$30,2,0),\"-\")","v":"-"},{"$f":"IFERROR(VLOOKUP(E89,datos!$K$6:$M$30,3,0),\"-\")","v":"-"},null,null,null,null,null,null,null,null,0]
[{"$f":"INFORME_GENERAL!$B$19","v":0},null,null,null,"_",{"$f":"IFERROR(VLOOKUP(E90,datos!$K$6:$M$30,2,0),\"-\")","v":"-"},{"$f":"IFERROR(VLOOKUP(E90,datos!$K$6:$M$30,3,0),\"-\")","v":"-"},null,null,null,null,null,null,null,null,0]
[{"$f":"INFORME_GENERAL!$B$19","v":0},null,null,null,"_",{"$f":"IFERROR(VLOOKUP(E91,datos!$K$6:$M$30,2,0),\"-\")","v":"-"},{"$f":"IFERROR(VLOOKUP(E91,datos!$K$6:$M$30,3,0),\"-\")","v":"-"},null,null,null,null,null,null,null,null,0]
[{"$f":"INFORME_GENERAL!$B$19","v":0},null,null,null,"_",{"$f":"IFERROR(VLOOKUP(E92,datos!$K$6:$M$30,2,0),\"-\")","v":"-"},{"$f":"IFERROR(VLOOKUP(E92,datos!$K$6:$M$30,3,0),\"-\")","v":"-"},null,null,null,null,null,null,null,null,0]
[{"$f":"INFORME_GENERAL!$B$19","v":0},null,null,null,"_",{"$f":"IFERROR(VLOOKUP(E93,datos!$K$6:$M$30,2,0),\"-\")","v":"-"},{"$f":"IFERROR(VLOOKUP(E93,datos!$K$6:$M$30,3,0),\"-\")","v":"-"},null,null,null,null,null,null,null,null,0]
[{"$f":"INFORME_GENERAL!$B$19","v":0},null,null,null,"_",{"$f":"IFERROR(VLOOKUP(E94,datos!$K$6:$M$30,2,0),\"-\")","v":"-"},{"$f":"IFERROR(VLOOKUP(E94,datos!$K$6:$M$30,3,0),\"-\")","v":"-"},null,null,null,null,null,null,null,null,0]
[{"$f":"INFORME_GENERAL!$B$19","v":0},null,null,null,"_",{"$f":"IFERROR(VLOOKUP(E95,datos!$K$6:$M$30,2,0),\"-\")","v":"-"},{"$f":"IFERROR(VLOOKUP(E95,datos!$K$6:$M$30,3,0),\"-\")","v":"-"},null,null,null,null,null,null,null,null,0]
[{"$f":"INFORME_GENERAL!$B$19","v":0},null,null,null,"_",{"$f":"IFERROR(VLOOKUP(E96,datos!$K$6:$M$30,2,0),\"-\")","v":"-"},{"$f":"IFERROR(VLOOKUP(E96,datos!$K$6:$M$30,3,0),\"-\")","v":"-"},null,null,null,null,null,null,null,null,0]
[{"$f":"INFORME_GENERAL!$B$19","v":0},null,null,null,"_",{"$f":"IFERROR(VLOOKUP(E97,datos!$K$6:$M$30,2,0),\"-\")","v":"-"},{"$f":"IFERROR(VLOOKUP(E97,datos!$K$6:$M$30,3,0),\"-\")","v":"-"},null,null,null,null,null,null,null,null,0]
[{"$f":"INFORME_GENERAL!$B$19","v":0},null,null,null,"_",{"$f":"IFERROR(VLOOKUP(E98,datos!$K$6:$M$30,2,0),\"-\")","v":"-"},{"$f":"IFERROR(VLOOKUP(E98,datos!$K$6:$M$30,3,0),\"-\")","v":"-"},null,null,null,null,null,null,null,null,0]
[{"$f":"INFORME_GENERAL!$B$19","v":0},null,null,null,"_",{"$f":"IFERROR(VLOOKUP(E99,datos!$K$6:$M$30,2,0),\"-\")","v":"-"},{"$f":"IFERROR(VLOOKUP(E99,datos!$K$6:$M$30,3,0),\"-\")","v":"-"},null,null,null,null,null,null,null,null,0]
[{"$f":"INFORME_GENERAL!$B$19","v":0},null,null,null,"_",{"$f":"IFERROR(VLOOKUP(E100,datos!$K$6:$M$30,2,0),\"-\")","v":"-"},{"$f":"IFERROR(VLOOKUP(E100,datos!$K$6:$M$30,3,0),\"-\")","v":"-"},null,null,null,null,null,null,null,null,0]
[{"$f":"INFORME_GENERAL!$B$19","v":0},null,null,null,"_",{"$f":"IFERROR(VLOOKUP(E101,datos!$K$6:$M$30,2,0),\"-\")","v":"-"},{"$f":"IFERROR(VLOOKUP(E101,datos!$K$6:$M$30,3,0),\"-\")","v":"-"},null,null,null,null,null,null,null,null,0]
[{"$f":"INFORME_GENERAL!$B$19","v":0},null,null,null,"_",{"$f":"IFERROR(VLOOKUP(E102,datos!$K$6:$M$30,2,0),\"-\")","v":"-"},{"$f":"IFERROR(VLOOKUP(E102,datos!$K$6:$M$30,3,0),\"-\")","v":"-"},null,null,null,null,null,null,null,null,0]
[{"$f":"INFORME_GENERAL!$B$19","v":0},null,null,null,"_",{"$f":"IFERROR(VLOOKUP(E103,datos!$K$6:$M$30,2,0),\"-\")","v":"-"},{"$f":"IFERROR(VLOOKUP(E103,datos!$K$6:$M$30,3,0),\"-\")","v":"-"},null,null,null,null,null,null,null,null,0]
[{"$f":"INFORME_GENERAL!$B$19","v":0},null,null,null,"_",{"$f":"IFERROR(VLOOKUP(E104,datos!$K$6:$M$30,2,0),\"-\")","v":"-"},{"$f":"IFERROR(VLOOKUP(E104,datos!$K$6:$M$30,3,0),\"-\")","v":"-"},null,null,null,null,null,null,null,null,0]
[{"$f":"INFORME_GENERAL!$B$19","v":0},null,null,null,"_",{"$f":"IFERROR(VLOOKUP(E105,datos!$K$6:$M$30,2,0),\"-\")","v":"-"},{"$f":"IFERROR(VLOOKUP(E105,datos!$K$6:$M$30,3,0),\"-\")","v":"-"},null,null,null,null,null,null,null,null,0]
[{"$f":"INFORME_GENERAL!$B$19","v":0},null,null,null,"_",{"$f":"IFERROR(VLOOKUP(E106,datos!$K$6:$M$30,2,0),\"-\")","v":"-"},{"$f":"IFERROR(VLOOKUP(E106,datos!$K$6:$M$30,3,0),\"-\")","v":"-"},null,null,null,null,null,null,null,null,0]
[{"$f":"INFORME_GENERAL!$B$19","v":0},null,null,null,"_",{"$f":"IFERROR(VLOOKUP(E107,datos!$K$6:$M$30,2,0),\"-\")","v":"-"},{"$f":"IFERROR(VLOOKUP(E107,datos!$K$6:$M$30,3,0),\"-\")","v":"-"},null,null,null,null,null,null,null,null,0]
[{"$f":"INFORME_GENERAL!$B$19","v":0},null,null,null,"_",{"$f":"IFERROR(VLOOKUP(E108,datos!$K$6:$M$30,2,0),\"-\")","v":"-"},{"$f":"IFERROR(VLOOKUP(E108,datos!$K$6:$M$30,3,0),\"-\")","v":"-"},null,null,null,null,null,null,null,null,0]
[{"$f":"INFORME_GENERAL!$B$19","v":0},null,null,null,"_",{"$f":"IFERROR(VLOOKUP(E109,datos!$K$6:$M$30,2,0),\"-\")","v":"-"},{"$f":"IFERROR(VLOOKUP(E109,datos!$K$6:$M$30,3,0),\"-\")","v":"-"},null,null,null,null,null,null,null,null,0]
[{"$f":"INFORME_GENERAL!$B$19","v":0},null,null,null,"_",{"$f":"IFERROR(VLOOKUP(E110,datos!$K$6:$M$30,2,0),\"-\")","v":"-"},{"$f":"IFERROR(VLOOKUP(E110,datos!$K$6:$M$30,3,0),\"-\")","v":"-"},null,null,null,null,null,null,null,null,0]
[{"$f":"INFORME_GENERAL!$B$19","v":0},null,null,null,"_",{"$f":"IFERROR(VLOOKUP(E111,datos!$K$6:$M$30,2,0),\"-\")","v":"-"},{"$f":"IFERROR(VLOOKUP(E111,datos!$K$6:$M$30,3,0),\"-\")","v":"-"},null,null,null,null,null,null,null,null,0]
[{"$f":"INFORME_GENERAL!$B$19","v":0},null,null,null,"_",{"$f":"IFERROR(VLOOKUP(E112,datos!$K$6:$M$30,2,0),\"-\")","v":"-"},{"$f":"IFERROR(VLOOKUP(E112,datos!$K$6:$M$30,3,0),\"-\")","v":"-"},null,null,null,null,null,null,null,null,0]
[{"$f":"INFORME_GENERAL!$B$19","v":0},null,null,null,"_",{"$f":"IFERROR(VLOOKUP(E113,datos!$K$6:$M$30,2,0),\"-\")","v":"-"},{"$f":"IFERROR(VLOOKUP(E113,datos!$K$6:$M$30,3,0),\"-\")","v":"-"},null,null,null,null,null,null,null,null,0]
[{"$f":"INFORME_GENERAL!$B$19","v":0},null,null,null,"_",{"$f":"IFERROR(VLOOKUP(E114,datos!$K$6:$M$30,2,0),\"-\")","v":"-"},{"$f":"IFERROR(VLOOKUP(E114,datos!$K$6:$M$30,3,0),\"-\")","v":"-"},null,null,null,null,null,null,null,null,0]
[{"$f":"INFORME_GENERAL!$B$19","v":0},null,null,null,"_",{"$f":"IFERROR(VLOOKUP(E115,datos!$K$6:$M$30,2,0),\"-\")","v":"-"},{"$f":"IFERROR(VLOOKUP(E115,datos!$K$6:$M$30,3,0),\"-\")","v":"-"},null,null,null,null,null,null,null,null,0]
[{"$f":"INFORME_GENERAL!$B$19","v":0},null,null,null,"_",{"$f":"IFERROR(VLOOKUP(E116,datos!$K$6:$M$30,2,0),\"-\")","v":"-"},{"$f":"IFERROR(VLOOKUP(E116,datos!$K$6:$M$30,3,0),\"-\")","v":"-"},null,null,null,null,null,null,null,null,0]
[{"$f":"INFORME_GENERAL!$B$19","v":0},null,null,null,"_",{"$f":"IFERROR(VLOOKUP(E117,datos!$K$6:$M$30,2,0),\"-\")","v":"-"},{"$f":"IFERROR(VLOOKUP(E117,datos!$K$6:$M$30,3,0),\"-\")","v":"-"},null,null,null,null,null,null,null,null,0]
[{"$f":"INFORME_GENERAL!$B$19","v":0},null,null,null,"_",{"$f":"IFERROR(VLOOKUP(E118,datos!$K$6:$M$30,2,0),\"-\")","v":"-"},{"$f":"IFERROR(VLOOKUP(E118,datos!$K$6:$M$30,3,0),\"-\")","v":"-"},null,null,null,null,null,null,null,null,0]
[{"$f":"INFORME_GENERAL!$B$19","v":0},null,null,null,"_",{"$f":"IFERROR(VLOOKUP(E119,datos!$K$6:$M$30,2,0),\"-\")","v":"-"},{"$f":"IFERROR(VLOOKUP(E119,datos!$K$6:$M$30,3,0),\"-\")","v":"-"},null,null,null,null,null,null,null,null,0]
[{"$f":"INFORME_GENERAL!$B$19","v":0},null,null,null,"_",{"$f":"IFERROR(VLOOKUP(E120,datos!$K$6:$M$30,2,0),\"-\")","v":"-"},{"$f":"IFERROR(VLOOKUP(E120,datos!$K$6:$M$30,3,0),\"-\")","v":"-"},null,null,null,null,null,null,null,null,0]
[{"$f":"INFORME_GENERAL!$B$19","v":0},null,null,null,"_",{"$f":"IFERROR(VLOOKUP(E121,datos!$K$6:$M$30,2,0),\"-\")","v":"-"},{"$f":"IFERROR(VLOOKUP(E121,datos!$K$6:$M$30,3,0),\"-\")","v":"-"},null,null,null,null,null,null,null,null,0]
[{"$f":"INFORME_GENERAL!$B$19","v":0},null,null,null,"_",{"$f":"IFERROR(VLOOKUP(E122,datos!$K$6:$M$30,2,0),\"-\")","v":"-"},{"$f":"IFERROR(VLOOKUP(E122,datos!$K$6:$M$30,3,0),\"-\")","v":"-"},null,null,null,null,null,null,null,null,0]
[{"$f":"INFORME_GENERAL!$B$19","v":0},null,null,null,"_",{"$f":"IFERROR(VLOOKUP(E123,datos!$K$6:$M$30,2,0),\"-\")","v":"-"},{"$f":"IFERROR(VLOOKUP(E123,datos!$K$6:$M$30,3,0),\"-\")","v":"-"},null,null,null,null,null,null,null,null,0]
[{"$f":"INFORME_GENERAL!$B$19","v":0},null,null,null,"_",{"$f":"IFERROR(VLOOKUP(E124,datos!$K$6:$M$30,2,0),\"-\")","v":"-"},{"$f":"IFERROR(VLOOKUP(E124,datos!$K$6:$M$30,3,0),\"-\")","v":"-"},null,null,null,null,null,null,null,null,0]
[{"$f":"INFORME_GENERAL!$B$19","v":0},null,null,null,"_",{"$f":"IFERROR(VLOOKUP(E125,datos!$K$6:$M$30,2,0),\"-\")","v":"-"},{"$f":"IFERROR(VLOOKUP(E125,datos!$K$6:$M$30,3,0),\"-\")","v":"-"},null,null,null,null,null,null,null,null,0]
[{"$f":"INFORME_GENERAL!$B$19","v":0},null,null,null,"_",{"$f":"IFERROR(VLOOKUP(E126,datos!$K$6:$M$30,2,0),\"-\")","v":"-"},{"$f":"IFERROR(VLOOKUP(E126,datos!$K$6:$M$30,3,0),\"-\")","v":"-"},null,null,null,null,null,null,null,null,0]
[{"$f":"INFORME_GENERAL!$B$19","v":0},null,null,null,"_",{"$f":"IFERROR(VLOOKUP(E127,datos!$K$6:$M$30,2,0),\"-\")","v":"-"},{"$f":"IFERROR(VLOOKUP(E127,datos!$K$6:$M$30,3,0),\"-\")","v":"-"},null,null,null,null,null,null,null,null,0]
[{"$f":"INFORME_GENERAL!$B$19","v":0},null,null,null,"_",{"$f":"IFERROR(VLOOKUP(E128,datos!$K$6:$M$30,2,0),\"-\")","v":"-"},{"$f":"IFERROR(VLOOKUP(E128,datos!$K$6:$M$30,3,0),\"-\")","v":"-"},null,null,null,null,null,null,null,null,0]
[{"$f":"INFORME_GENERAL!$B$19","v":0},null,null,null,"_",{"$f":"IFERROR(VLOOKUP(E129,datos!$K$6:$M$30,2,0),\"-\")","v":"-"},{"$f":"IFERROR(VLOOKUP(E129,datos!$K$6:$M$30,3,0),\"-\")","v":"-"},null,null,null,null,null,null,null,null,0]
[{"$f":"INFORME_GENERAL!$B$19","v":0},null,null,null,"_",{"$f":"IFERROR(VLOOKUP(E130,datos!$K$6:$M$30,2,0),\"-\")","v":"-"},{"$f":"IFERROR(VLOOKUP(E130,datos!$K$6:$M$30,3,0),\"-\")","v":"-"},null,null,null,null,null,null,null,null,0]
[{"$f":"INFORME_GENERAL!$B$19","v":0},null,null,null,"_",{"$f":"IFERROR(VLOOKUP(E131,datos!$K$6:$M$30,2,0),\"-\")","v":"-"},{"$f":"IFERROR(VLOOKUP(E131,datos!$K$6:$M$30,3,0),\"-\")","v":"-"},null,null,null,null,null,null,null,null,0]
[{"$f":"INFORME_GENERAL!$B$19","v":0},null,null,null,"_",{"$f":"IFERROR(VLOOKUP(E132,datos!$K$6:$M$30,2,0),\"-\")","v":"-"},{"$f":"IFERROR(VLOOKUP(E132,datos!$K$6:$M$30,3,0),\"-\")","v":"-"},null,null,null,null,null,null,null,null,0]
[{"$f":"INFORME_GENERAL!$B$19","v":0},null,null,null,"_",{"$f":"IFERROR(VLOOKUP(E133,datos!$K$6:$M$30,2,0),\"-\")","v":"-"},{"$f":"IFERROR(VLOOKUP(E133,datos!$K$6:$M$30,3,0),\"-\")","v":"-"},null,null,null,null,null,null,null,null,0]
[{"$f":"INFORME_GENERAL!$B$19","v":0},null,null,null,"_",{"$f":"IFERROR(VLOOKUP(E134,datos!$K$6:$M$30,2,0),\"-\")","v":"-"},{"$f":"IFERROR(VLOOKUP(E134,datos!$K$6:$M$30,3,0),\"-\")","v":"-"},null,null,null,null,null,null,null,null,0]
[{"$f":"INFORME_GENERAL!$B$19","v":0},null,null,null,"_",{"$f":"IFERROR(VLOOKUP(E135,datos!$K$6:$M$30,2,0),\"-\")","v":"-"},{"$f":"IFERROR(VLOOKUP(E135,datos!$K$6:$M$30,3,0),\"-\")","v":"-"},null,null,null,null,null,null,null,null,0]
[{"$f":"INFORME_GENERAL!$B$19","v":0},null,null,null,"_",{"$f":"IFERROR(VLOOKUP(E136,datos!$K$6:$M$30,2,0),\"-\")","v":"-"},{"$f":"IFERROR(VLOOKUP(E136,datos!$K$6:$M$30,3,0),\"-\")","v":"-"},null,null,null,null,null,null,null,null,0]
[{"$f":"INFORME_GENERAL!$B$19","v":0},null,null,null,"_",{"$f":"IFERROR(VLOOKUP(E137,datos!$K$6:$M$30,2,0),\"-\")","v":"-"},{"$f":"IFERROR(VLOOKUP(E137,datos!$K$6:$M$30,3,0),\"-\")","v":"-"},null,null,null,null,null,null,null,null,0]
[{"$f":"INFORME_GENERAL!$B$19","v":0},null,null,null,{"$f":"CONCATENATE(C138,\"_\",D138)","v":"_"},{"$f":"IFERROR(VLOOKUP(E138,datos!$K$6:$M$30,2,0),\"-\")","v":"-"},{"$f":"IFERROR(VLOOKUP(E138,datos!$K$6:$M$30,3,0),\"-\")","v":"-"},null,null,null,null,null,null,null,null,{"$f":"N138+O138","v":0}]
[{"$f":"INFORME_GENERAL!$B$19","v":0},null,null,null,"_",{"$f":"IFERROR(VLOOKUP(E139,datos!$K$6:$M$30,2,0),\"-\")","v":"-"},{"$f":"IFERROR(VLOOKUP(E139,datos!$K$6:$M$30,3,0),\"-\")","v":"-"},null,null,null,null,null,null,null,null,0]
[{"$f":"INFORME_GENERAL!$B$19","v":0},null,null,null,"_",{"$f":"IFERROR(VLOOKUP(E140,datos!$K$6:$M$30,2,0),\"-\")","v":"-"},{"$f":"IFERROR(VLOOKUP(E140,datos!$K$6:$M$30,3,0),\"-\")","v":"-"},null,null,null,null,null,null,null,null,0]
[{"$f":"INFORME_GENERAL!$B$19","v":0},null,null,null,"_",{"$f":"IFERROR(VLOOKUP(E141,datos!$K$6:$M$30,2,0),\"-\")","v":"-"},{"$f":"IFERROR(VLOOKUP(E141,datos!$K$6:$M$30,3,0),\"-\")","v":"-"},null,null,null,null,null,null,null,null,0]
[{"$f":"INFORME_GENERAL!$B$19","v":0},null,null,null,"_",{"$f":"IFERROR(VLOOKUP(E142,datos!$K$6:$M$30,2,0),\"-\")","v":"-"},{"$f":"IFERROR(VLOOKUP(E142,datos!$K$6:$M$30,3,0),\"-\")","v":"-"},null,null,null,null,null,null,null,null,0]
[{"$f":"INFORME_GENERAL!$B$19","v":0},null,null,null,"_",{"$f":"IFERROR(VLOOKUP(E143,datos!$K$6:$M$30,2,0),\"-\")","v":"-"},{"$f":"IFERROR(VLOOKUP(E143,datos!$K$6:$M$30,3,0),\"-\")","v":"-"},null,null,null,null,null,null,null,null,0]
[{"$f":"INFORME_GENERAL!$B$19","v":0},null,null,null,"_",{"$f":"IFERROR(VLOOKUP(E144,datos!$K$6:$M$30,2,0),\"-\")","v":"-"},{"$f":"IFERROR(VLOOKUP(E144,datos!$K$6:$M$30,3,0),\"-\")","v":"-"},null,null,null,null,null,null,null,null,0]
[{"$f":"INFORME_GENERAL!$B$19","v":0},null,null,null,"_",{"$f":"IFERROR(VLOOKUP(E145,datos!$K$6:$M$30,2,0),\"-\")","v":"-"},{"$f":"IFERROR(VLOOKUP(E145,datos!$K$6:$M$30,3,0),\"-\")","v":"-"},null,null,null,null,null,null,null,null,0]
[{"$f":"INFORME_GENERAL!$B$19","v":0},null,null,null,"_",{"$f":"IFERROR(VLOOKUP(E146,datos!$K$6:$M$30,2,0),\"-\")","v":"-"},{"$f":"IFERROR(VLOOKUP(E146,datos!$K$6:$M$30,3,0),\"-\")","v":"-"},null,null,null,null,null,null,null,null,0]
[{"$f":"INFORME_GENERAL!$B$19","v":0},null,null,null,"_",{"$f":"IFERROR(VLOOKUP(E147,datos!$K$6:$M$30,2,0),\"-\")","v":"-"},{"$f":"IFERROR(VLOOKUP(E147,datos!$K$6:$M$30,3,0),\"-\")","v":"-"},null,null,null,null,null,null,null,null,0]
[{"$f":"INFORME_GENERAL!$B$19","v":0},null,null,null,"_",{"$f":"IFERROR(VLOOKUP(E148,datos!$K$6:$M$30,2,0),\"-\")","v":"-"},{"$f":"IFERROR(VLOOKUP(E148,datos!$K$6:$M$30,3,0),\"-\")","v":"-"},null,null,null,null,null,null,null,null,0]
[{"$f":"INFORME_GENERAL!$B$19","v":0},null,null,null,"_",{"$f":"IFERROR(VLOOKUP(E149,datos!$K$6:$M$30,2,0),\"-\")","v":"-"},{"$f":"IFERROR(VLOOKUP(E149,datos!$K$6:$M$30,3,0),\"-\")","v":"-"},null,null,null,null,null,null,null,null,0]
[{"$f":"INFORME_GENERAL!$B$19","v":0},null,null,null,"_",{"$f":"IFERROR(VLOOKUP(E150,datos!$K$6:$M$30,2,0),\"-\")","v":"-"},{"$f":"IFERROR(VLOOKUP(E150,datos!$K$6:$M$30,3,0),\"-\")","v":"-"},null,null,null,null,null,null,null,null,0]
[{"$f":"INFORME_GENERAL!$B$19","v":0},null,null,null,"_",{"$f":"IFERROR(VLOOKUP(E151,datos!$K$6:$M$30,2,0),\"-\")","v":"-"},{"$f":"IFERROR(VLOOKUP(E151,datos!$K$6:$M$30,3,0),\"-\")","v":"-"},null,null,null,null,null,null,null,null,0]
[{"$f":"INFORME_GENERAL!$B$19","v":0},null,null,null,"_",{"$f":"IFERROR(VLOOKUP(E152,datos!$K$6:$M$30,2,0),\"-\")","v":"-"},{"$f":"IFERROR(VLOOKUP(E152,datos!$K$6:$M$30,3,0),\"-\")","v":"-"},null,null,null,null,null,null,null,null,0]
[{"$f":"INFORME_GENERAL!$B$19","v":0},null,null,null,"_",{"$f":"IFERROR(VLOOKUP(E153,datos!$K$6:$M$30,2,0),\"-\")","v":"-"},{"$f":"IFERROR(VLOOKUP(E153,datos!$K$6:$M$30,3,0),\"-\")","v":"-"},null,null,null,null,null,null,null,null,0]
[{"$f":"INFORME_GENERAL!$B$19","v":0},null,null,null,"_",{"$f":"IFERROR(VLOOKUP(E154,datos!$K$6:$M$30,2,0),\"-\")","v":"-"},{"$f":"IFERROR(VLOOKUP(E154,datos!$K$6:$M$30,3,0),\"-\")","v":"-"},null,null,null,null,null,null,null,null,0]
[{"$f":"INFORME_GENERAL!$B$19","v":0},null,null,null,"_",{"$f":"IFERROR(VLOOKUP(E155,datos!$K$6:$M$30,2,0),\"-\")","v":"-"},{"$f":"IFERROR(VLOOKUP(E155,datos!$K$6:$M$30,3,0),\"-\")","v":"-"},null,null,null,null,null,null,null,null,0]
[{"$f":"INFORME_GENERAL!$B$19","v":0},null,null,null,"_",{"$f":"IFERROR(VLOOKUP(E156,datos!$K$6:$M$30,2,0),\"-\")","v":"-"},{"$f":"IFERROR(VLOOKUP(E156,datos!$K$6:$M$30,3,0),\"-\")","v":"-"},null,null,null,null,null,null,null,null,0]
[{"$f":"INFORME_GENERAL!$B$19","v":0},null,null,null,"_",{"$f":"IFERROR(VLOOKUP(E157,datos!$K$6:$M$30,2,0),\"-\")","v":"-"},{"$f":"IFERROR(VLOOKUP(E157,datos!$K$6:$M$30,3,0),\"-\")","v":"-"},null,null,null,null,null,null,null,null,0]
[{"$f":"INFORME_GENERAL!$B$19","v":0},null,null,null,"_",{"$f":"IFERROR(VLOOKUP(E158,datos!$K$6:$M$30,2,0),\"-\")","v":"-"},{"$f":"IFERROR(VLOOKUP(E158,datos!$K$6:$M$30,3,0),\"-\")","v":"-"},null,null,null,null,null,null,null,null,0]
[{"$f":"INFORME_GENERAL!$B$19","v":0},null,null,null,"_",{"$f":"IFERROR(VLOOKUP(E159,datos!$K$6:$M$30,2,0),\"-\")","v":"-"},{"$f":"IFERROR(VLOOKUP(E159,datos!$K$6:$M$30,3,0),\"-\")","v":"-"},null,null,null,null,null,null,null,null,0]
[{"$f":"INFORME_GENERAL!$B$19","v":0},null,null,null,"_",{"$f":"IFERROR(VLOOKUP(E160,datos!$K$6:$M$30,2,0),\"-\")","v":"-"},{"$f":"IFERROR(VLOOKUP(E160,datos!$K$6:$M$30,3,0),\"-\")","v":"-"},null,null,null,null,null,null,null,null,0]
[{"$f":"INFORME_GENERAL!$B$19","v":0},null,null,null,"_",{"$f":"IFERROR(VLOOKUP(E161,datos!$K$6:$M$30,2,0),\"-\")","v":"-"},{"$f":"IFERROR(VLOOKUP(E161,datos!$K$6:$M$30,3,0),\"-\")","v":"-"},null,null,null,null,null,null,null,null,0]
[{"$f":"INFORME_GENERAL!$B$19","v":0},null,null,null,"_",{"$f":"IFERROR(VLOOKUP(E162,datos!$K$6:$M$30,2,0),\"-\")","v":"-"},{"$f":"IFERROR(VLOOKUP(E162,datos!$K$6:$M$30,3,0),\"-\")","v":"-"},null,null,null,null,null,null,null,null,0]
[{"$f":"INFORME_GENERAL!$B$19","v":0},null,null,null,"_",{"$f":"IFERROR(VLOOKUP(E163,datos!$K$6:$M$30,2,0),\"-\")","v":"-"},{"$f":"IFERROR(VLOOKUP(E163,datos!$K$6:$M$30,3,0),\"-\")","v":"-"},null,null,null,null,null,null,null,null,0]
[{"$f":"INFORME_GENERAL!$B$19","v":0},null,null,null,"_",{"$f":"IFERROR(VLOOKUP(E164,datos!$K$6:$M$30,2,0),\"-\")","v":"-"},{"$f":"IFERROR(VLOOKUP(E164,datos!$K$6:$M$30,3,0),\"-\")","v":"-"},null,null,null,null,null,null,null,null,0]
[{"$f":"INFORME_GENERAL!$B$19","v":0},null,null,null,"_",{"$f":"IFERROR(VLOOKUP(E165,datos!$K$6:$M$30,2,0),\"-\")","v":"-"},{"$f":"IFERROR(VLOOKUP(E165,datos!$K$6:$M$30,3,0),\"-\")","v":"-"},null,null,null,null,null,null,null,null,0]
[{"$f":"INFORME_GENERAL!$B$19","v":0},null,null,null,"_",{"$f":"IFERROR(VLOOKUP(E166,datos!$K$6:$M$30,2,0),\"-\")","v":"-"},{"$f":"IFERROR(VLOOKUP(E166,datos!$K$6:$M$30,3,0),\"-\")","v":"-"},null,null,null,null,null,null,null,null,0]
[{"$f":"INFORME_GENERAL!$B$19","v":0},null,null,null,"_",{"$f":"IFERROR(VLOOKUP(E167,datos!$K$6:$M$30,2,0),\"-\")","v":"-"},{"$f":"IFERROR(VLOOKUP(E167,datos!$K$6:$M$30,3,0),\"-\")","v":"-"},null,null,null,null,null,null,null,null,0]
[{"$f":"INFORME_GENERAL!$B$19","v":0},null,null,null,"_",{"$f":"IFERROR(VLOOKUP(E168,datos!$K$6:$M$30,2,0),\"-\")","v":"-"},{"$f":"IFERROR(VLOOKUP(E168,datos!$K$6:$M$30,3,0),\"-\")","v":"-"},null,null,null,null,null,null,null,null,0]
[{"$f":"INFORME_GENERAL!$B$19","v":0},null,null,null,"_",{"$f":"IFERROR(VLOOKUP(E169,datos!$K$6:$M$30,2,0),\"-\")","v":"-"},{"$f":"IFERROR(VLOOKUP(E169,datos!$K$6:$M$30,3,0),\"-\")","v":"-"},null,null,null,null,null,null,null,null,0]
[{"$f":"INFORME_GENERAL!$B$19","v":0},null,null,null,"_",{"$f":"IFERROR(VLOOKUP(E170,datos!$K$6:$M$30,2,0),\"-\")","v":"-"},{"$f":"IFERROR(VLOOKUP(E170,datos!$K$6:$M$30,3,0),\"-\")","v":"-"},null,null,null,null,null,null,null,null,0]
[{"$f":"INFORME_GENERAL!$B$19","v":0},null,null,null,"_",{"$f":"IFERROR(VLOOKUP(E171,datos!$K$6:$M$30,2,0),\"-\")","v":"-"},{"$f":"IFERROR(VLOOKUP(E171,datos!$K$6:$M$30,3,0),\"-\")","v":"-"},null,null,null,null,null,null,null,null,0]
[{"$f":"INFORME_GENERAL!$B$19","v":0},null,null,null,"_",{"$f":"IFERROR(VLOOKUP(E172,datos!$K$6:$M$30,2,0),\"-\")","v":"-"},{"$f":"IFERROR(VLOOKUP(E172,datos!$K$6:$M$30,3,0),\"-\")","v":"-"},null,null,null,null,null,null,null,null,0]
[{"$f":"INFORME_GENERAL!$B$19","v":0},null,null,null,"_",{"$f":"IFERROR(VLOOKUP(E173,datos!$K$6:$M$30,2,0),\"-\")","v":"-"},{"$f":"IFERROR(VLOOKUP(E173,datos!$K$6:$M$30,3,0),\"-\")","v":"-"},null,null,null,null,null,null,null,null,0]
[{"$f":"INFORME_GENERAL!$B$19","v":0},null,null,null,"_",{"$f":"IFERROR(VLOOKUP(E174,datos!$K$6:$M$30,2,0),\"-\")","v":"-"},{"$f":"IFERROR(VLOOKUP(E174,datos!$K$6:$M$30,3,0),\"-\")","v":"-"},null,null,null,null,null,null,null,null,0]
[{"$f":"INFORME_GENERAL!$B$19","v":0},null,null,null,"_",{"$f":"IFERROR(VLOOKUP(E175,datos!$K$6:$M$30,2,0),\"-\")","v":"-"},{"$f":"IFERROR(VLOOKUP(E175,datos!$K$6:$M$30,3,0),\"-\")","v":"-"},null,null,null,null,null,null,null,null,0]
[{"$f":"INFORME_GENERAL!$B$19","v":0},null,null,null,"_",{"$f":"IFERROR(VLOOKUP(E176,datos!$K$6:$M$30,2,0),\"-\")","v":"-"},{"$f":"IFERROR(VLOOKUP(E176,datos!$K$6:$M$30,3,0),\"-\")","v":"-"},null,null,null,null,null,null,null,null,0]
[{"$f":"INFORME_GENERAL!$B$19","v":0},null,null,null,"_",{"$f":"IFERROR(VLOOKUP(E177,datos!$K$6:$M$30,2,0),\"-\")","v":"-"},{"$f":"IFERROR(VLOOKUP(E177,datos!$K$6:$M$30,3,0),\"-\")","v":"-"},null,null,null,null,null,null,null,null,0]
[{"$f":"INFORME_GENERAL!$B$19","v":0},null,null,null,"_",{"$f":"IFERROR(VLOOKUP(E178,datos!$K$6:$M$30,2,0),\"-\")","v":"-"},{"$f":"IFERROR(VLOOKUP(E178,datos!$K$6:$M$30,3,0),\"-\")","v":"-"},null,null,null,null,null,null,null,null,0]
[{"$f":"INFORME_GENERAL!$B$19","v":0},null,null,null,"_",{"$f":"IFERROR(VLOOKUP(E179,datos!$K$6:$M$30,2,0),\"-\")","v":"-"},{"$f":"IFERROR(VLOOKUP(E179,datos!$K$6:$M$30,3,0),\"-\")","v":"-"},null,null,null,null,null,null,null,null,0]
[{"$f":"INFORME_GENERAL!$B$19","v":0},null,null,null,"_",{"$f":"IFERROR(VLOOKUP(E180,datos!$K$6:$M$30,2,0),\"-\")","v":"-"},{"$f":"IFERROR(VLOOKUP(E180,datos!$K$6:$M$30,3,0),\"-\")","v":"-"},null,null,null,null,null,null,null,null,0]
[{"$f":"INFORME_GENERAL!$B$19","v":0},null,null,null,"_",{"$f":"IFERROR(VLOOKUP(E181,datos!$K$6:$M$30,2,0),\"-\")","v":"-"},{"$f":"IFERROR(VLOOKUP(E181,datos!$K$6:$M$30,3,0),\"-\")","v":"-"},null,null,null,null,null,null,null,null,0]
[{"$f":"INFORME_GENERAL!$B$19","v":0},null,null,null,"_",{"$f":"IFERROR(VLOOKUP(E182,datos!$K$6:$M$30,2,0),\"-\")","v":"-"},{"$f":"IFERROR(VLOOKUP(E182,datos!$K$6:$M$30,3,0),\"-\")","v":"-"},null,null,null,null,null,null,null,null,0]
[{"$f":"INFORME_GENERAL!$B$19","v":0},null,null,null,"_",{"$f":"IFERROR(VLOOKUP(E183,datos!$K$6:$M$30,2,0),\"-\")","v":"-"},{"$f":"IFERROR(VLOOKUP(E183,datos!$K$6:$M$30,3,0),\"-\")","v":"-"},null,null,null,null,null,null,null,null,0]
[{"$f":"INFORME_GENERAL!$B$19","v":0},null,null,null,"_",{"$f":"IFERROR(VLOOKUP(E184,datos!$K$6:$M$30,2,0),\"-\")","v":"-"},{"$f":"IFERROR(VLOOKUP(E184,datos!$K$6:$M$30,3,0),\"-\")","v":"-"},null,null,null,null,null,null,null,null,0]
[{"$f":"INFORME_GENERAL!$B$19","v":0},null,null,null,"_",{"$f":"IFERROR(VLOOKUP(E185,datos!$K$6:$M$30,2,0),\"-\")","v":"-"},{"$f":"IFERROR(VLOOKUP(E185,datos!$K$6:$M$30,3,0),\"-\")","v":"-"},null,null,null,null,null,null,null,null,0]
[{"$f":"INFORME_GENERAL!$B$19","v":0},null,null,null,"_",{"$f":"IFERROR(VLOOKUP(E186,datos!$K$6:$M$30,2,0),\"-\")","v":"-"},{"$f":"IFERROR(VLOOKUP(E186,datos!$K$6:$M$30,3,0),\"-\")","v":"-"},null,null,null,null,null,null,null,null,0]
[{"$f":"INFORME_GENERAL!$B$19","v":0},null,null,null,"_",{"$f":"IFERROR(VLOOKUP(E187,datos!$K$6:$M$30,2,0),\"-\")","v":"-"},{"$f":"IFERROR(VLOOKUP(E187,datos!$K$6:$M$30,3,0),\"-\")","v":"-"},null,null,null,null,null,null,null,null,0]
[{"$f":"INFORME_GENERAL!$B$19","v":0},null,null,null,"_",{"$f":"IFERROR(VLOOKUP(E188,datos!$K$6:$M$30,2,0),\"-\")","v":"-"},{"$f":"IFERROR(VLOOKUP(E188,datos!$K$6:$M$30,3,0),\"-\")","v":"-"},null,null,null,null,null,null,null,null,0]
[{"$f":"INFORME_GENERAL!$B$19","v":0},null,null,null,"_",{"$f":"IFERROR(VLOOKUP(E189,datos!$K$6:$M$30,2,0),\"-\")","v":"-"},{"$f":"IFERROR(VLOOKUP(E189,datos!$K$6:$M$30,3,0),\"-\")","v":"-"},null,null,null,null,null,null,null,null,0]
[{"$f":"INFORME_GENERAL!$B$19","v":0},null,null,null,"_",{"$f":"IFERROR(VLOOKUP(E190,datos!$K$6:$M$30,2,0),\"-\")","v":"-"},{"$f":"IFERROR(VLOOKUP(E190,datos!$K$6:$M$30,3,0),\"-\")","v":"-"},null,null,null,null,null,null,null,null,0]
[{"$f":"INFORME_GENERAL!$B$19","v":0},null,null,null,"_",{"$f":"IFERROR(VLOOKUP(E191,datos!$K$6:$M$30,2,0),\"-\")","v":"-"},{"$f":"IFERROR(VLOOKUP(E191,datos!$K$6:$M$30,3,0),\"-\")","v":"-"},null,null,null,null,null,null,null,null,0]
[{"$f":"INFORME_GENERAL!$B$19","v":0},null,null,null,"_",{"$f":"IFERROR(VLOOKUP(E192,datos!$K$6:$M$30,2,0),\"-\")","v":"-"},{"$f":"IFERROR(VLOOKUP(E192,datos!$K$6:$M$30,3,0),\"-\")","v":"-"},null,null,null,null,null,null,null,null,0]
[{"$f":"INFORME_GENERAL!$B$19","v":0},null,null,null,"_",{"$f":"IFERROR(VLOOKUP(E193,datos!$K$6:$M$30,2,0),\"-\")","v":"-"},{"$f":"IFERROR(VLOOKUP(E193,datos!$K$6:$M$30,3,0),\"-\")","v":"-"},null,null,null,null,null,null,null,null,0]
[{"$f":"INFORME_GENERAL!$B$19","v":0},null,null,null,"_",{"$f":"IFERROR(VLOOKUP(E194,datos!$K$6:$M$30,2,0),\"-\")","v":"-"},{"$f":"IFERROR(VLOOKUP(E194,datos!$K$6:$M$30,3,0),\"-\")","v":"-"},null,null,null,null,null,null,null,null,0]
[{"$f":"INFORME_GENERAL!$B$19","v":0},null,null,null,"_",{"$f":"IFERROR(VLOOKUP(E195,datos!$K$6:$M$30,2,0),\"-\")","v":"-"},{"$f":"IFERROR(VLOOKUP(E195,datos!$K$6:$M$30,3,0),\"-\")","v":"-"},null,null,null,null,null,null,null,null,0]
[{"$f":"INFORME_GENERAL!$B$19","v":0},null,null,null,"_",{"$f":"IFERROR(VLOOKUP(E196,datos!$K$6:$M$30,2,0),\"-\")","v":"-"},{"$f":"IFERROR(VLOOKUP(E196,datos!$K$6:$M$30,3,0),\"-\")","v":"-"},null,null,null,null,null,null,null,null,0]
[{"$f":"INFORME_GENERAL!$B$19","v":0},null,null,null,"_",{"$f":"IFERROR(VLOOKUP(E197,datos!$K$6:$M$30,2,0),\"-\")","v":"-"},{"$f":"IFERROR(VLOOKUP(E197,datos!$K$6:$M$30,3,0),\"-\")","v":"-"},null,null,null,null,null,null,null,null,0]
[{"$f":"INFORME_GENERAL!$B$19","v":0},null,null,null,"_",{"$f":"IFERROR(VLOOKUP(E198,datos!$K$6:$M$30,2,0),\"-\")","v":"-"},{"$f":"IFERROR(VLOOKUP(E198,datos!$K$6:$M$30,3,0),\"-\")","v":"-"},null,null,null,null,null,null,null,null,0]
[{"$f":"INFORME_GENERAL!$B$19","v":0},null,null,null,"_",{"$f":"IFERROR(VLOOKUP(E199,datos!$K$6:$M$30,2,0),\"-\")","v":"-"},{"$f":"IFERROR(VLOOKUP(E199,datos!$K$6:$M$30,3,0),\"-\")","v":"-"},null,null,null,null,null,null,null,null,0]
[{"$f":"INFORME_GENERAL!$B$19","v":0},null,null,null,"_",{"$f":"IFERROR(VLOOKUP(E200,datos!$K$6:$M$30,2,0),\"-\")","v":"-"},{"$f":"IFERROR(VLOOKUP(E200,datos!$K$6:$M$30,3,0),\"-\")","v":"-"},null,null,null,null,null,null,null,null,0]
[{"$f":"INFORME_GENERAL!$B$19","v":0},null,null,null,"_",{"$f":"IFERROR(VLOOKUP(E201,datos!$K$6:$M$30,2,0),\"-\")","v":"-"},{"$f":"IFERROR(VLOOKUP(E201,datos!$K$6:$M$30,3,0),\"-\")","v":"-"},null,null,null,null,null,null,null,null,0]
[{"$f":"INFORME_GENERAL!$B$19","v":0},null,null,null,{"$f":"CONCATENATE(C202,\"_\",D202)","v":"_"},{"$f":"IFERROR(VLOOKUP(E202,datos!$K$6:$M$30,2,0),\"-\")","v":"-"},{"$f":"IFERROR(VLOOKUP(E202,datos!$K$6:$M$30,3,0),\"-\")","v":"-"},null,null,null,null,null,null,null,null,{"$f":"N202+O202","v":0}]
[{"$f":"INFORME_GENERAL!$B$19","v":0},null,null,null,"_",{"$f":"IFERROR(VLOOKUP(E203,datos!$K$6:$M$30,2,0),\"-\")","v":"-"},{"$f":"IFERROR(VLOOKUP(E203,datos!$K$6:$M$30,3,0),\"-\")","v":"-"},null,null,null,null,null,null,null,null,0]
[{"$f":"INFORME_GENERAL!$B$19","v":0},null,null,null,"_",{"$f":"IFERROR(VLOOKUP(E204,datos!$K$6:$M$30,2,0),\"-\")","v":"-"},{"$f":"IFERROR(VLOOKUP(E204,datos!$K$6:$M$30,3,0),\"-\")","v":"-"},null,null,null,null,null,null,null,null,0]
[{"$f":"INFORME_GENERAL!$B$19","v":0},null,null,null,"_",{"$f":"IFERROR(VLOOKUP(E205,datos!$K$6:$M$30,2,0),\"-\")","v":"-"},{"$f":"IFERROR(VLOOKUP(E205,datos!$K$6:$M$30,3,0),\"-\")","v":"-"},null,null,null,null,null,null,null,null,0]
[{"$f":"INFORME_GENERAL!$B$19","v":0},null,null,null,"_",{"$f":"IFERROR(VLOOKUP(E206,datos!$K$6:$M$30,2,0),\"-\")","v":"-"},{"$f":"IFERROR(VLOOKUP(E206,datos!$K$6:$M$30,3,0),\"-\")","v":"-"},null,null,null,null,null,null,null,null,0]
[{"$f":"INFORME_GENERAL!$B$19","v":0},null,null,null,"_",{"$f":"IFERROR(VLOOKUP(E207,datos!$K$6:$M$30,2,0),\"-\")","v":"-"},{"$f":"IFERROR(VLOOKUP(E207,datos!$K$6:$M$30,3,0),\"-\")","v":"-"},null,null,null,null,null,null,null,null,0]
[{"$f":"INFORME_GENERAL!$B$19","v":0},null,null,null,"_",{"$f":"IFERROR(VLOOKUP(E208,datos!$K$6:$M$30,2,0),\"-\")","v":"-"},{"$f":"IFERROR(VLOOKUP(E208,datos!$K$6:$M$30,3,0),\"-\")","v":"-"},null,null,null,null,null,null,null,null,0]
["-",null,null,null,null,null,null,"-","-","-","-","-","-",{"$f":"SUM(N9:N208)","v":0},{"$f":"SUM(O9:O208)","v":0},{"$f":"SUM(P9:P208)","v":0}]
[null,"ENERO","COSTAS","PERSUASIVO"]
[null,"FEBRERO","COSTAS","COACTIVO"]
[null,"MARZO","COSTAS","PROCESOS CONCURSALES"]
[null,"ABRIL","COSTAS","OTRO TIPO DE COBRO JURIDICO"]
[null,"MAYO","COSTAS","PERSUASIVO"]
[null,"JUNIO","COSTAS","COACTIVO"]
[null,"JULIO","COSTAS","PROCESOS CONCURSALES"]
[null,"AGOSTO","COSTAS","OTRO TIPO DE COBRO JURIDICO"]
[null,"SEPTIEMBRE","COSTAS","PERSUASIVO"]
[null,"OCTUBRE","COSTAS","COACTIVO"]
[null,"NOVIEMBRE","COSTAS","PROCESOS CONCURSALES"]
[null,"DICIEMBRE","COSTAS","OTRO TIPO DE COBRO JURIDICO"]
[null,"ENERO","CUOTA_ALIMENTARIA","PERSUASIVO"]
[null,"FEBRERO","CUOTA_ALIMENTARIA","COACTIVO"]
[null,"MARZO","CUOTA_ALIMENTARIA","OTRO TIPO DE COBRO JURIDICO"]
[null,"ABRIL","CUOTA_ALIMENTARIA","PERSUASIVO"]
[null,"MAYO","CUOTA_ALIMENTARIA","COACTIVO"]
[null,"JUNIO","CUOTA_ALIMENTARIA","OTRO TIPO DE COBRO JURIDICO"]
[null,"JULIO","CUOTA_ALIMENTARIA","PERSUASIVO"]
[null,"AGOSTO","CUOTA_ALIMENTARIA","COACTIVO"]
[null,"SEPTIEMBRE","CUOTA_ALIMENTARIA","OTRO TIPO DE COBRO JURIDICO"]
[null,"OCTUBRE","CUOTA_ALIMENTARIA","PERSUASIVO"]
[null,"NOVIEMBRE","CUOTA_ALIMENTARIA","COACTIVO"]
[null,"DICIEMBRE","CUOTA_ALIMENTARIA","OTRO TIPO DE COBRO JURIDICO"]
[null,"ENERO","CONTRACTUALES","SANCIONES CONTRACTUALES EN PERSUASIVO"]
[null,"FEBRERO","CONTRACTUALES","SANCIONES CONTRACTUALES EN COBRO COACTIVO "]
[null,"MARZO","CONTRACTUALES","SANCIONES CONTRACTUALES EN COBRO CONCURSALES "]
[null,"ABRIL","CONTRACTUALES","SANCIONES CONTRACTUALES  EN OTRO TIPO DE COBRO JURIDICO "]
[null,"MAYO","CONTRACTUALES","REINTEGROS  POR RECURSOS NO EJECUTADOS CONTRATOS EN PERSUASIVO"]
[null,"JUNIO","CONTRACTUALES","REINTEGROS  POR RECURSOS NO EJECUTADOS EN COBRO COACTIVO"]
[null,"JULIO","CONTRACTUALES","REINTEGROS  POR RECURSOS NO EJECUTADOS EN COBRO CONCURSALES "]
[null,"AGOSTO","CONTRACTUALES","REINTEGROS  POR RECURSOS NO EJECUTADOS EN COBRO PROCESO EN OTRO TRAMITE JURIDICO"]
[null,"SEPTIEMBRE","CONTRACTUALES","SANCIONES CONTRACTUALES EN PERSUASIVO"]
[null,"OCTUBRE","CONTRACTUALES","SANCIONES CONTRACTUALES EN COBRO COACTIVO "]
[null,"NOVIEMBRE","CONTRACTUALES","SANCIONES CONTRACTUALES EN COBRO CONCURSALES "]
[null,"DICIEMBRE","CONTRACTUALES","SANCIONES CONTRACTUALES  EN OTRO TIPO DE COBRO JURIDICO "]
[null,"ENERO","CONTRACTUALES","REINTEGROS  POR RECURSOS NO EJECUTADOS CONTRATOS EN PERSUASIVO"]
[null,"FEBRERO","CONTRACTUALES","REINTEGROS  POR RECURSOS NO EJECUTADOS EN COBRO COACTIVO"]
[null,"MARZO","CONTRACTUALES","REINTEGROS  POR RECURSOS NO EJECUTADOS EN COBRO CONCURSALES "]
[null,"ABRIL","CONTRACTUALES","REINTEGROS  POR RECURSOS NO EJECUTADOS EN COBRO PROCESO EN OTRO TRAMITE JURIDICO"]
[null,"ENERO","OTRAS_OBLIGACIONES","PERSUASIVO"]
[null,"FEBRERO","OTRAS_OBLIGACIONES","COACTIVO"]
[null,"MARZO","OTRAS_OBLIGACIONES","PROCESOS CONCURSALES"]
[null,"ABRIL","OTRAS_OBLIGACIONES","OTRO TIPO DE COBRO JURIDICO"]
[null,"MAYO","OTRAS_OBLIGACIONES","SENTENCIAS LAUDOS ARBITRALES PERSUASIVO"]
[null,"JUNIO","OTRAS_OBLIGACIONES","SENTENCIAS LAUDOS ARBITRALES  COACTIVO"]
[null,"JULIO","OTRAS_OBLIGACIONES","PERSUASIVO"]
[null,"AGOSTO","OTRAS_OBLIGACIONES","COACTIVO"]
[null,"SEPTIEMBRE","OTRAS_OBLIGACIONES","PROCESOS CONCURSALES"]
[null,"OCTUBRE","OTRAS_OBLIGACIONES","OTRO TIPO DE COBRO JURIDICO"]
[null,"NOVIEMBRE","OTRAS_OBLIGACIONES","SENTENCIAS LAUDOS ARBITRALES PERSUASIVO"]
[null,"DICIEMBRE","OTRAS_OBLIGACIONES","SENTENCIAS LAUDOS ARBITRALES  COACTIVO"]
[]
[]
["Antes de imprimir este documento… piense en el medio ambiente!  "]
["Cualquier copia impresa de este documento se considera como COPIA NO CONTROLADA."]

{"sheet":"INSTRUCTIVO","index":2,"n_rows":34,"n_cols":8,"rows_kept":34,"cut":false,"hidden":false,"merged":[[32,0,32,16],[33,0,33,16],[5,5,6,7],[1,0,6,2],[1,3,2,4],[3,3,4,4],[5,3,6,4],[1,5,2,6],[1,7,2,7],[3,5,4,6],[3,7,4,7],[10,0,10,6]]}
[]
[{"$error":"#VALUE!"},null,null,"PROCEDIMIENTO RECAUDO INGRESO OTRAS CARTERAS DIFERENTES A MINTIC Y ADN",null,{"$f":"INGRESOS_OTRAS_CARTERAS!O1","v":"F3.P45.GF "},null,{"$f":"INGRESOS_OTRAS_CARTERAS!Q1","v":"2024-12-10"}]
[]
[null,null,null,"FORMATO MOVIMIENTO INGRESOS BANCOS OTRAS CARTERA",null,{"$f":"INGRESOS_OTRAS_CARTERAS!O3","v":"VERSION 1"},null,"PAGINA 1 DE 1"]
[]
[null,null,null,"DIFERENTES A MINTIC Y ADN ",null,"CLASIFICACION DE LA INFORMACION PUBLICA"]
[]
[]
[]
[]
["INSTRUCTIVO"]
[]
[]
[null,null,"CELDA","NOMBRE","INFORME_GENERAL"]
[null,null,"B12","REGIONAL","SE DEBE SELECCIONAR LA REGIONAL  AL CUAL PERTENECE LA CONCILIACIÓN"]
[null,null,"E12","MES","SE DEBE SELECCIONAR EL MES AL CUAL PERTENECE LA CONCILIACIÓN"]
[]
[]
[null,null,"COLUMNA","TIPO DE CARTERA","INGRESOS_OTRAS_CARTERAS"]
[null,null,"B","MES","SE DEBE SELECCIONAR EL MES  AL CUAL PERTENECE EL PAGO"]
[null,null,"C","TIPO DE CARTERA","SE DEBE SELECCIONAR EL TIPO DE CARTERA  AL CUAL PERTENECE EL PAGO"]
[null,null,"D","TIPO DE OBLIGACIÓN","SE DEBE SELECCIONAR EL TIPO DE OBLIGACIÓN  AL CUAL PERTENECE EL PAGO"]
[null,null,"H","DOCUMENTO DE RECAUDO POR CLASIFICAR (DRXC)   TESORERÍA ","SE DEBE INGRESAR EL NUMERO DOCUMENTO DE RECAUDO POR CLASIFICAR (DRXC) AL CUAL PERTENECE EL PAGO"]
[null,null,"I","FECHA DE PAGO","SE DEBE INGRESAR LA FECHA DEL PAGO"]
[null,null,"J","NÚMERO DE IDENTIFICACIÓN","SE DEBE INGRESAR EL NUMERO DE IDENTIFICACIÓN DEL DEUDOR"]
[null,null,"K","NOMBRE Y/O RAZÓN SOCIAL","SE DEBE INGRESAR EL NOMBRE DEL DEUDOR"]
[null,null,"L","No. SENTENCIA O ACTA      ","SE DEBE INGRESAR EL NUMERO DE LA SENTENCIA O ACTA QUE ORIGINO EL PAGO"]
[null,null,"M","FECHA DE SENTENCIA O ACTA","SE DEBE INGRESAR LA FECHADE DE LA SENTENCIA O ACTA QUE ORIGINO EL PAGO"]
[null,null,"N","CAPITAL","SE DEBE INGRESAR EL VALOR CAPITAL QUE CORRESPONDE EL PAGO"]
[null,null,"O","INTERESES","SE DEBE INGRESAR EL VALOR INTERESES QUE CORRESPONDE EL PAGO"]
[null,null,"Q","PERTENECE AL FORMATO F-27, COACTIVO O ES INGRESO SIN GESTIÓN","SE DEBE SELECCIONAR SI PERTENECE AL FORMATO F-27, COACTIVO O ES INGRESO SIN GESTIÓN."]
[]
["Antes de imprimir este documento… piense en el medio ambiente!  "]
["Cualquier copia impresa de este documento se considera como COPIA NO CONTROLADA."]

{"sheet":"Hoja8","index":3,"n_rows":34,"n_cols":70,"rows_kept":34,"cut":false,"hidden":true,"merged":[[20,62,20,63],[20,64,20,65],[20,66,20,67],[20,68,20,69],[20,26,20,27],[20,28,20,29],[20,1,20,2],[20,3,20,4],[20,7,20,8],[20,5,20,6],[20,14,20,15],[20,16,20,17],[20,18,20,19],[20,20,20,21],[20,22,20,23],[20,24,20,25]]}
["TIPO DE CARTERA","COSTAS",null,null,null,null,null,null,null,null,null,null,null,"TIPO DE CARTERA","CONTRACTUALES",null,null,null,null,null,null,null,null,null,null,null,null,null,null,null,null,null,null,"TIPO DE CARTERA","OTRAS_OBLIGACIONES",null,null,null,null,null,null,null,null,null,null,null,null,null,null,null,"TIPO DE CARTERA","CUOTA_ALIMENTARIA"]
[]
[null,"Etiquetas de columna",null,null,null,null,null,null,null,null,null,null,null,null,"Etiquetas de columna",null,null,null,null,null,null,null,null,null,null,null,null,null,null,null,null,null,null,null,"Etiquetas de columna",null,null,null,null,null,null,null,null,null,null,null,null,null,null,null,null,"Etiquetas de columna",null,null,null,null,null,null,null,null,null,null,"Etiquetas de columna"]
[null,"PERSUASIVO",null,"COACTIVO",null,"PROCESOS CONCURSALES",null,"OTRO TIPO DE COBRO JURIDICO",null,"Total Suma de CAPITAL","Total Suma de INTERESES",null,null,null,"SANCIONES CONTRACTUALES EN PERSUASIVO",null,"SANCIONES CONTRACTUALES EN COBRO COACTIVO ",null,"SANCIONES CONTRACTUALES EN COBRO CONCURSALES ",null,"SANCIONES CONTRACTUALES  EN OTRO TIPO DE COBRO JURIDICO ",null,"REINTEGROS  POR RECURSOS NO EJECUTADOS CONTRATOS EN PERSUASIVO",null,"REINTEGROS  POR RECURSOS NO EJECUTADOS EN COBRO COACTIVO",null,"REINTEGROS  POR RECURSOS NO EJECUTADOS EN COBRO CONCURSALES ",null,"REINTEGROS  POR RECURSOS NO EJECUTADOS EN COBRO PROCESO EN OTRO TRAMITE JURIDICO",null,"Total Suma de CAPITAL","Total Suma de INTERESES",null,null,"PERSUASIVO",null,"COACTIVO",null,"PROCESOS CONCURSALES",null,"OTRO TIPO DE COBRO JURIDICO",null,"SENTENCIAS LAUDOS ARBITRALES PERSUASIVO",null,"SENTENCIAS LAUDOS ARBITRALES  COACTIVO",null,"Total Suma de CAPITAL","Total Suma de INTERESES",null,null,null,"PERSUASIVO",null,"COACTIVO",null,"OTRO TIPO DE COBRO JURIDICO",null,"Total Suma de CAPITAL","Total Suma de INTERESES",null,null,null,"(en blanco)",null,"Total Suma de CAPITAL","Total Suma de INTERESES"]
["Etiquetas de fila","Suma de CAPITAL","Suma de INTERESES","Suma de CAPITAL","Suma de INTERESES","Suma de CAPITAL","Suma de INTERESES","Suma de CAPITAL","Suma de INTERESES",null,null,null,null,"Etiquetas de fila","Suma de CAPITAL","Suma de INTERESES","Suma de CAPITAL","Suma de INTERESES","Suma de CAPITAL","Suma de INTERESES","Suma de CAPITAL","Suma de INTERESES","Suma de CAPITAL","Suma de INTERESES","Suma de CAPITAL","Suma de INTERESES","Suma de CAPITAL","Suma de INTERESES","Suma de CAPITAL","Suma de INTERESES",null,null,null,"Etiquetas de fila","Suma de CAPITAL","Suma de INTERESES","Suma de CAPITAL","Suma de INTERESES","Suma de CAPITAL","Suma de INTERESES","Suma de CAPITAL","Suma de INTERESES","Suma de CAPITAL","Suma de INTERESES","Suma de CAPITAL","Suma de INTERESES",null,null,null,null,"Etiquetas de fila","Suma de CAPITAL","Suma de INTERESES","Suma de CAPITAL","Suma de INTERESES","Suma de CAPITAL","Suma de INTERESES",null,null,null,null,"Etiquetas de fila","Suma de CAPITAL","Suma de INTERESES"]
["ENERO",null,null,null,null,null,null,null,null,null,null,null,null,"ENERO",null,null,null,null,null,null,null,null,null,null,null,null,null,null,null,null,null,null,null,"ENERO",null,null,null,null,null,null,null,null,null,null,null,null,null,null,null,null,"ENERO",null,null,null,null,null,null,null,null,null,null,"ENERO"]
["FEBRERO",null,null,null,null,null,null,null,null,null,null,null,null,"FEBRERO",null,null,null,null,null,null,null,null,null,null,null,null,null,null,null,null,null,null,null,"FEBRERO",null,null,null,null,null,null,null,null,null,null,null,null,null,null,null,null,"FEBRERO",null,null,null,null,null,null,null,null,null,null,"FEBRERO"]
["MARZO",null,null,null,null,null,null,null,null,null,null,null,null,"MARZO",null,null,null,null,null,null,null,null,null,null,null,null,null,null,null,null,null,null,null,"MARZO",null,null,null,null,null,null,null,null,null,null,null,null,null,null,null,null,"MARZO",null,null,null,null,null,null,null,null,null,null,"MARZO"]
["ABRIL",null,null,null,null,null,null,null,null,null,null,null,null,"ABRIL",null,null,null,null,null,null,null,null,null,null,null,null,null,null,null,null,null,null,null,"ABRIL",null,null,null,null,null,null,null,null,null,null,null,null,null,null,null,null,"ABRIL",null,null,null,null,null,null,null,null,null,null,"ABRIL"]
["MAYO",null,null,null,null,null,null,null,null,null,null,null,null,"MAYO",null,null,null,null,null,null,null,null,null,null,null,null,null,null,null,null,null,null,null,"MAYO",null,null,null,null,null,null,null,null,null,null,null,null,null,null,null,null,"MAYO",null,null,null,null,null,null,null,null,null,null,"MAYO"]
["JUNIO",null,null,null,null,null,null,null,null,null,null,null,null,"JUNIO",null,null,null,null,null,null,null,null,null,null,null,null,null,null,null,null,null,null,null,"JUNIO",null,null,null,null,null,null,null,null,null,null,null,null,null,null,null,null,"JUNIO",null,null,null,null,null,null,null,null,null,null,"JUNIO"]
["JULIO",null,null,null,null,null,null,null,null,null,null,null,null,"JULIO",null,null,null,null,null,null,null,null,null,null,null,null,null,null,null,null,null,null,null,"JULIO",null,null,null,null,null,null,null,null,null,null,null,null,null,null,null,null,"JULIO",null,null,null,null,null,null,null,null,null,null,"JULIO"]
["AGOSTO",null,null,null,null,null,null,null,null,null,null,null,null,"AGOSTO",null,null,null,null,null,null,null,null,null,null,null,null,null,null,null,null,null,null,null,"AGOSTO",null,null,null,null,null,null,null,null,null,null,null,null,null,null,null,null,"AGOSTO",null,null,null,null,null,null,null,null,null,null,"AGOSTO"]
["SEPTIEMBRE",null,null,null,null,null,null,null,null,null,null,null,null,"SEPTIEMBRE",null,null,null,null,null,null,null,null,null,null,null,null,null,null,null,null,null,null,null,"SEPTIEMBRE",null,null,null,null,null,null,null,null,null,null,null,null,null,null,null,null,"SEPTIEMBRE",null,null,null,null,null,null,null,null,null,null,"SEPTIEMBRE"]
["OCTUBRE",null,null,null,null,null,null,null,null,null,null,null,null,"OCTUBRE",null,null,null,null,null,null,null,null,null,null,null,null,null,null,null,null,null,null,null,"OCTUBRE",null,null,null,null,null,null,null,null,null,null,null,null,null,null,null,null,"OCTUBRE",null,null,null,null,null,null,null,null,null,null,"OCTUBRE"]
["NOVIEMBRE",null,null,null,null,null,null,null,null,null,null,null,null,"NOVIEMBRE",null,null,null,null,null,null,null,null,null,null,null,null,null,null,null,null,null,null,null,"NOVIEMBRE",null,null,null,null,null,null,null,null,null,null,null,null,null,null,null,null,"NOVIEMBRE",null,null,null,null,null,null,null,null,null,null,"NOVIEMBRE"]
["DICIEMBRE",null,null,null,null,null,null,null,null,null,null,null,null,"DICIEMBRE",null,null,null,null,null,null,null,null,null,null,null,null,null,null,null,null,null,null,null,"DICIEMBRE",null,null,null,null,null,null,null,null,null,null,null,null,null,null,null,null,"DICIEMBRE",null,null,null,null,null,null,null,null,null,null,"DICIEMBRE"]
["Total general",null,null,null,null,null,null,null,null,null,null,null,null,"Total general",null,null,null,null,null,null,null,null,null,null,null,null,null,null,null,null,null,null,null,"Total general",null,null,null,null,null,null,null,null,null,null,null,null,null,null,null,null,"Total general",null,null,null,null,null,null,null,null,null,null,"Total general"]
[]
[]
[null,"PERSUASIVO",null,"COACTIVO",null,"PROCESOS CONCURSALES",null,"OTRO TIPO DE COBRO JURIDICO",null,null,null,null,null,null,"SANCIONES CONTRACTUALES EN PERSUASIVO",null,"SANCIONES CONTRACTUALES EN COBRO COACTIVO ",null,"SANCIONES CONTRACTUALES EN COBRO CONCURSALES ",null,"SANCIONES CONTRACTUALES  EN OTRO TIPO DE COBRO JURIDICO ",null,"REINTEGROS  POR RECURSOS NO EJECUTADOS CONTRATOS EN PERSUASIVO",null,"REINTEGROS  POR RECURSOS NO EJECUTADOS EN COBRO COACTIVO",null,"REINTEGROS  POR RECURSOS NO EJECUTADOS EN COBRO CONCURSALES ",null,"REINTEGROS  POR RECURSOS NO EJECUTADOS EN COBRO PROCESO EN OTRO TRAMITE JURIDICO",null,null,null,null,null,"PERSUASIVO",null,"COACTIVO",null,"PROCESOS CONCURSALES",null,"OTRO TIPO DE COBRO JURIDICO",null,"SENTENCIAS LAUDOS ARBITRALES PERSUASIVO",null,"SENTENCIAS LAUDOS ARBITRALES  COACTIVO",null,null,null,null,null,null,"PERSUASIVO",null,"COACTIVO",null,"PROCESOS CONCURSALES",null,null,null,null,null,null,"F-27 PERSUASIVO",null,"F-27 COACTIVO",null,"COACTIVO",null,"PAGO SIN GESTION"]
[null,"CAPITAL","INTERESES","CAPITAL","INTERESES","CAPITAL","INTERESES","CAPITAL","INTERESES",null,null,null,null,null,"CAPITAL","INTERESES","CAPITAL","INTERESES","CAPITAL","INTERESES","CAPITAL","INTERESES","CAPITAL","INTERESES","CAPITAL","INTERESES","CAPITAL","INTERESES","CAPITAL","INTERESES",null,null,null,"Etiquetas de fila","Cuenta de CAPITAL","Cuenta de INTERESES","Cuenta de CAPITAL","Cuenta de INTERESES","Cuenta de CAPITAL","Cuenta de INTERESES","Cuenta de CAPITAL","Cuenta de INTERESES","Cuenta de CAPITAL","Cuenta de INTERESES","Cuenta de CAPITAL","Cuenta de INTERESES",null,null,null,null,"Etiquetas de fila","Cuenta de CAPITAL","Cuenta de INTERESES","Cuenta de CAPITAL","Cuenta de INTERESES","Cuenta de CAPITAL","Cuenta de INTERESES",null,null,null,null,null,"CAPITAL","INTERESES","CAPITAL","INTERESES","CAPITAL","INTERESES","CAPITAL","INTERESES"]
[{"$f":"A6","v":"ENERO"},{"$f":"B6","v":0},{"$f":"C6","v":0},0,0,0,0,0,0,null,null,null,null,"ENERO",{"$f":"O6","v":0},{"$f":"P6","v":0},0,0,0,0,0,0,0,0,0,0,0,0,0,{"$f":"AD6","v":0},null,null,null,"ENERO",{"$f":"AI6","v":0},{"$f":"AJ6","v":0},0,0,0,0,0,0,0,0,0,0,null,null,null,null,"ENERO",{"$f":"AZ6","v":0},{"$f":"BA6","v":0},0,0,0,0,null,null,null,null,{"$f":"BJ6","v":"ENERO"},{"$f":"BK6","v":0},{"$f":"BL6","v":0},0,0,0,0,0,0]
[{"$f":"A7","v":"FEBRERO"},0,0,0,0,0,0,0,0,null,null,null,null,"FEBRERO",{"$f":"O7","v":0},0,0,0,0,0,0,0,0,0,0,0,0,0,0,0,null,null,null,"FEBRERO",{"$f":"AI7","v":0},0,0,0,0,0,0,0,0,0,0,0,null,null,null,null,"FEBRERO",{"$f":"AZ7","v":0},0,0,0,0,0,null,null,null,null,{"$f":"BJ7","v":"FEBRERO"},0,0,0,0,0,0,0,0]
["MARZO",0,0,0,0,0,0,0,0,null,null,null,null,"MARZO",{"$f":"O8","v":0},0,0,0,0,0,0,0,0,0,0,0,0,0,0,0,null,null,null,"MARZO",{"$f":"AI8","v":0},0,0,0,0,0,0,0,0,0,0,0,null,null,null,null,"MARZO",{"$f":"AZ8","v":0},0,0,0,0,0,null,null,null,null,{"$f":"BJ8","v":"MARZO"},0,0,0,0,0,0,0,0]
["ABRIL",0,0,0,0,0,0,0,0,null,null,null,null,"ABRIL",{"$f":"O9","v":0},0,0,0,0,0,0,0,0,0,0,0,0,0,0,0,null,null,null,"ABRIL",{"$f":"AI9","v":0},0,0,0,0,0,0,0,0,0,0,0,null,null,null,null,"ABRIL",{"$f":"AZ9","v":0},0,0,0,0,0,null,null,null,null,{"$f":"BJ9","v":"ABRIL"},0,0,0,0,0,0,0,0]
["MAYO",0,0,0,0,0,0,0,0,null,null,null,null,"MAYO",{"$f":"O10","v":0},0,0,0,0,0,0,0,0,0,0,0,0,0,0,0,null,null,null,"MAYO",{"$f":"AI10","v":0},0,0,0,0,0,0,0,0,0,0,0,null,null,null,null,"MAYO",{"$f":"AZ10","v":0},0,0,0,0,0,null,null,null,null,{"$f":"BJ10","v":"MAYO"},0,0,0,0,0,0,0,0]
["JUNIO",0,0,0,0,0,0,0,0,null,null,null,null,"JUNIO",{"$f":"O11","v":0},0,0,0,0,0,0,0,0,0,0,0,0,0,0,0,null,null,null,"JUNIO",{"$f":"AI11","v":0},0,0,0,0,0,0,0,0,0,0,0,null,null,null,null,"JUNIO",{"$f":"AZ11","v":0},0,0,0,0,0,null,null,null,null,{"$f":"BJ11","v":"JUNIO"},0,0,0,0,0,0,0,0]
["JULIO",0,0,0,0,0,0,0,0,null,null,null,null,"JULIO",{"$f":"O12","v":0},0,0,0,0,0,0,0,0,0,0,0,0,0,0,0,null,null,null,"JULIO",{"$f":"AI12","v":0},0,0,0,0,0,0,0,0,0,0,0,null,null,null,null,"JULIO",{"$f":"AZ12","v":0},0,0,0,0,0,null,null,null,null,{"$f":"BJ12","v":"JULIO"},0,0,0,0,0,0,0,0]
["AGOSTO",0,0,0,0,0,0,0,0,null,null,null,null,"AGOSTO",{"$f":"O13","v":0},0,0,0,0,0,0,0,0,0,0,0,0,0,0,0,null,null,null,"AGOSTO",{"$f":"AI13","v":0},0,0,0,0,0,0,0,0,0,0,0,null,null,null,null,"AGOSTO",{"$f":"AZ13","v":0},0,0,0,0,0,null,null,null,null,{"$f":"BJ13","v":"AGOSTO"},0,0,0,0,0,0,0,0]
["SEPTIEMBRE",0,0,0,0,0,0,0,0,null,null,null,null,"SEPTIEMBRE",{"$f":"O14","v":0},0,0,0,0,0,0,0,0,0,0,0,0,0,0,0,null,null,null,"SEPTIEMBRE",{"$f":"AI14","v":0},0,0,0,0,0,0,0,0,0,0,0,null,null,null,null,"SEPTIEMBRE",{"$f":"AZ14","v":0},0,0,0,0,0,null,null,null,null,{"$f":"BJ14","v":"SEPTIEMBRE"},0,0,0,0,0,0,0,0]
["OCTUBRE",0,0,0,0,0,0,0,0,null,null,null,null,"OCTUBRE",{"$f":"O15","v":0},0,0,0,0,0,0,0,0,0,0,0,0,0,0,0,null,null,null,"OCTUBRE",{"$f":"AI15","v":0},0,0,0,0,0,0,0,0,0,0,0,null,null,null,null,"OCTUBRE",{"$f":"AZ15","v":0},0,0,0,0,0,null,null,null,null,{"$f":"BJ15","v":"OCTUBRE"},0,0,0,0,0,0,0,0]
["NOVIEMBRE",0,0,0,0,0,0,0,0,null,null,null,null,"NOVIEMBRE",{"$f":"O16","v":0},0,0,0,0,0,0,0,0,0,0,0,0,0,0,0,null,null,null,"NOVIEMBRE",{"$f":"AI16","v":0},0,0,0,0,0,0,0,0,0,0,0,null,null,null,null,"NOVIEMBRE",{"$f":"AZ16","v":0},0,0,0,0,0,null,null,null,null,{"$f":"BJ16","v":"NOVIEMBRE"},0,0,0,0,0,0,0,0]
[{"$f":"A17","v":"DICIEMBRE"},{"$f":"B17","v":0},{"$f":"C17","v":0},0,0,0,0,0,0,null,null,null,null,"DICIEMBRE",{"$f":"O17","v":0},0,0,0,0,0,0,0,0,0,0,0,0,0,0,0,null,null,null,"DICIEMBRE",{"$f":"AI17","v":0},{"$f":"AJ17","v":0},0,0,0,0,0,0,0,0,0,0,null,null,null,null,"DICIEMBRE",{"$f":"AZ17","v":0},{"$f":"BA17","v":0},0,0,0,0,null,null,null,null,{"$f":"BJ17","v":"DICIEMBRE"},{"$f":"BK17","v":0},{"$f":"BL17","v":0},0,0,0,0,0,0]

{"sheet":"datos","index":4,"n_rows":30,"n_cols":13,"rows_kept":30,"cut":false,"hidden":true,"merged":[]}
[]
["a","a"]
["2024-01-01",{"$f":"MONTH(A3)","v":1},null,null,null,null,null,"TIPO DE CARTERA","TIPO DE OBLIGACION","ETAPA DEL COBRO",null,"CUENTA CONTABLE\nCAPITAL","CUENTA CONTABLE\nINTERESES"]
["2024-01-31",{"$f":"MONTH(A4)","v":1},null,"ENERO","F-27 PERSUASIVO","COSTAS"]
["2024-02-01",2,null,"FEBRERO","F-27 COACTIVO","CUOTA_ALIMENTARIA"]
["2024-02-28",2,null,"MARZO","COACTIVO","CONTRACTUALES",null,"COSTAS","PERSUASIVO","COBRO PERSUASIVO",{"$f":"CONCATENATE(H6,\"_\",I6)","v":"COSTAS_PERSUASIVO"},133805001,819003001]
["2024-03-01",3,null,"ABRIL","PAGO SIN GESTION","OTRAS_OBLIGACIONES",null,"COSTAS","COACTIVO","COBRO COACTIVO",{"$f":"CONCATENATE(H7,\"_\",I7)","v":"COSTAS_COACTIVO"},138590001,819003001]
["2024-03-31",3,null,"MAYO",null,null,null,"COSTAS","PROCESOS CONCURSALES","PROCESOS CONCURSALES","COSTAS_PROCESOS CONCURSALES",138590001,819003001]
["2024-04-01",4,null,"JUNIO",null,null,null,"COSTAS","OTRO TIPO DE COBRO JURIDICO","JURIDICO","COSTAS_OTRO TIPO DE COBRO JURIDICO",138590001,819003001]
["2024-04-30",4,null,"JULIO"]
["2024-05-01",5,null,"AGOSTO",null,null,null,"CONTRACTUALES","SANCIONES CONTRACTUALES EN PERSUASIVO","COBRO PERSUASIVO","CONTRACTUALES_SANCIONES CONTRACTUALES EN PERSUASIVO",131102004,819003001]
["2024-05-31",5,null,"SEPTIEMBRE",null,null,null,"CONTRACTUALES","SANCIONES CONTRACTUALES EN COBRO COACTIVO ","COBRO COACTIVO","CONTRACTUALES_SANCIONES CONTRACTUALES EN COBRO COACTIVO ",138515001,819003001]
["2024-06-01",6,null,"OCTUBRE",null,null,null,"CONTRACTUALES","SANCIONES CONTRACTUALES EN COBRO CONCURSALES ","PROCESOS CONCURSALES","CONTRACTUALES_SANCIONES CONTRACTUALES EN COBRO CONCURSALES ",138515001,819003001]
["2024-06-30",6,null,"NOVIEMBRE",null,null,null,"CONTRACTUALES","SANCIONES CONTRACTUALES  EN OTRO TIPO DE COBRO JURIDICO ","JURIDICO","CONTRACTUALES_SANCIONES CONTRACTUALES  EN OTRO TIPO DE COBRO JURIDICO ",138515001,819003001]
["2024-07-01",7,null,"DICIEMBRE",null,null,null,"CONTRACTUALES","REINTEGROS  POR RECURSOS NO EJECUTADOS CONTRATOS EN PERSUASIVO","COBRO PERSUASIVO","CONTRACTUALES_REINTEGROS  POR RECURSOS NO EJECUTADOS CONTRATOS EN PERSUASIVO",138455001,819003001]
["2024-07-31",7,null,null,null,null,null,"CONTRACTUALES","REINTEGROS  POR RECURSOS NO EJECUTADOS EN COBRO COACTIVO","COBRO COACTIVO","CONTRACTUALES_REINTEGROS  POR RECURSOS NO EJECUTADOS EN COBRO COACTIVO",138590001,819003001]
["2024-08-01",8,null,null,null,null,null,"CONTRACTUALES","REINTEGROS  POR RECURSOS NO EJECUTADOS EN COBRO CONCURSALES ","PROCESOS CONCURSALES","CONTRACTUALES_REINTEGROS  POR RECURSOS NO EJECUTADOS EN COBRO CONCURSALES ",138590001,819003001]
["2024-08-31",8,null,null,null,null,null,"CONTRACTUALES","REINTEGROS  POR RECURSOS NO EJECUTADOS EN COBRO PROCESO EN OTRO TRAMITE JURIDICO","JURIDICO","CONTRACTUALES_REINTEGROS  POR RECURSOS NO EJECUTADOS EN COBRO PROCESO EN OTRO TRAMITE JURIDICO",138590001,819003001]
["2024-09-01",9]
["2024-09-30",9,null,null,null,null,null,"CUOTA_ALIMENTARIA","PERSUASIVO","COBRO PERSUASIVO","CUOTA_ALIMENTARIA_PERSUASIVO",138442001,819003001]
["2024-10-01",10,null,null,null,null,null,"CUOTA_ALIMENTARIA","COACTIVO","COBRO COACTIVO","CUOTA_ALIMENTARIA_COACTIVO",138590002,819003001]
["2024-10-31",10,null,null,null,null,null,"CUOTA_ALIMENTARIA","OTRO TIPO DE COBRO JURIDICO","COBRO COACTIVO","CUOTA_ALIMENTARIA_OTRO TIPO DE COBRO JURIDICO",138590002,819003001]
["2024-11-01",11]
["2024-11-30",11]
["2024-12-01",12,null,null,null,null,null,"OTRAS_OBLIGACIONES","PERSUASIVO","COBRO PERSUASIVO","OTRAS_OBLIGACIONES_PERSUASIVO",138490001,819003001]
["2024-12-31",12,null,null,null,null,null,"OTRAS_OBLIGACIONES","COACTIVO","COACTIVO","OTRAS_OBLIGACIONES_COACTIVO",138590001,819003001]
[null,null,null,null,null,null,null,"OTRAS_OBLIGACIONES","PROCESOS CONCURSALES","PROCESOS CONCURSALES","OTRAS_OBLIGACIONES_PROCESOS CONCURSALES",138590001,819003001]
[null,null,null,null,null,null,null,"OTRAS_OBLIGACIONES","OTRO TIPO DE COBRO JURIDICO"," JURIDICO","OTRAS_OBLIGACIONES_OTRO TIPO DE COBRO JURIDICO",138590001,819003001]
[null,null,null,null,null,null,null,"OTRAS_OBLIGACIONES","SENTENCIAS LAUDOS ARBITRALES PERSUASIVO","COBRO PERSUASIVO","OTRAS_OBLIGACIONES_SENTENCIAS LAUDOS ARBITRALES PERSUASIVO",133801001,819003001]
[null,null,null,null,null,null,null,"OTRAS_OBLIGACIONES","SENTENCIAS LAUDOS ARBITRALES  COACTIVO","COACTIVO","OTRAS_OBLIGACIONES_SENTENCIAS LAUDOS ARBITRALES  COACTIVO",138590001,819003001]